Workbook

Sheet Summary
C3: Risk Scenario | D3: =InputC!E2 -> 1 | E3: =InputC!F5 -> Base Case
C4: Debt Size Scenario
C6: Headline Price without Sale | E6: =Headline_Price_No_Sale -> 171025037.5
C7: Headline Price with Sale | E7: =Headline_Price_Sale -> 199858603.1
C9: EIRR with Sale | E9: ='Model - Value and Risk'!$F$197 -> 0.07999999821
C10: EIRR without Sale | E10: ='Model - Value and Risk'!F183 -> 0.0735119909
C12: PIRR Pre-tax | E12: ='Model - Value and Risk'!$F$79 -> 0.04894231856
C13: PIRR After-tax | E13: ='Model - Value and Risk'!$F$103 -> 0.04894231586
C15: Minimum DSCR | E15: ='Model - Value and Risk'!G209 -> 1.35
C16: LLCR | E16: ='Model - Value and Risk'!G217 -> 1.35
C17: PLCR | E17: ='Model - Value and Risk'!G213 -> 2.451293237
C19: Uses of Funds
C20: Purchase Price | E20: ='Model - Value and Risk'!F148 -> 199858603.1
C21: Fees on Debt | E21: ='Model - Value and Risk'!F149 -> 1144647.292
C22: Total | E22: ='Model - Value and Risk'!F150 -> 201003250.3
C24: Sources of Funds
C25: Debt | E25: ='Model - Value and Risk'!F153 -> 114464729.2 | F25: =E25/$E$27 -> 0.5694670561
C26: Equity | E26: ='Model - Value and Risk'!F154 -> 86538521.11 | F26: =E26/E27 -> 0.4305329439
C27: Total | E27: =SUM(E25:E26) -> 201003250.3

Sheet InputC
B2: Scenario Number | E2: 1
H4: 1 | I4: 2 | J4: 3 | K4: 4 | L4: 5 | M4: 6 | N4: 7 | O4: 8 | P4: 9 | Q4: 10
B5: Timing | F5: =INDEX(H5:Q5,$E$2) -> Base Case | H5: Base Case | I5: + Inflation | J5: - Inflation | K5: + Var OM | L5: - Var OM | M5: + Int Rate | N5: - Int Rate | O5: - Life | P5: + Life | Q5: Rev Share Pay
C6: Acquistion Date | E6: Date | F6: =INDEX(H6:Q6,$E$2) -> 2024-12-31 | H6: 2024-12-31 | I6: 2024-12-31 | J6: 2024-12-31 | K6: 2024-12-31 | L6: 2024-12-31 | M6: 2024-12-31 | N6: 2024-12-31 | O6: 2024-12-31 | P6: 2024-12-31 | Q6: 2024-12-31
C7: Life of Road | E7: Years | F7: =INDEX(H7:Q7,$E$2) -> 25 | H7: 25 | I7: 25 | J7: 25 | K7: 25 | L7: 25 | M7: 25 | N7: 25 | O7: 23 | P7: 27 | Q7: 25
C8: End of Life | E8: Date | F8: =INDEX(H8:Q8,$E$2) -> 2049-12-31 | H8: =EDATE(H6,(H7)*12) -> 2049-12-31 | I8: 2049-12-31 | J8: 2049-12-31 | K8: 2049-12-31 | L8: 2049-12-31 | M8: 2049-12-31 | N8: 2049-12-31 | O8: 2047-12-31 | P8: 2051-12-31 | Q8: 2049-12-31
C10: Sale Date | E10: Date | F10: =INDEX(H10:Q10,$E$2) -> 2030-12-31 | H10: 2030-12-31 | I10: 2030-12-31 | J10: 2030-12-31 | K10: 2030-12-31 | L10: 2030-12-31 | M10: 2030-12-31 | N10: 2030-12-31 | O10: 2030-12-31 | P10: 2030-12-31 | Q10: 2030-12-31
B12: Capacity and Volumes
C13: Capacity of Road | E13: km | F13: =INDEX(H13:Q13,$E$2) -> 50 | H13: 50 | I13: 50 | J13: 50 | K13: 50 | L13: 50 | M13: 50 | N13: 50 | O13: 50 | P13: 50 | Q13: 50
C15: Intial Car Traffic | E15: Cars/day | F15: =INDEX(H15:Q15,$E$2) -> 3500 | H15: 3500 | I15: 3500 | J15: 3500 | K15: 3500 | L15: 3500 | M15: 3500 | N15: 3500 | O15: 3500 | P15: 3500 | Q15: 3500
C16: Initial Trucks Traffic | E16: Cars/day | F16: =INDEX(H16:Q16,$E$2) -> 1500 | H16: 1500 | I16: 1500 | J16: 1500 | K16: 1500 | L16: 1500 | M16: 1500 | N16: 1500 | O16: 1500 | P16: 1500 | Q16: 1500
C18: Car volume Increase | E18: % p.a. | F18: =INDEX(H18:Q18,$E$2) -> 0.03 | H18: 0.03 | I18: 0.03 | J18: 0.03 | K18: 0.03 | L18: 0.03 | M18: 0.03 | N18: 0.03 | O18: 0.03 | P18: 0.03 | Q18: 0.03
C19: Truck Volume Increase | E19: % p.a. | F19: =INDEX(H19:Q19,$E$2) -> 0.02 | H19: 0.02 | I19: 0.02 | J19: 0.02 | K19: 0.02 | L19: 0.02 | M19: 0.02 | N19: 0.02 | O19: 0.02 | P19: 0.02 | Q19: 0.02
C21: Revernue Share Payable to Government | E21: Flag | F21: =INDEX(H21:Q21,$E$2) -> FALSE | H21: FALSE | I21: FALSE | J21: FALSE | K21: FALSE | L21: FALSE | M21: FALSE | N21: FALSE | O21: FALSE | P21: FALSE | Q21: TRUE
C22: Car Traffic Limit | E22: Cars/day | F22: =INDEX(H22:Q22,$E$2) -> 5000 | H22: 5000 | I22: 5000 | J22: 5000 | K22: 5000 | L22: 5000 | M22: 5000 | N22: 5000 | O22: 5000 | P22: 5000 | Q22: 5000
B24: Cap Exp, Revenues and Op Exp
C25: Initial Cap Exp | E25: USD | F25: =INDEX(H25:Q25,$E$2) -> 100000000 | H25: 100000000 | I25: 100000000 | J25: 100000000 | K25: 100000000 | L25: 100000000 | M25: 100000000 | N25: 100000000 | O25: 100000000 | P25: 100000000 | Q25: 100000000
C27: Marco - Inflation
D28: Inflation rate | E28: % p.a. | F28: =INDEX(H28:Q28,$E$2) -> 0.02 | H28: 0.02 | I28: 0.025 | J28: 0.015 | K28: 0.02 | L28: 0.02 | M28: 0.02 | N28: 0.02 | O28: 0.02 | P28: 0.02 | Q28: 0.02
D29: Start of Inflation | E29: Date | F29: =INDEX(H29:Q29,$E$2) -> 2026-01-01 | H29: 2026-01-01 | I29: 2026-01-01 | J29: 2026-01-01 | K29: 2026-01-01 | L29: 2026-01-01 | M29: 2026-01-01 | N29: 2026-01-01 | O29: 2026-01-01 | P29: 2026-01-01 | Q29: 2026-01-01
C31: Initial Toll Rates - Car | E31: USD/Car | F31: =INDEX(H31:Q31,$E$2) -> 5 | H31: 5 | I31: 5 | J31: 5 | K31: 5 | L31: 5 | M31: 5 | N31: 5 | O31: 5 | P31: 5 | Q31: 5
C32: Initial Toll Rates - Car | E32: USD/Car | F32: =INDEX(H32:Q32,$E$2) -> 3 | H32: 3 | I32: 3 | J32: 3 | K32: 3 | L32: 3 | M32: 3 | N32: 3 | O32: 3 | P32: 3 | Q32: 3
C33: Initial Toll Rates - Truck | E33: USD/Truck | F33: =INDEX(H33:Q33,$E$2) -> 10 | H33: 10 | I33: 10 | J33: 10 | K33: 10 | L33: 10 | M33: 10 | N33: 10 | O33: 10 | P33: 10 | Q33: 10
C35: Variable O&M | E35: USD/Vehicle | F35: =INDEX(H35:Q35,$E$2) -> 2 | H35: 2 | I35: 2 | J35: 2 | K35: =H35*1.1 -> 2.2 | L35: =H35*0.9 -> 1.8 | M35: 2 | N35: 2 | O35: 2 | P35: 2 | Q35: 2
C36: Fixed - Real 2025 | E36: USD/km - year | F36: =INDEX(H36:Q36,$E$2) -> 10000 | H36: 10000 | I36: 10000 | J36: 10000 | K36: 10000 | L36: 10000 | M36: 10000 | N36: 10000 | O36: 10000 | P36: 10000 | Q36: 10000
B38: Working Capital
C39: A/R Days | E39: Days | F39: =INDEX(H39:Q39,$E$2) -> 30 | H39: 30 | I39: 30 | J39: 30 | K39: 30 | L39: 30 | M39: 30 | N39: 30 | O39: 30 | P39: 30 | Q39: 30
C40: A/R Pct of Revenues | E40: % | F40: =INDEX(H40:Q40,$E$2) -> 0.08219178082 | H40: =H39/365 -> 0.08219178082 | I40: 0.08219178082 | J40: 0.08219178082 | K40: 0.08219178082 | L40: 0.08219178082 | M40: 0.08219178082 | N40: 0.08219178082 | O40: 0.08219178082 | P40: 0.08219178082 | Q40: 0.08219178082
C42: A/P Days | E42: Days | F42: =INDEX(H42:Q42,$E$2) -> 60 | H42: 60 | I42: 60 | J42: 60 | K42: 60 | L42: 60 | M42: 60 | N42: 60 | O42: 60 | P42: 60 | Q42: 60
C43: A/P as Perent of Cost | E43: % | H43: =H42/365 -> 0.1643835616 | I43: 0.1643835616 | J43: 0.1643835616 | K43: 0.1643835616 | L43: 0.1643835616 | M43: 0.1643835616 | N43: 0.1643835616 | O43: 0.1643835616 | P43: 0.1643835616 | Q43: 0.1643835616
B45: Tax and Depreciation
C46: Corporate Tax Rate | E46: % | F46: =INDEX(H46:Q46,$E$2)*0 -> 0 | H46: 0.2 | I46: 0.2 | J46: 0.2 | K46: 0.2 | L46: 0.2 | M46: 0.2 | N46: 0.2 | O46: 0.2 | P46: 0.2 | Q46: 0.2
C47: Depreciation Life | E47: Years | F47: =INDEX(H47:Q47,$E$2) -> 20 | H47: 20 | I47: 20 | J47: 20 | K47: 20 | L47: 20 | M47: 20 | N47: 20 | O47: 20 | P47: 20 | Q47: 20
B49: Financing and Valuation
C50: DSCR Minimum | E50: x | F50: =INDEX(H50:Q50,$E$2) -> 1.35 | H50: 1.35 | I50: 1.35 | J50: 1.35 | K50: 1.35 | L50: 1.35 | M50: 1.35 | N50: 1.35 | O50: 1.35 | P50: 1.35 | Q50: 1.35
C51: Max Debt to Capital | E51: % | F51: =INDEX(H51:Q51,$E$2) -> 0.8 | H51: 0.8 | I51: 0.8 | J51: 0.8 | K51: 0.8 | L51: 0.8 | M51: 0.8 | N51: 0.8 | O51: 0.8 | P51: 0.8 | Q51: 0.8
C53: Tenure | E53: Years | F53: =INDEX(H53:Q53,$E$2) -> 15 | H53: 15 | I53: 15 | J53: 15 | K53: 15 | L53: 15 | M53: 15 | N53: 15 | O53: 15 | P53: 15 | Q53: 15
C54: Interest Rate | E54: % p.a. | F54: =INDEX(H54:Q54,$E$2) -> 0.03 | H54: 0.03 | I54: 0.03 | J54: 0.03 | K54: 0.03 | L54: 0.03 | M54: 0.0325 | N54: 0.0275 | O54: 0.03 | P54: 0.03 | Q54: 0.03
C55: Fees | E55: % | F55: =INDEX(H55:Q55,$E$2) -> 0.01 | H55: 0.01 | I55: 0.01 | J55: 0.01 | K55: 0.01 | L55: 0.01 | M55: 0.01 | N55: 0.01 | O55: 0.01 | P55: 0.01 | Q55: 0.01
C57: Target IRR | E57: % | F57: =INDEX(H57:Q57,$E$2) -> 0.08 | H57: 0.08 | I57: 0.08 | J57: 0.08 | K57: 0.08 | L57: 0.08 | M57: 0.08 | N57: 0.08 | O57: 0.08 | P57: 0.08 | Q57: 0.08
C58: Buyer IRR | E58: % | F58: =INDEX(H58:Q58,$E$2) -> 0.07 | H58: 0.07 | I58: 0.07 | J58: 0.07 | K58: 0.07 | L58: 0.07 | M58: 0.07 | N58: 0.07 | O58: 0.07 | P58: 0.07 | Q58: 0.07

Sheet Model - Value and Risk
B1: =InputC!F5 -> Base Case
B2: Timing | E2: Units for Input | F2: Constant | G2: Constant | H2: Units for Output | I2: Sum | J2: Initial | K2: 1 | L2: 2 | M2: 3 | N2: 4 | O2: 5 | P2: 6 | Q2: 7 | R2: 8 | S2: 9 | T2: 10 | U2: 11 | V2: 12 | W2: 13 | X2: 14 | Y2: 15 | Z2: 16 | AA2: 17 | AB2: 18 | AC2: 19 | AD2: 20 | AE2: 21 | AF2: 22 | AG2: 23 | AH2: 24 | AI2: 25 | AJ2: 26 | AK2: 27 | AL2: 28 | AM2: 29 | AN2: 30 | AO2: 31 | AP2: 32 | AQ2: 33 | AR2: 34 | AS2: 35 | AT2: 36 | AU2: 37 | AV2: 38 | AW2: 39 | AX2: 40 | AY2: 41 | AZ2: 42 | BA2: 43 | BB2: 44 | BC2: 45 | BD2: 46 | BE2: 47 | BF2: 48 | BG2: 49 | BH2: 50 | BI2: 51 | BJ2: 52 | BK2: 53 | BL2: 54 | BM2: 55 | BN2: 56 | BO2: 57 | BP2: 58 | BQ2: 59 | BR2: 60 | BS2: 61 | BT2: 62 | BU2: 63 | BV2: 64 | BW2: 65 | BX2: 66 | BY2: 67 | BZ2: 68 | CA2: 69 | CB2: 70
C3: Start of Period | K3: =J4+1 -> 2024-07-01 | L3: =K4+1 -> 2025-01-01 | M3: 2025-07-01 | N3: 2026-01-01 | O3: 2026-07-01 | P3: 2027-01-01 | Q3: 2027-07-01 | R3: 2028-01-01 | S3: 2028-07-01 | T3: 2029-01-01 | U3: 2029-07-01 | V3: 2030-01-01 | W3: 2030-07-01 | X3: 2031-01-01 | Y3: 2031-07-01 | Z3: 2032-01-01 | AA3: 2032-07-01 | AB3: 2033-01-01 | AC3: 2033-07-01 | AD3: 2034-01-01 | AE3: 2034-07-01 | AF3: 2035-01-01 | AG3: 2035-07-01 | AH3: 2036-01-01 | AI3: 2036-07-01 | AJ3: 2037-01-01 | AK3: 2037-07-01 | AL3: 2038-01-01 | AM3: 2038-07-01 | AN3: 2039-01-01 | AO3: 2039-07-01 | AP3: 2040-01-01 | AQ3: 2040-07-01 | AR3: 2041-01-01 | AS3: 2041-07-01 | AT3: 2042-01-01 | AU3: 2042-07-01 | AV3: 2043-01-01 | AW3: 2043-07-01 | AX3: 2044-01-01 | AY3: 2044-07-01 | AZ3: 2045-01-01 | BA3: 2045-07-01 | BB3: 2046-01-01 | BC3: 2046-07-01 | BD3: 2047-01-01 | BE3: 2047-07-01 | BF3: 2048-01-01 | BG3: 2048-07-01 | BH3: 2049-01-01 | BI3: 2049-07-01 | BJ3: 2050-01-01 | BK3: 2050-07-01 | BL3: 2051-01-01 | BM3: 2051-07-01 | BN3: 2052-01-01 | BO3: 2052-07-01 | BP3: 2053-01-01 | BQ3: 2053-07-01 | BR3: 2054-01-01 | BS3: 2054-07-01 | BT3: 2055-01-01 | BU3: 2055-07-01 | BV3: 2056-01-01 | BW3: 2056-07-01 | BX3: =BW4+1 -> 2057-01-01 | BY3: 2057-07-01 | BZ3: 2058-01-01 | CA3: 2058-07-01 | CB3: 2059-01-01
C4: End of Period | J4: =EDATE(InputC!F6,-6) -> 2024-06-30 | K4: =EDATE(K3,6)-1 -> 2024-12-31 | L4: =EDATE(L3,6)-1 -> 2025-06-30 | M4: 2025-12-31 | N4: 2026-06-30 | O4: 2026-12-31 | P4: 2027-06-30 | Q4: 2027-12-31 | R4: 2028-06-30 | S4: 2028-12-31 | T4: 2029-06-30 | U4: 2029-12-31 | V4: 2030-06-30 | W4: 2030-12-31 | X4: 2031-06-30 | Y4: 2031-12-31 | Z4: 2032-06-30 | AA4: 2032-12-31 | AB4: 2033-06-30 | AC4: 2033-12-31 | AD4: 2034-06-30 | AE4: 2034-12-31 | AF4: 2035-06-30 | AG4: 2035-12-31 | AH4: 2036-06-30 | AI4: 2036-12-31 | AJ4: 2037-06-30 | AK4: 2037-12-31 | AL4: 2038-06-30 | AM4: 2038-12-31 | AN4: 2039-06-30 | AO4: 2039-12-31 | AP4: 2040-06-30 | AQ4: 2040-12-31 | AR4: 2041-06-30 | AS4: 2041-12-31 | AT4: 2042-06-30 | AU4: 2042-12-31 | AV4: 2043-06-30 | AW4: 2043-12-31 | AX4: 2044-06-30 | AY4: 2044-12-31 | AZ4: 2045-06-30 | BA4: 2045-12-31 | BB4: 2046-06-30 | BC4: 2046-12-31 | BD4: 2047-06-30 | BE4: 2047-12-31 | BF4: 2048-06-30 | BG4: 2048-12-31 | BH4: 2049-06-30 | BI4: 2049-12-31 | BJ4: 2050-06-30 | BK4: 2050-12-31 | BL4: 2051-06-30 | BM4: 2051-12-31 | BN4: 2052-06-30 | BO4: 2052-12-31 | BP4: 2053-06-30 | BQ4: 2053-12-31 | BR4: 2054-06-30 | BS4: 2054-12-31 | BT4: 2055-06-30 | BU4: 2055-12-31 | BV4: 2056-06-30 | BW4: 2056-12-31 | BX4: =EDATE(BX3,6)-1 -> 2057-06-30 | BY4: 2057-12-31 | BZ4: 2058-06-30 | CA4: 2058-12-31 | CB4: 2059-06-30
C5: Acquisition Period | E5: Flag | F5: =InputC!F6 -> 2024-12-31 | H5: Flag | K5: =(K4=$F$5)*1 -> 1 | L5: =(L4=$F$5)*1 -> 0 | M5: 0 | N5: 0 | O5: 0 | P5: 0 | Q5: 0 | R5: 0 | S5: 0 | T5: 0 | U5: 0 | V5: 0 | W5: 0 | X5: 0 | Y5: 0 | Z5: 0 | AA5: 0 | AB5: 0 | AC5: 0 | AD5: 0 | AE5: 0 | AF5: 0 | AG5: 0 | AH5: 0 | AI5: 0 | AJ5: 0 | AK5: 0 | AL5: 0 | AM5: 0 | AN5: 0 | AO5: 0 | AP5: 0 | AQ5: 0 | AR5: 0 | AS5: 0 | AT5: 0 | AU5: 0 | AV5: 0 | AW5: 0 | AX5: 0 | AY5: 0 | AZ5: 0 | BA5: 0 | BB5: 0 | BC5: 0 | BD5: 0 | BE5: 0 | BF5: 0 | BG5: 0 | BH5: 0 | BI5: 0 | BJ5: 0 | BK5: 0 | BL5: 0 | BM5: 0 | BN5: 0 | BO5: 0 | BP5: 0 | BQ5: 0 | BR5: 0 | BS5: 0 | BT5: 0 | BU5: 0 | BV5: 0 | BW5: 0 | BX5: =(BX4=$F$5)*1 -> 0 | BY5: 0 | BZ5: 0 | CA5: 0 | CB5: 0
C6: Operation Perid | E6: Flag | F6: =InputC!F8 -> 2049-12-31 | H6: Flag | I6: =SUM(K6:XFD6) -> 50 | K6: =(AND(NOT(K5),K4<=$F$6))*1 -> 0 | L6: =(AND(NOT(L5),L4<=$F$6))*1 -> 1 | M6: 1 | N6: 1 | O6: 1 | P6: 1 | Q6: 1 | R6: 1 | S6: 1 | T6: 1 | U6: 1 | V6: 1 | W6: 1 | X6: 1 | Y6: 1 | Z6: 1 | AA6: 1 | AB6: 1 | AC6: 1 | AD6: 1 | AE6: 1 | AF6: 1 | AG6: 1 | AH6: 1 | AI6: 1 | AJ6: 1 | AK6: 1 | AL6: 1 | AM6: 1 | AN6: 1 | AO6: 1 | AP6: 1 | AQ6: 1 | AR6: 1 | AS6: 1 | AT6: 1 | AU6: 1 | AV6: 1 | AW6: 1 | AX6: 1 | AY6: 1 | AZ6: 1 | BA6: 1 | BB6: 1 | BC6: 1 | BD6: 1 | BE6: 1 | BF6: 1 | BG6: 1 | BH6: 1 | BI6: 1 | BJ6: 0 | BK6: 0 | BL6: 0 | BM6: 0 | BN6: 0 | BO6: 0 | BP6: 0 | BQ6: 0 | BR6: 0 | BS6: 0 | BT6: 0 | BU6: 0 | BV6: 0 | BW6: 0 | BX6: =(AND(NOT(BX5),BX4<=$F$6))*1 -> 0 | BY6: 0 | BZ6: 0 | CA6: 0 | CB6: 0
C7: Sale Date | E7: Flag | F7: =InputC!F10 -> 2030-12-31 | H7: Flag | I7: =SUM(K7:XFD7) -> 1 | K7: =(K4=$F$7)*1 -> 0 | L7: =(L4=$F$7)*1 -> 0 | M7: 0 | N7: 0 | O7: 0 | P7: 0 | Q7: 0 | R7: 0 | S7: 0 | T7: 0 | U7: 0 | V7: 0 | W7: 1 | X7: 0 | Y7: 0 | Z7: 0 | AA7: 0 | AB7: 0 | AC7: 0 | AD7: 0 | AE7: 0 | AF7: 0 | AG7: 0 | AH7: 0 | AI7: 0 | AJ7: 0 | AK7: 0 | AL7: 0 | AM7: 0 | AN7: 0 | AO7: 0 | AP7: 0 | AQ7: 0 | AR7: 0 | AS7: 0 | AT7: 0 | AU7: 0 | AV7: 0 | AW7: 0 | AX7: 0 | AY7: 0 | AZ7: 0 | BA7: 0 | BB7: 0 | BC7: 0 | BD7: 0 | BE7: 0 | BF7: 0 | BG7: 0 | BH7: 0 | BI7: 0 | BJ7: 0 | BK7: 0 | BL7: 0 | BM7: 0 | BN7: 0 | BO7: 0 | BP7: 0 | BQ7: 0 | BR7: 0 | BS7: 0 | BT7: 0 | BU7: 0 | BV7: 0 | BW7: 0 | BX7: =(BX4=$F$7)*1 -> 0 | BY7: 0 | BZ7: 0 | CA7: 0 | CB7: 0
C8: Days in Period | E8: Days | K8: =K4-K3+1 -> 184 | L8: =L4-L3+1 -> 181 | M8: 184 | N8: 181 | O8: 184 | P8: 181 | Q8: 184 | R8: 182 | S8: 184 | T8: 181 | U8: 184 | V8: 181 | W8: 184 | X8: 181 | Y8: 184 | Z8: 182 | AA8: 184 | AB8: 181 | AC8: 184 | AD8: 181 | AE8: 184 | AF8: 181 | AG8: 184 | AH8: 182 | AI8: 184 | AJ8: 181 | AK8: 184 | AL8: 181 | AM8: 184 | AN8: 181 | AO8: 184 | AP8: 182 | AQ8: 184 | AR8: 181 | AS8: 184 | AT8: 181 | AU8: 184 | AV8: 181 | AW8: 184 | AX8: 182 | AY8: 184 | AZ8: 181 | BA8: 184 | BB8: 181 | BC8: 184 | BD8: 181 | BE8: 184 | BF8: 182 | BG8: 184 | BH8: 181 | BI8: 184 | BJ8: 181 | BK8: 184 | BL8: 181 | BM8: 184 | BN8: 182 | BO8: 184 | BP8: 181 | BQ8: 184 | BR8: 181 | BS8: 184 | BT8: 181 | BU8: 184 | BV8: 182 | BW8: 184 | BX8: =BX4-BX3+1 -> 181 | BY8: 184 | BZ8: 181 | CA8: 184 | CB8: 181
B10: Capacity and Volumes
C11: Road Capacity | E11: km | F11: =InputC!F13 -> 50 | H11: km | K11: =$F11*K$6 -> 0 | L11: =$F11*L$6 -> 50 | M11: 50 | N11: 50 | O11: 50 | P11: 50 | Q11: 50 | R11: 50 | S11: 50 | T11: 50 | U11: 50 | V11: 50 | W11: 50 | X11: 50 | Y11: 50 | Z11: 50 | AA11: 50 | AB11: 50 | AC11: 50 | AD11: 50 | AE11: 50 | AF11: 50 | AG11: 50 | AH11: 50 | AI11: 50 | AJ11: 50 | AK11: 50 | AL11: 50 | AM11: 50 | AN11: 50 | AO11: 50 | AP11: 50 | AQ11: 50 | AR11: 50 | AS11: 50 | AT11: 50 | AU11: 50 | AV11: 50 | AW11: 50 | AX11: 50 | AY11: 50 | AZ11: 50 | BA11: 50 | BB11: 50 | BC11: 50 | BD11: 50 | BE11: 50 | BF11: 50 | BG11: 50 | BH11: 50 | BI11: 50 | BJ11: 0 | BK11: 0 | BL11: 0 | BM11: 0 | BN11: 0 | BO11: 0 | BP11: 0 | BQ11: 0 | BR11: 0 | BS11: 0 | BT11: 0 | BU11: 0 | BV11: 0 | BW11: 0 | BX11: =$F11*BX$6 -> 0 | BY11: 0 | BZ11: 0 | CA11: 0 | CB11: 0
C13: Car Volumes - Base | E13: Cars/Day | F13: =InputC!F15 -> 3500 | H13: Cars/Period | K13: =$F$13*K6*K8 -> 0 | L13: =$F$13*L6*L8 -> 633500 | M13: 644000 | N13: 633500 | O13: 644000 | P13: 633500 | Q13: 644000 | R13: 637000 | S13: 644000 | T13: 633500 | U13: 644000 | V13: 633500 | W13: 644000 | X13: 633500 | Y13: 644000 | Z13: 637000 | AA13: 644000 | AB13: 633500 | AC13: 644000 | AD13: 633500 | AE13: 644000 | AF13: 633500 | AG13: 644000 | AH13: 637000 | AI13: 644000 | AJ13: 633500 | AK13: 644000 | AL13: 633500 | AM13: 644000 | AN13: 633500 | AO13: 644000 | AP13: 637000 | AQ13: 644000 | AR13: 633500 | AS13: 644000 | AT13: 633500 | AU13: 644000 | AV13: 633500 | AW13: 644000 | AX13: 637000 | AY13: 644000 | AZ13: 633500 | BA13: 644000 | BB13: 633500 | BC13: 644000 | BD13: 633500 | BE13: 644000 | BF13: 637000 | BG13: 644000 | BH13: 633500 | BI13: 644000 | BJ13: 0 | BK13: 0 | BL13: 0 | BM13: 0 | BN13: 0 | BO13: 0 | BP13: 0 | BQ13: 0 | BR13: 0 | BS13: 0 | BT13: 0 | BU13: 0 | BV13: 0 | BW13: 0 | BX13: =$F$13*BX6*BX8 -> 0 | BY13: 0 | BZ13: 0 | CA13: 0 | CB13: 0
C14: Escalation Period | E14: Date | F14: =EDATE(F5,12)+1 -> 2026-01-01 | H14: Flag | K14: =(K3>=$F$14)*1 -> 0 | L14: =(L3>=$F$14)*1 -> 0 | M14: 0 | N14: 1 | O14: 1 | P14: 1 | Q14: 1 | R14: 1 | S14: 1 | T14: 1 | U14: 1 | V14: 1 | W14: 1 | X14: 1 | Y14: 1 | Z14: 1 | AA14: 1 | AB14: 1 | AC14: 1 | AD14: 1 | AE14: 1 | AF14: 1 | AG14: 1 | AH14: 1 | AI14: 1 | AJ14: 1 | AK14: 1 | AL14: 1 | AM14: 1 | AN14: 1 | AO14: 1 | AP14: 1 | AQ14: 1 | AR14: 1 | AS14: 1 | AT14: 1 | AU14: 1 | AV14: 1 | AW14: 1 | AX14: 1 | AY14: 1 | AZ14: 1 | BA14: 1 | BB14: 1 | BC14: 1 | BD14: 1 | BE14: 1 | BF14: 1 | BG14: 1 | BH14: 1 | BI14: 1 | BJ14: 1 | BK14: 1 | BL14: 1 | BM14: 1 | BN14: 1 | BO14: 1 | BP14: 1 | BQ14: 1 | BR14: 1 | BS14: 1 | BT14: 1 | BU14: 1 | BV14: 1 | BW14: 1 | BX14: =(BX3>=$F$14)*1 -> 1 | BY14: 1 | BZ14: 1 | CA14: 1 | CB14: 1
C15: Growth Index | E15: % p.a. | F15: =InputC!F18 -> 0.03 | G15: =(1+F15)^(1/2)-1 -> 0.01488915651 | H15: index | J15: 1 | K15: =J15*(1+$G$15*K14) -> 1 | L15: =K15*(1+$G$15*L14) -> 1 | M15: 1 | N15: 1.014889157 | O15: 1.03 | P15: 1.045335831 | Q15: 1.0609 | R15: 1.076695906 | S15: 1.092727 | T15: 1.108996783 | U15: 1.12550881 | V15: 1.142266687 | W15: 1.159274074 | X15: 1.176534687 | Y15: 1.194052297 | Z15: 1.211830728 | AA15: 1.229873865 | AB15: 1.24818565 | AC15: 1.266770081 | AD15: 1.285631219 | AE15: 1.304773184 | AF15: 1.324200156 | AG15: 1.343916379 | AH15: 1.363926161 | AI15: 1.384233871 | AJ15: 1.404843945 | AK15: 1.425760887 | AL15: 1.446989264 | AM15: 1.468533713 | AN15: 1.490398942 | AO15: 1.512589725 | AP15: 1.53511091 | AQ15: 1.557967417 | AR15: 1.581164237 | AS15: 1.604706439 | AT15: 1.628599164 | AU15: 1.652847632 | AV15: 1.677457139 | AW15: 1.702433061 | AX15: 1.727780854 | AY15: 1.753506053 | AZ15: 1.779614279 | BA15: 1.806111235 | BB15: 1.833002708 | BC15: 1.860294572 | BD15: 1.887992789 | BE15: 1.916103409 | BF15: 1.944632572 | BG15: 1.973586511 | BH15: 2.00297155 | BI15: 2.032794106 | BJ15: 2.063060696 | BK15: 2.09377793 | BL15: 2.124952517 | BM15: 2.156591268 | BN15: 2.188701092 | BO15: 2.221289006 | BP15: 2.254362125 | BQ15: 2.287927676 | BR15: 2.321992989 | BS15: 2.356565506 | BT15: 2.391652779 | BU15: 2.427262471 | BV15: 2.463402362 | BW15: 2.500080345 | BX15: =BW15*(1+$G$15*BX14) -> 2.537304433 | BY15: 2.575082756 | BZ15: 2.613423566 | CA15: 2.652335238 | CB15: 2.691826273
C16: Car Volumes with Growth | E16: Cars/Day | H16: Cars/Period | K16: =K15*K13 -> 0 | L16: =L15*L13 -> 633500 | M16: 644000 | N16: 642932.2806 | O16: 663320 | P16: 662220.2491 | Q16: 683219.6 | R16: 685855.2922 | S16: 703716.188 | T16: 702549.4622 | U16: 724827.6736 | V16: 723625.9461 | W16: 746572.5038 | X16: 745334.7245 | Y16: 768969.679 | Z16: 771936.1738 | AA16: 792038.7693 | AB16: 790725.6092 | AC16: 815799.9324 | AD16: 814447.3775 | AE16: 840273.9304 | AF16: 838880.7988 | AG16: 865482.1483 | AH16: 868820.9643 | AI16: 891446.6127 | AJ16: 889968.6395 | AK16: 918190.0111 | AL16: 916667.6986 | AM16: 945735.7115 | AN16: 944167.7296 | AO16: 974107.7828 | AP16: 977865.6497 | AQ16: 1003331.016 | AR16: 1001667.544 | AS16: 1033430.947 | AT16: 1031717.571 | AU16: 1064433.875 | AV16: 1062669.098 | AW16: 1096366.891 | AX16: 1100596.404 | AY16: 1129257.898 | AZ16: 1127385.646 | BA16: 1163135.635 | BB16: 1161207.215 | BC16: 1198029.704 | BD16: 1196043.432 | BE16: 1233970.595 | BF16: 1238730.949 | BG16: 1270989.713 | BH16: 1268882.477 | BI16: 1309119.405 | BJ16: 0 | BK16: 0 | BL16: 0 | BM16: 0 | BN16: 0 | BO16: 0 | BP16: 0 | BQ16: 0 | BR16: 0 | BS16: 0 | BT16: 0 | BU16: 0 | BV16: 0 | BW16: 0 | BX16: =BX15*BX13 -> 0 | BY16: 0 | BZ16: 0 | CA16: 0 | CB16: 0
C18: Truck Volumes - Base | E18: Trucks/Day | F18: =InputC!F16 -> 1500 | H18: Trucks/Period | K18: =$F$18*K6*K8 -> 0 | L18: =$F$18*L6*L8 -> 271500 | M18: 276000 | N18: 271500 | O18: 276000 | P18: 271500 | Q18: 276000 | R18: 273000 | S18: 276000 | T18: 271500 | U18: 276000 | V18: 271500 | W18: 276000 | X18: 271500 | Y18: 276000 | Z18: 273000 | AA18: 276000 | AB18: 271500 | AC18: 276000 | AD18: 271500 | AE18: 276000 | AF18: 271500 | AG18: 276000 | AH18: 273000 | AI18: 276000 | AJ18: 271500 | AK18: 276000 | AL18: 271500 | AM18: 276000 | AN18: 271500 | AO18: 276000 | AP18: 273000 | AQ18: 276000 | AR18: 271500 | AS18: 276000 | AT18: 271500 | AU18: 276000 | AV18: 271500 | AW18: 276000 | AX18: 273000 | AY18: 276000 | AZ18: 271500 | BA18: 276000 | BB18: 271500 | BC18: 276000 | BD18: 271500 | BE18: 276000 | BF18: 273000 | BG18: 276000 | BH18: 271500 | BI18: 276000 | BJ18: 0 | BK18: 0 | BL18: 0 | BM18: 0 | BN18: 0 | BO18: 0 | BP18: 0 | BQ18: 0 | BR18: 0 | BS18: 0 | BT18: 0 | BU18: 0 | BV18: 0 | BW18: 0 | BX18: =$F$18*BX6*BX8 -> 0 | BY18: 0 | BZ18: 0 | CA18: 0 | CB18: 0
C19: Growth Index | E19: % p.a. | F19: =InputC!F19 -> 0.02 | G19: =(1+F19)^(1/2)-1 -> 0.009950493836 | H19: index | J19: 1 | K19: =J19*(1+$G$19*K14) -> 1 | L19: =K19*(1+$G$19*L14) -> 1 | M19: 1 | N19: 1.009950494 | O19: 1.02 | P19: 1.030149504 | Q19: 1.0404 | R19: 1.050752494 | S19: 1.061208 | T19: 1.071767544 | U19: 1.08243216 | V19: 1.093202895 | W19: 1.104080803 | X19: 1.115066952 | Y19: 1.126162419 | Z19: 1.137368291 | AA19: 1.148685668 | AB19: 1.160115657 | AC19: 1.171659381 | AD19: 1.18331797 | AE19: 1.195092569 | AF19: 1.20698433 | AG19: 1.21899442 | AH19: 1.231124016 | AI19: 1.243374308 | AJ19: 1.255746497 | AK19: 1.268241795 | AL19: 1.280861427 | AM19: 1.29360663 | AN19: 1.306478655 | AO19: 1.319478763 | AP19: 1.332608228 | AQ19: 1.345868338 | AR19: 1.359260393 | AS19: 1.372785705 | AT19: 1.386445601 | AU19: 1.400241419 | AV19: 1.414174513 | AW19: 1.428246248 | AX19: 1.442458003 | AY19: 1.456811173 | AZ19: 1.471307163 | BA19: 1.485947396 | BB19: 1.500733306 | BC19: 1.515666344 | BD19: 1.530747973 | BE19: 1.545979671 | BF19: 1.561362932 | BG19: 1.576899264 | BH19: 1.592590191 | BI19: 1.608437249 | BJ19: 1.624441994 | BK19: 1.640605994 | BL19: 1.656930834 | BM19: 1.673418114 | BN19: 1.690069451 | BO19: 1.706886477 | BP19: 1.72387084 | BQ19: 1.741024206 | BR19: 1.758348257 | BS19: 1.77584469 | BT19: 1.793515222 | BU19: 1.811361584 | BV19: 1.829385526 | BW19: 1.847588816 | BX19: =BW19*(1+$G$19*BX14) -> 1.865973237 | BY19: 1.884540592 | BZ19: 1.903292702 | CA19: 1.922231404 | CB19: 1.941358556
C20: Truck Volumes with Growth | E20: Trucks/Day | H20: Trucks/Period | K20: =K19*K18 -> 0 | L20: =L19*L18 -> 271500 | M20: 276000 | N20: 274201.5591 | O20: 281520 | P20: 279685.5903 | Q20: 287150.4 | R20: 286855.4308 | S20: 292893.408 | T20: 290984.8881 | U20: 298751.2762 | V20: 296804.5859 | W20: 304726.3017 | X20: 302740.6776 | Y20: 310820.8277 | Z20: 310501.5436 | AA20: 317037.2443 | AB20: 314971.401 | AC20: 323377.9892 | AD20: 321270.829 | AE20: 329845.5489 | AF20: 327696.2456 | AG20: 336442.4599 | AH20: 336096.8565 | AI20: 343171.3091 | AJ20: 340935.1739 | AK20: 350034.7353 | AL20: 347753.8774 | AM20: 357035.43 | AN20: 354708.9549 | AO20: 364176.1386 | AP20: 363802.0463 | AQ20: 371459.6614 | AR20: 369039.1967 | AS20: 378888.8546 | AT20: 376419.9806 | AU20: 386466.6317 | AV20: 383948.3802 | AW20: 394195.9643 | AX20: 393791.0348 | AY20: 402079.8836 | AZ20: 399459.8948 | BA20: 410121.4813 | BB20: 407449.0927 | BC20: 418323.9109 | BD20: 415598.0745 | BE20: 426690.3891 | BF20: 426252.0804 | BG20: 435224.1969 | BH20: 432388.2367 | BI20: 443928.6809 | BJ20: 0 | BK20: 0 | BL20: 0 | BM20: 0 | BN20: 0 | BO20: 0 | BP20: 0 | BQ20: 0 | BR20: 0 | BS20: 0 | BT20: 0 | BU20: 0 | BV20: 0 | BW20: 0 | BX20: =BX19*BX18 -> 0 | BY20: 0 | BZ20: 0 | CA20: 0 | CB20: 0
C22: Total Vehicles per Period | E22: Vehicles | K22: =K20+K16 -> 0 | L22: =L20+L16 -> 905000 | M22: 920000 | N22: 917133.8397 | O22: 944840 | P22: 941905.8393 | Q22: 970370 | R22: 972710.723 | S22: 996609.596 | T22: 993534.3503 | U22: 1023578.95 | V22: 1020430.532 | W22: 1051298.806 | X22: 1048075.402 | Y22: 1079790.507 | Z22: 1082437.717 | AA22: 1109076.014 | AB22: 1105697.01 | AC22: 1139177.922 | AD22: 1135718.206 | AE22: 1170119.479 | AF22: 1166577.044 | AG22: 1201924.608 | AH22: 1204917.821 | AI22: 1234617.922 | AJ22: 1230903.813 | AK22: 1268224.746 | AL22: 1264421.576 | AM22: 1302771.141 | AN22: 1298876.685 | AO22: 1338283.921 | AP22: 1341667.696 | AQ22: 1374790.678 | AR22: 1370706.741 | AS22: 1412319.801 | AT22: 1408137.551 | AU22: 1450900.507 | AV22: 1446617.478 | AW22: 1490562.856 | AX22: 1494387.439 | AY22: 1531337.782 | AZ22: 1526845.541 | BA22: 1573257.116 | BB22: 1568656.308 | BC22: 1616353.615 | BD22: 1611641.506 | BE22: 1660660.984 | BF22: 1664983.029 | BG22: 1706213.91 | BH22: 1701270.713 | BI22: 1753048.085 | BJ22: 0 | BK22: 0 | BL22: 0 | BM22: 0 | BN22: 0 | BO22: 0 | BP22: 0 | BQ22: 0 | BR22: 0 | BS22: 0 | BT22: 0 | BU22: 0 | BV22: 0 | BW22: 0 | BX22: =BX20+BX16 -> 0 | BY22: 0 | BZ22: 0 | CA22: 0 | CB22: 0
C24: Total Car Volumes | E24: Cars | H24: Cars/Period | K24: =K16 -> 0 | L24: =L16 -> 633500 | M24: 644000 | N24: 642932.2806 | O24: 663320 | P24: 662220.2491 | Q24: 683219.6 | R24: 685855.2922 | S24: 703716.188 | T24: 702549.4622 | U24: 724827.6736 | V24: 723625.9461 | W24: 746572.5038 | X24: 745334.7245 | Y24: 768969.679 | Z24: 771936.1738 | AA24: 792038.7693 | AB24: 790725.6092 | AC24: 815799.9324 | AD24: 814447.3775 | AE24: 840273.9304 | AF24: 838880.7988 | AG24: 865482.1483 | AH24: 868820.9643 | AI24: 891446.6127 | AJ24: 889968.6395 | AK24: 918190.0111 | AL24: 916667.6986 | AM24: 945735.7115 | AN24: 944167.7296 | AO24: 974107.7828 | AP24: 977865.6497 | AQ24: 1003331.016 | AR24: 1001667.544 | AS24: 1033430.947 | AT24: 1031717.571 | AU24: 1064433.875 | AV24: 1062669.098 | AW24: 1096366.891 | AX24: 1100596.404 | AY24: 1129257.898 | AZ24: 1127385.646 | BA24: 1163135.635 | BB24: 1161207.215 | BC24: 1198029.704 | BD24: 1196043.432 | BE24: 1233970.595 | BF24: 1238730.949 | BG24: 1270989.713 | BH24: 1268882.477 | BI24: 1309119.405 | BJ24: 0 | BK24: 0 | BL24: 0 | BM24: 0 | BN24: 0 | BO24: 0 | BP24: 0 | BQ24: 0 | BR24: 0 | BS24: 0 | BT24: 0 | BU24: 0 | BV24: 0 | BW24: 0 | BX24: =BX16 -> 0 | BY24: 0 | BZ24: 0 | CA24: 0 | CB24: 0
C25: Maximum Volumes | E25: Cars | F25: =InputC!F22 -> 5000 | H25: Cars/Day | K25: =$F$25 -> 5000 | L25: =$F$25 -> 5000 | M25: 5000 | N25: 5000 | O25: 5000 | P25: 5000 | Q25: 5000 | R25: 5000 | S25: 5000 | T25: 5000 | U25: 5000 | V25: 5000 | W25: 5000 | X25: 5000 | Y25: 5000 | Z25: 5000 | AA25: 5000 | AB25: 5000 | AC25: 5000 | AD25: 5000 | AE25: 5000 | AF25: 5000 | AG25: 5000 | AH25: 5000 | AI25: 5000 | AJ25: 5000 | AK25: 5000 | AL25: 5000 | AM25: 5000 | AN25: 5000 | AO25: 5000 | AP25: 5000 | AQ25: 5000 | AR25: 5000 | AS25: 5000 | AT25: 5000 | AU25: 5000 | AV25: 5000 | AW25: 5000 | AX25: 5000 | AY25: 5000 | AZ25: 5000 | BA25: 5000 | BB25: 5000 | BC25: 5000 | BD25: 5000 | BE25: 5000 | BF25: 5000 | BG25: 5000 | BH25: 5000 | BI25: 5000 | BJ25: 5000 | BK25: 5000 | BL25: 5000 | BM25: 5000 | BN25: 5000 | BO25: 5000 | BP25: 5000 | BQ25: 5000 | BR25: 5000 | BS25: 5000 | BT25: 5000 | BU25: 5000 | BV25: 5000 | BW25: 5000 | BX25: =$F$25 -> 5000 | BY25: 5000 | BZ25: 5000 | CA25: 5000 | CB25: 5000
C26: Volumes Capped | E26: Cars | H26: Cars/Period | K26: =K25*K8*K6 -> 0 | L26: =L25*L8*L6 -> 905000 | M26: 920000 | N26: 905000 | O26: 920000 | P26: 905000 | Q26: 920000 | R26: 910000 | S26: 920000 | T26: 905000 | U26: 920000 | V26: 905000 | W26: 920000 | X26: 905000 | Y26: 920000 | Z26: 910000 | AA26: 920000 | AB26: 905000 | AC26: 920000 | AD26: 905000 | AE26: 920000 | AF26: 905000 | AG26: 920000 | AH26: 910000 | AI26: 920000 | AJ26: 905000 | AK26: 920000 | AL26: 905000 | AM26: 920000 | AN26: 905000 | AO26: 920000 | AP26: 910000 | AQ26: 920000 | AR26: 905000 | AS26: 920000 | AT26: 905000 | AU26: 920000 | AV26: 905000 | AW26: 920000 | AX26: 910000 | AY26: 920000 | AZ26: 905000 | BA26: 920000 | BB26: 905000 | BC26: 920000 | BD26: 905000 | BE26: 920000 | BF26: 910000 | BG26: 920000 | BH26: 905000 | BI26: 920000 | BJ26: 0 | BK26: 0 | BL26: 0 | BM26: 0 | BN26: 0 | BO26: 0 | BP26: 0 | BQ26: 0 | BR26: 0 | BS26: 0 | BT26: 0 | BU26: 0 | BV26: 0 | BW26: 0 | BX26: =BX25*BX8*BX6 -> 0 | BY26: 0 | BZ26: 0 | CA26: 0 | CB26: 0
C27: Volumes at Rev Share | E27: Cars | F27: =InputC!F21 -> FALSE | H27: Cars/Period | K27: =IF($F$27,MAX(K24-K26,0),0) -> 0 | L27: =IF($F$27,MAX(L24-L26,0),0) -> 0 | M27: 0 | N27: 0 | O27: 0 | P27: 0 | Q27: 0 | R27: 0 | S27: 0 | T27: 0 | U27: 0 | V27: 0 | W27: 0 | X27: 0 | Y27: 0 | Z27: 0 | AA27: 0 | AB27: 0 | AC27: 0 | AD27: 0 | AE27: 0 | AF27: 0 | AG27: 0 | AH27: 0 | AI27: 0 | AJ27: 0 | AK27: 0 | AL27: 0 | AM27: 0 | AN27: 0 | AO27: 0 | AP27: 0 | AQ27: 0 | AR27: 0 | AS27: 0 | AT27: 0 | AU27: 0 | AV27: 0 | AW27: 0 | AX27: 0 | AY27: 0 | AZ27: 0 | BA27: 0 | BB27: 0 | BC27: 0 | BD27: 0 | BE27: 0 | BF27: 0 | BG27: 0 | BH27: 0 | BI27: 0 | BJ27: 0 | BK27: 0 | BL27: 0 | BM27: 0 | BN27: 0 | BO27: 0 | BP27: 0 | BQ27: 0 | BR27: 0 | BS27: 0 | BT27: 0 | BU27: 0 | BV27: 0 | BW27: 0 | BX27: =IF($F$27,MAX(BX24-BX26,0),0) -> 0 | BY27: 0 | BZ27: 0 | CA27: 0 | CB27: 0
C28: Volumes without Cap | E28: Cars | H28: Cars/Period | K28: =K24-K27 -> 0 | L28: =L24-L27 -> 633500 | M28: 644000 | N28: 642932.2806 | O28: 663320 | P28: 662220.2491 | Q28: 683219.6 | R28: 685855.2922 | S28: 703716.188 | T28: 702549.4622 | U28: 724827.6736 | V28: 723625.9461 | W28: 746572.5038 | X28: 745334.7245 | Y28: 768969.679 | Z28: 771936.1738 | AA28: 792038.7693 | AB28: 790725.6092 | AC28: 815799.9324 | AD28: 814447.3775 | AE28: 840273.9304 | AF28: 838880.7988 | AG28: 865482.1483 | AH28: 868820.9643 | AI28: 891446.6127 | AJ28: 889968.6395 | AK28: 918190.0111 | AL28: 916667.6986 | AM28: 945735.7115 | AN28: 944167.7296 | AO28: 974107.7828 | AP28: 977865.6497 | AQ28: 1003331.016 | AR28: 1001667.544 | AS28: 1033430.947 | AT28: 1031717.571 | AU28: 1064433.875 | AV28: 1062669.098 | AW28: 1096366.891 | AX28: 1100596.404 | AY28: 1129257.898 | AZ28: 1127385.646 | BA28: 1163135.635 | BB28: 1161207.215 | BC28: 1198029.704 | BD28: 1196043.432 | BE28: 1233970.595 | BF28: 1238730.949 | BG28: 1270989.713 | BH28: 1268882.477 | BI28: 1309119.405 | BJ28: 0 | BK28: 0 | BL28: 0 | BM28: 0 | BN28: 0 | BO28: 0 | BP28: 0 | BQ28: 0 | BR28: 0 | BS28: 0 | BT28: 0 | BU28: 0 | BV28: 0 | BW28: 0 | BX28: =BX24-BX27 -> 0 | BY28: 0 | BZ28: 0 | CA28: 0 | CB28: 0
B30: Revenues, Expensea and Cap Exp
C32: Cap Exp/headline Investment | E32: USD | F32: 199858603.1 | G32: headline | I32: =SUM(J32:XFD32) -> 199858603.1 | J32: =$F$32*J5 -> 0 | K32: =$F$32*K5 -> 199858603.1 | L32: =$F$32*L5 -> 0 | M32: =$F$32*M5 -> 0 | N32: =$F$32*N5 -> 0 | O32: =$F$32*O5 -> 0 | P32: =$F$32*P5 -> 0 | Q32: =$F$32*Q5 -> 0 | R32: =$F$32*R5 -> 0 | S32: =$F$32*S5 -> 0 | T32: =$F$32*T5 -> 0 | U32: =$F$32*U5 -> 0 | V32: =$F$32*V5 -> 0 | W32: =$F$32*W5 -> 0 | X32: =$F$32*X5 -> 0 | Y32: =$F$32*Y5 -> 0 | Z32: =$F$32*Z5 -> 0 | AA32: =$F$32*AA5 -> 0 | AB32: =$F$32*AB5 -> 0 | AC32: =$F$32*AC5 -> 0 | AD32: =$F$32*AD5 -> 0 | AE32: =$F$32*AE5 -> 0 | AF32: =$F$32*AF5 -> 0 | AG32: =$F$32*AG5 -> 0 | AH32: =$F$32*AH5 -> 0 | AI32: =$F$32*AI5 -> 0 | AJ32: =$F$32*AJ5 -> 0 | AK32: =$F$32*AK5 -> 0 | AL32: =$F$32*AL5 -> 0 | AM32: =$F$32*AM5 -> 0 | AN32: =$F$32*AN5 -> 0 | AO32: =$F$32*AO5 -> 0 | AP32: =$F$32*AP5 -> 0 | AQ32: =$F$32*AQ5 -> 0 | AR32: =$F$32*AR5 -> 0 | AS32: =$F$32*AS5 -> 0 | AT32: =$F$32*AT5 -> 0 | AU32: =$F$32*AU5 -> 0 | AV32: =$F$32*AV5 -> 0 | AW32: =$F$32*AW5 -> 0 | AX32: =$F$32*AX5 -> 0 | AY32: =$F$32*AY5 -> 0 | AZ32: =$F$32*AZ5 -> 0 | BA32: =$F$32*BA5 -> 0 | BB32: =$F$32*BB5 -> 0 | BC32: =$F$32*BC5 -> 0 | BD32: =$F$32*BD5 -> 0 | BE32: =$F$32*BE5 -> 0 | BF32: =$F$32*BF5 -> 0 | BG32: =$F$32*BG5 -> 0 | BH32: =$F$32*BH5 -> 0 | BI32: =$F$32*BI5 -> 0 | BJ32: =$F$32*BJ5 -> 0 | BK32: =$F$32*BK5 -> 0 | BL32: =$F$32*BL5 -> 0 | BM32: =$F$32*BM5 -> 0 | BN32: =$F$32*BN5 -> 0 | BO32: =$F$32*BO5 -> 0 | BP32: =$F$32*BP5 -> 0 | BQ32: =$F$32*BQ5 -> 0 | BR32: =$F$32*BR5 -> 0 | BS32: =$F$32*BS5 -> 0 | BT32: =$F$32*BT5 -> 0 | BU32: =$F$32*BU5 -> 0 | BV32: =$F$32*BV5 -> 0 | BW32: =$F$32*BW5 -> 0 | BX32: =$F$32*BX5 -> 0 | BY32: =$F$32*BY5 -> 0 | BZ32: =$F$32*BZ5 -> 0 | CA32: =$F$32*CA5 -> 0 | CB32: =$F$32*CB5 -> 0
C34: Car Tolls
D35: Real Toll Rate | E35: USD/Car | F35: 5 | K35: =$F$35 -> 5 | L35: =$F$35 -> 5 | M35: 5 | N35: 5 | O35: 5 | P35: 5 | Q35: 5 | R35: 5 | S35: 5 | T35: 5 | U35: 5 | V35: 5 | W35: 5 | X35: 5 | Y35: 5 | Z35: 5 | AA35: 5 | AB35: 5 | AC35: 5 | AD35: 5 | AE35: 5 | AF35: 5 | AG35: 5 | AH35: 5 | AI35: 5 | AJ35: 5 | AK35: 5 | AL35: 5 | AM35: 5 | AN35: 5 | AO35: 5 | AP35: 5 | AQ35: 5 | AR35: 5 | AS35: 5 | AT35: 5 | AU35: 5 | AV35: 5 | AW35: 5 | AX35: 5 | AY35: 5 | AZ35: 5 | BA35: 5 | BB35: 5 | BC35: 5 | BD35: 5 | BE35: 5 | BF35: 5 | BG35: 5 | BH35: 5 | BI35: 5 | BJ35: 5 | BK35: 5 | BL35: 5 | BM35: 5 | BN35: 5 | BO35: 5 | BP35: 5 | BQ35: 5 | BR35: 5 | BS35: 5 | BT35: 5 | BU35: 5 | BV35: 5 | BW35: 5 | BX35: =$F$35 -> 5 | BY35: 5 | BZ35: 5 | CA35: 5 | CB35: 5
D36: Inflation Applied | E36: Date | F36: =InputC!F29 -> 2026-01-01 | H36: Flag | K36: =(K3>=$F$36)*1 -> 0 | L36: =(L3>=$F$36)*1 -> 0 | M36: 0 | N36: 1 | O36: 1 | P36: 1 | Q36: 1 | R36: 1 | S36: 1 | T36: 1 | U36: 1 | V36: 1 | W36: 1 | X36: 1 | Y36: 1 | Z36: 1 | AA36: 1 | AB36: 1 | AC36: 1 | AD36: 1 | AE36: 1 | AF36: 1 | AG36: 1 | AH36: 1 | AI36: 1 | AJ36: 1 | AK36: 1 | AL36: 1 | AM36: 1 | AN36: 1 | AO36: 1 | AP36: 1 | AQ36: 1 | AR36: 1 | AS36: 1 | AT36: 1 | AU36: 1 | AV36: 1 | AW36: 1 | AX36: 1 | AY36: 1 | AZ36: 1 | BA36: 1 | BB36: 1 | BC36: 1 | BD36: 1 | BE36: 1 | BF36: 1 | BG36: 1 | BH36: 1 | BI36: 1 | BJ36: 1 | BK36: 1 | BL36: 1 | BM36: 1 | BN36: 1 | BO36: 1 | BP36: 1 | BQ36: 1 | BR36: 1 | BS36: 1 | BT36: 1 | BU36: 1 | BV36: 1 | BW36: 1 | BX36: =(BX3>=$F$36)*1 -> 1 | BY36: 1 | BZ36: 1 | CA36: 1 | CB36: 1
D37: Inflation Index | E37: % p.a. | F37: =InputC!F28 -> 0.02 | G37: =(1+F37)^(1/2)-1 -> 0.009950493836 | H37: Index | J37: 1 | K37: =J37*(1+$G$37*K36) -> 1 | L37: =K37*(1+$G$37*L36) -> 1 | M37: 1 | N37: 1.009950494 | O37: 1.02 | P37: 1.030149504 | Q37: 1.0404 | R37: 1.050752494 | S37: 1.061208 | T37: 1.071767544 | U37: 1.08243216 | V37: 1.093202895 | W37: 1.104080803 | X37: 1.115066952 | Y37: 1.126162419 | Z37: 1.137368291 | AA37: 1.148685668 | AB37: 1.160115657 | AC37: 1.171659381 | AD37: 1.18331797 | AE37: 1.195092569 | AF37: 1.20698433 | AG37: 1.21899442 | AH37: 1.231124016 | AI37: 1.243374308 | AJ37: 1.255746497 | AK37: 1.268241795 | AL37: 1.280861427 | AM37: 1.29360663 | AN37: 1.306478655 | AO37: 1.319478763 | AP37: 1.332608228 | AQ37: 1.345868338 | AR37: 1.359260393 | AS37: 1.372785705 | AT37: 1.386445601 | AU37: 1.400241419 | AV37: 1.414174513 | AW37: 1.428246248 | AX37: 1.442458003 | AY37: 1.456811173 | AZ37: 1.471307163 | BA37: 1.485947396 | BB37: 1.500733306 | BC37: 1.515666344 | BD37: 1.530747973 | BE37: 1.545979671 | BF37: 1.561362932 | BG37: 1.576899264 | BH37: 1.592590191 | BI37: 1.608437249 | BJ37: 1.624441994 | BK37: 1.640605994 | BL37: 1.656930834 | BM37: 1.673418114 | BN37: 1.690069451 | BO37: 1.706886477 | BP37: 1.72387084 | BQ37: 1.741024206 | BR37: 1.758348257 | BS37: 1.77584469 | BT37: 1.793515222 | BU37: 1.811361584 | BV37: 1.829385526 | BW37: 1.847588816 | BX37: =BW37*(1+$G$37*BX36) -> 1.865973237 | BY37: 1.884540592 | BZ37: 1.903292702 | CA37: 1.922231404 | CB37: 1.941358556
D38: Inflated Toll Rate | E38: USD/Car | K38: =K35*K37 -> 5 | L38: =L35*L37 -> 5 | M38: 5 | N38: 5.049752469 | O38: 5.1 | P38: 5.150747519 | Q38: 5.202 | R38: 5.253762469 | S38: 5.30604 | T38: 5.358837718 | U38: 5.4121608 | V38: 5.466014473 | W38: 5.520404016 | X38: 5.575334762 | Y38: 5.630812096 | Z38: 5.686841457 | AA38: 5.743428338 | AB38: 5.800578287 | AC38: 5.858296905 | AD38: 5.916589852 | AE38: 5.975462843 | AF38: 6.034921649 | AG38: 6.0949721 | AH38: 6.155620082 | AI38: 6.216871542 | AJ38: 6.278732484 | AK38: 6.341208973 | AL38: 6.404307134 | AM38: 6.468033152 | AN38: 6.532393276 | AO38: 6.597393815 | AP38: 6.663041142 | AQ38: 6.729341692 | AR38: 6.796301965 | AS38: 6.863928525 | AT38: 6.932228004 | AU38: 7.001207096 | AV38: 7.070872564 | AW38: 7.141231238 | AX38: 7.212290015 | AY38: 7.284055863 | AZ38: 7.356535816 | BA38: 7.42973698 | BB38: 7.503666532 | BC38: 7.578331719 | BD38: 7.653739863 | BE38: 7.729898354 | BF38: 7.80681466 | BG38: 7.884496321 | BH38: 7.962950953 | BI38: 8.042186247 | BJ38: 8.122209972 | BK38: 8.203029972 | BL38: 8.284654172 | BM38: 8.367090572 | BN38: 8.450347255 | BO38: 8.534432383 | BP38: 8.6193542 | BQ38: 8.705121031 | BR38: 8.791741284 | BS38: 8.879223451 | BT38: 8.96757611 | BU38: 9.056807921 | BV38: 9.146927632 | BW38: 9.237944079 | BX38: =BX35*BX37 -> 9.329866185 | BY38: 9.422702961 | BZ38: 9.516463508 | CA38: 9.61115702 | CB38: 9.706792778
D39: Capped Toll Rate | E39: USD/Car | F39: =InputC!F32 -> 3 | K39: =$F$39*K37 -> 3 | L39: =$F$39*L37 -> 3 | M39: 3 | N39: 3.029851482 | O39: 3.06 | P39: 3.090448511 | Q39: 3.1212 | R39: 3.152257481 | S39: 3.183624 | T39: 3.215302631 | U39: 3.24729648 | V39: 3.279608684 | W39: 3.31224241 | X39: 3.345200857 | Y39: 3.378487258 | Z39: 3.412104874 | AA39: 3.446057003 | AB39: 3.480346972 | AC39: 3.514978143 | AD39: 3.549953911 | AE39: 3.585277706 | AF39: 3.62095299 | AG39: 3.65698326 | AH39: 3.693372049 | AI39: 3.730122925 | AJ39: 3.76723949 | AK39: 3.804725384 | AL39: 3.84258428 | AM39: 3.880819891 | AN39: 3.919435966 | AO39: 3.958436289 | AP39: 3.997824685 | AQ39: 4.037605015 | AR39: 4.077781179 | AS39: 4.118357115 | AT39: 4.159336802 | AU39: 4.200724258 | AV39: 4.242523538 | AW39: 4.284738743 | AX39: 4.327374009 | AY39: 4.370433518 | AZ39: 4.413921489 | BA39: 4.457842188 | BB39: 4.502199919 | BC39: 4.546999032 | BD39: 4.592243918 | BE39: 4.637939012 | BF39: 4.684088796 | BG39: 4.730697793 | BH39: 4.777770572 | BI39: 4.825311748 | BJ39: 4.873325983 | BK39: 4.921817983 | BL39: 4.970792503 | BM39: 5.020254343 | BN39: 5.070208353 | BO39: 5.12065943 | BP39: 5.17161252 | BQ39: 5.223072619 | BR39: 5.27504477 | BS39: 5.327534071 | BT39: 5.380545666 | BU39: 5.434084752 | BV39: 5.488156579 | BW39: 5.542766447 | BX39: =$F$39*BX37 -> 5.597919711 | BY39: 5.653621776 | BZ39: 5.709878105 | CA39: 5.766694212 | CB39: 5.824075667
D41: Volumes with witout Cap | E41: Cars/Period | G41: Cars/Period | K41: =K28 -> 0 | L41: =L28 -> 633500 | M41: 644000 | N41: 642932.2806 | O41: 663320 | P41: 662220.2491 | Q41: 683219.6 | R41: 685855.2922 | S41: 703716.188 | T41: 702549.4622 | U41: 724827.6736 | V41: 723625.9461 | W41: 746572.5038 | X41: 745334.7245 | Y41: 768969.679 | Z41: 771936.1738 | AA41: 792038.7693 | AB41: 790725.6092 | AC41: 815799.9324 | AD41: 814447.3775 | AE41: 840273.9304 | AF41: 838880.7988 | AG41: 865482.1483 | AH41: 868820.9643 | AI41: 891446.6127 | AJ41: 889968.6395 | AK41: 918190.0111 | AL41: 916667.6986 | AM41: 945735.7115 | AN41: 944167.7296 | AO41: 974107.7828 | AP41: 977865.6497 | AQ41: 1003331.016 | AR41: 1001667.544 | AS41: 1033430.947 | AT41: 1031717.571 | AU41: 1064433.875 | AV41: 1062669.098 | AW41: 1096366.891 | AX41: 1100596.404 | AY41: 1129257.898 | AZ41: 1127385.646 | BA41: 1163135.635 | BB41: 1161207.215 | BC41: 1198029.704 | BD41: 1196043.432 | BE41: 1233970.595 | BF41: 1238730.949 | BG41: 1270989.713 | BH41: 1268882.477 | BI41: 1309119.405 | BJ41: 0 | BK41: 0 | BL41: 0 | BM41: 0 | BN41: 0 | BO41: 0 | BP41: 0 | BQ41: 0 | BR41: 0 | BS41: 0 | BT41: 0 | BU41: 0 | BV41: 0 | BW41: 0 | BX41: =BX28 -> 0 | BY41: 0 | BZ41: 0 | CA41: 0 | CB41: 0
D42: Volumes at Capped Rate | E42: Cars/Period | G42: Cars/Period | K42: =K27 -> 0 | L42: =L27 -> 0 | M42: 0 | N42: 0 | O42: 0 | P42: 0 | Q42: 0 | R42: 0 | S42: 0 | T42: 0 | U42: 0 | V42: 0 | W42: 0 | X42: 0 | Y42: 0 | Z42: 0 | AA42: 0 | AB42: 0 | AC42: 0 | AD42: 0 | AE42: 0 | AF42: 0 | AG42: 0 | AH42: 0 | AI42: 0 | AJ42: 0 | AK42: 0 | AL42: 0 | AM42: 0 | AN42: 0 | AO42: 0 | AP42: 0 | AQ42: 0 | AR42: 0 | AS42: 0 | AT42: 0 | AU42: 0 | AV42: 0 | AW42: 0 | AX42: 0 | AY42: 0 | AZ42: 0 | BA42: 0 | BB42: 0 | BC42: 0 | BD42: 0 | BE42: 0 | BF42: 0 | BG42: 0 | BH42: 0 | BI42: 0 | BJ42: 0 | BK42: 0 | BL42: 0 | BM42: 0 | BN42: 0 | BO42: 0 | BP42: 0 | BQ42: 0 | BR42: 0 | BS42: 0 | BT42: 0 | BU42: 0 | BV42: 0 | BW42: 0 | BX42: =BX27 -> 0 | BY42: 0 | BZ42: 0 | CA42: 0 | CB42: 0
D44: Car Toll Revenue | E44: USD | I44: =SUM(K44:XFD44) -> 303957800 | K44: =K41*K38+K39*K42 -> 0 | L44: =L41*L38+L39*L42 -> 3167500 | M44: 3220000 | N44: 3246648.872 | O44: 3382932 | P44: 3410929.305 | Q44: 3554108.359 | R44: 3603320.793 | S44: 3733946.242 | T44: 3764848.557 | U44: 3922883.922 | V44: 3955349.894 | W44: 4121381.848 | X44: 4155490.599 | Y44: 4329923.77 | Z44: 4389878.635 | AA44: 4549017.913 | AB44: 4586665.799 | AC44: 4779198.219 | AD44: 4818751.089 | AE44: 5021025.649 | AF44: 5062579.894 | AG44: 5275089.547 | AH44: 5348131.776 | AI44: 5542009.078 | AJ44: 5587875.006 | AK44: 5822434.737 | AL44: 5870621.482 | AM44: 6117049.935 | AN44: 6167674.929 | AO44: 6426572.662 | AP44: 6515559.055 | AQ44: 6751757.238 | AR44: 6807635.099 | AS44: 7093396.155 | AT44: 7152101.435 | AU44: 7452322 | AV44: 7513997.768 | AW44: 7829409.493 | AX44: 7937820.453 | AY44: 8225577.614 | AZ44: 8293652.882 | BA44: 8641791.841 | BB44: 8713311.717 | BC44: 9079066.508 | BD44: 9154205.29 | BE44: 9538467.273 | BF44: 9670542.929 | BG44: 10021113.72 | BH44: 10104048.93 | BI44: 10528182.07 | BJ44: 0 | BK44: 0 | BL44: 0 | BM44: 0 | BN44: 0 | BO44: 0 | BP44: 0 | BQ44: 0 | BR44: 0 | BS44: 0 | BT44: 0 | BU44: 0 | BV44: 0 | BW44: 0 | BX44: =BX41*BX38+BX39*BX42 -> 0 | BY44: 0 | BZ44: 0 | CA44: 0 | CB44: 0
C46: Truck Tolls
D47: Real Toll Rate | E47: USD/Truck | F47: 10 | K47: =$F$47 -> 10 | L47: =$F$47 -> 10 | M47: 10 | N47: 10 | O47: 10 | P47: 10 | Q47: 10 | R47: 10 | S47: 10 | T47: 10 | U47: 10 | V47: 10 | W47: 10 | X47: 10 | Y47: 10 | Z47: 10 | AA47: 10 | AB47: 10 | AC47: 10 | AD47: 10 | AE47: 10 | AF47: 10 | AG47: 10 | AH47: 10 | AI47: 10 | AJ47: 10 | AK47: 10 | AL47: 10 | AM47: 10 | AN47: 10 | AO47: 10 | AP47: 10 | AQ47: 10 | AR47: 10 | AS47: 10 | AT47: 10 | AU47: 10 | AV47: 10 | AW47: 10 | AX47: 10 | AY47: 10 | AZ47: 10 | BA47: 10 | BB47: 10 | BC47: 10 | BD47: 10 | BE47: 10 | BF47: 10 | BG47: 10 | BH47: 10 | BI47: 10 | BJ47: 10 | BK47: 10 | BL47: 10 | BM47: 10 | BN47: 10 | BO47: 10 | BP47: 10 | BQ47: 10 | BR47: 10 | BS47: 10 | BT47: 10 | BU47: 10 | BV47: 10 | BW47: 10 | BX47: =$F$47 -> 10 | BY47: 10 | BZ47: 10 | CA47: 10 | CB47: 10
D48: Inflation Index | E48: Index | K48: =K37 -> 1 | L48: =L37 -> 1 | M48: 1 | N48: 1.009950494 | O48: 1.02 | P48: 1.030149504 | Q48: 1.0404 | R48: 1.050752494 | S48: 1.061208 | T48: 1.071767544 | U48: 1.08243216 | V48: 1.093202895 | W48: 1.104080803 | X48: 1.115066952 | Y48: 1.126162419 | Z48: 1.137368291 | AA48: 1.148685668 | AB48: 1.160115657 | AC48: 1.171659381 | AD48: 1.18331797 | AE48: 1.195092569 | AF48: 1.20698433 | AG48: 1.21899442 | AH48: 1.231124016 | AI48: 1.243374308 | AJ48: 1.255746497 | AK48: 1.268241795 | AL48: 1.280861427 | AM48: 1.29360663 | AN48: 1.306478655 | AO48: 1.319478763 | AP48: 1.332608228 | AQ48: 1.345868338 | AR48: 1.359260393 | AS48: 1.372785705 | AT48: 1.386445601 | AU48: 1.400241419 | AV48: 1.414174513 | AW48: 1.428246248 | AX48: 1.442458003 | AY48: 1.456811173 | AZ48: 1.471307163 | BA48: 1.485947396 | BB48: 1.500733306 | BC48: 1.515666344 | BD48: 1.530747973 | BE48: 1.545979671 | BF48: 1.561362932 | BG48: 1.576899264 | BH48: 1.592590191 | BI48: 1.608437249 | BJ48: 1.624441994 | BK48: 1.640605994 | BL48: 1.656930834 | BM48: 1.673418114 | BN48: 1.690069451 | BO48: 1.706886477 | BP48: 1.72387084 | BQ48: 1.741024206 | BR48: 1.758348257 | BS48: 1.77584469 | BT48: 1.793515222 | BU48: 1.811361584 | BV48: 1.829385526 | BW48: 1.847588816 | BX48: =BX37 -> 1.865973237 | BY48: 1.884540592 | BZ48: 1.903292702 | CA48: 1.922231404 | CB48: 1.941358556
D49: Inflated Toll Rate | E49: USD/ruck | K49: =K47*K48 -> 10 | L49: =L47*L48 -> 10 | M49: 10 | N49: 10.09950494 | O49: 10.2 | P49: 10.30149504 | Q49: 10.404 | R49: 10.50752494 | S49: 10.61208 | T49: 10.71767544 | U49: 10.8243216 | V49: 10.93202895 | W49: 11.04080803 | X49: 11.15066952 | Y49: 11.26162419 | Z49: 11.37368291 | AA49: 11.48685668 | AB49: 11.60115657 | AC49: 11.71659381 | AD49: 11.8331797 | AE49: 11.95092569 | AF49: 12.0698433 | AG49: 12.1899442 | AH49: 12.31124016 | AI49: 12.43374308 | AJ49: 12.55746497 | AK49: 12.68241795 | AL49: 12.80861427 | AM49: 12.9360663 | AN49: 13.06478655 | AO49: 13.19478763 | AP49: 13.32608228 | AQ49: 13.45868338 | AR49: 13.59260393 | AS49: 13.72785705 | AT49: 13.86445601 | AU49: 14.00241419 | AV49: 14.14174513 | AW49: 14.28246248 | AX49: 14.42458003 | AY49: 14.56811173 | AZ49: 14.71307163 | BA49: 14.85947396 | BB49: 15.00733306 | BC49: 15.15666344 | BD49: 15.30747973 | BE49: 15.45979671 | BF49: 15.61362932 | BG49: 15.76899264 | BH49: 15.92590191 | BI49: 16.08437249 | BJ49: 16.24441994 | BK49: 16.40605994 | BL49: 16.56930834 | BM49: 16.73418114 | BN49: 16.90069451 | BO49: 17.06886477 | BP49: 17.2387084 | BQ49: 17.41024206 | BR49: 17.58348257 | BS49: 17.7584469 | BT49: 17.93515222 | BU49: 18.11361584 | BV49: 18.29385526 | BW49: 18.47588816 | BX49: =BX47*BX48 -> 18.65973237 | BY49: 18.84540592 | BZ49: 19.03292702 | CA49: 19.22231404 | CB49: 19.41358556
D51: Truck Volumes | E51: trucks/Period | G51: trucks/Period | K51: =K20 -> 0 | L51: =L20 -> 271500 | M51: 276000 | N51: 274201.5591 | O51: 281520 | P51: 279685.5903 | Q51: 287150.4 | R51: 286855.4308 | S51: 292893.408 | T51: 290984.8881 | U51: 298751.2762 | V51: 296804.5859 | W51: 304726.3017 | X51: 302740.6776 | Y51: 310820.8277 | Z51: 310501.5436 | AA51: 317037.2443 | AB51: 314971.401 | AC51: 323377.9892 | AD51: 321270.829 | AE51: 329845.5489 | AF51: 327696.2456 | AG51: 336442.4599 | AH51: 336096.8565 | AI51: 343171.3091 | AJ51: 340935.1739 | AK51: 350034.7353 | AL51: 347753.8774 | AM51: 357035.43 | AN51: 354708.9549 | AO51: 364176.1386 | AP51: 363802.0463 | AQ51: 371459.6614 | AR51: 369039.1967 | AS51: 378888.8546 | AT51: 376419.9806 | AU51: 386466.6317 | AV51: 383948.3802 | AW51: 394195.9643 | AX51: 393791.0348 | AY51: 402079.8836 | AZ51: 399459.8948 | BA51: 410121.4813 | BB51: 407449.0927 | BC51: 418323.9109 | BD51: 415598.0745 | BE51: 426690.3891 | BF51: 426252.0804 | BG51: 435224.1969 | BH51: 432388.2367 | BI51: 443928.6809 | BJ51: 0 | BK51: 0 | BL51: 0 | BM51: 0 | BN51: 0 | BO51: 0 | BP51: 0 | BQ51: 0 | BR51: 0 | BS51: 0 | BT51: 0 | BU51: 0 | BV51: 0 | BW51: 0 | BX51: =BX20 -> 0 | BY51: 0 | BZ51: 0 | CA51: 0 | CB51: 0
D53: Truck Toll Revenue | E53: USD | I53: =SUM(K53:XFD53) -> 227221011.6 | K53: =K51*K49 -> 0 | L53: =L51*L49 -> 2715000 | M53: 2760000 | N53: 2769300 | O53: 2871504 | P53: 2881179.72 | Q53: 2987512.762 | R53: 3014140.593 | S53: 3108208.277 | T53: 3118681.588 | U53: 3233779.892 | V53: 3244676.324 | W53: 3364424.599 | X53: 3375761.247 | Y53: 3500347.353 | Z53: 3531546.101 | AA53: 3641761.386 | AB53: 3654032.539 | AC53: 3788888.546 | AD53: 3801655.453 | AE53: 3941959.643 | AF53: 3955242.333 | AG53: 4101214.813 | AH53: 4137769.119 | AI53: 4266903.891 | AJ53: 4281281.502 | AK53: 4439286.809 | AL53: 4454245.275 | AM53: 4618633.996 | AN53: 4634196.784 | AO53: 4805226.809 | AP53: 4848056.005 | AQ53: 4999357.972 | AR53: 5016203.635 | AS53: 5201332.034 | AT53: 5218858.262 | AU53: 5411465.848 | AV53: 5429700.135 | AW53: 5630089.069 | AX53: 5680270.297 | AY53: 5857544.667 | AZ53: 5877282.046 | BA53: 6094189.472 | BB53: 6114724.24 | BC53: 6340394.726 | BD53: 6361759.1 | BE53: 6596546.673 | BF53: 6655341.98 | BG53: 6863047.159 | BH53: 6886172.644 | BI53: 7140314.264 | BJ53: 0 | BK53: 0 | BL53: 0 | BM53: 0 | BN53: 0 | BO53: 0 | BP53: 0 | BQ53: 0 | BR53: 0 | BS53: 0 | BT53: 0 | BU53: 0 | BV53: 0 | BW53: 0 | BX53: =BX51*BX49 -> 0 | BY53: 0 | BZ53: 0 | CA53: 0 | CB53: 0
D55: Total Revenues | E55: USD | I55: =SUM(K55:XFD55) -> 531178811.6 | K55: =K53+K44 -> 0 | L55: =L53+L44 -> 5882500 | M55: 5980000 | N55: 6015948.872 | O55: 6254436 | P55: 6292109.025 | Q55: 6541621.121 | R55: 6617461.386 | S55: 6842154.519 | T55: 6883530.145 | U55: 7156663.814 | V55: 7200026.218 | W55: 7485806.448 | X55: 7531251.846 | Y55: 7830271.123 | Z55: 7921424.737 | AA55: 8190779.299 | AB55: 8240698.338 | AC55: 8568086.765 | AD55: 8620406.542 | AE55: 8962985.292 | AF55: 9017822.227 | AG55: 9376304.36 | AH55: 9485900.895 | AI55: 9808912.969 | AJ55: 9869156.509 | AK55: 10261721.55 | AL55: 10324866.76 | AM55: 10735683.93 | AN55: 10801871.71 | AO55: 11231799.47 | AP55: 11363615.06 | AQ55: 11751115.21 | AR55: 11823838.73 | AS55: 12294728.19 | AT55: 12370959.7 | AU55: 12863787.85 | AV55: 12943697.9 | AW55: 13459498.56 | AX55: 13618090.75 | AY55: 14083122.28 | AZ55: 14170934.93 | BA55: 14735981.31 | BB55: 14828035.96 | BC55: 15419461.23 | BD55: 15515964.39 | BE55: 16135013.95 | BF55: 16325884.91 | BG55: 16884160.88 | BH55: 16990221.57 | BI55: 17668496.34 | BJ55: 0 | BK55: 0 | BL55: 0 | BM55: 0 | BN55: 0 | BO55: 0 | BP55: 0 | BQ55: 0 | BR55: 0 | BS55: 0 | BT55: 0 | BU55: 0 | BV55: 0 | BW55: 0 | BX55: =BX53+BX44 -> 0 | BY55: 0 | BZ55: 0 | CA55: 0 | CB55: 0
C57: Operating Expenditures
D58: Inflation Index for Op Exp | E58: Index | K58: =K48 -> 1 | L58: =L48 -> 1 | M58: 1 | N58: 1.009950494 | O58: 1.02 | P58: 1.030149504 | Q58: 1.0404 | R58: 1.050752494 | S58: 1.061208 | T58: 1.071767544 | U58: 1.08243216 | V58: 1.093202895 | W58: 1.104080803 | X58: 1.115066952 | Y58: 1.126162419 | Z58: 1.137368291 | AA58: 1.148685668 | AB58: 1.160115657 | AC58: 1.171659381 | AD58: 1.18331797 | AE58: 1.195092569 | AF58: 1.20698433 | AG58: 1.21899442 | AH58: 1.231124016 | AI58: 1.243374308 | AJ58: 1.255746497 | AK58: 1.268241795 | AL58: 1.280861427 | AM58: 1.29360663 | AN58: 1.306478655 | AO58: 1.319478763 | AP58: 1.332608228 | AQ58: 1.345868338 | AR58: 1.359260393 | AS58: 1.372785705 | AT58: 1.386445601 | AU58: 1.400241419 | AV58: 1.414174513 | AW58: 1.428246248 | AX58: 1.442458003 | AY58: 1.456811173 | AZ58: 1.471307163 | BA58: 1.485947396 | BB58: 1.500733306 | BC58: 1.515666344 | BD58: 1.530747973 | BE58: 1.545979671 | BF58: 1.561362932 | BG58: 1.576899264 | BH58: 1.592590191 | BI58: 1.608437249 | BJ58: 1.624441994 | BK58: 1.640605994 | BL58: 1.656930834 | BM58: 1.673418114 | BN58: 1.690069451 | BO58: 1.706886477 | BP58: 1.72387084 | BQ58: 1.741024206 | BR58: 1.758348257 | BS58: 1.77584469 | BT58: 1.793515222 | BU58: 1.811361584 | BV58: 1.829385526 | BW58: 1.847588816 | BX58: =BX48 -> 1.865973237 | BY58: 1.884540592 | BZ58: 1.903292702 | CA58: 1.922231404 | CB58: 1.941358556
D60: Fixed Op Exp- Real | E60: Fix/km-yr | F60: =InputC!F36 -> 10000 | G60: =F60/2 -> 5000 | H60: USD/period | K60: =$G$60*K11 -> 0 | L60: =$G$60*L11 -> 250000 | M60: 250000 | N60: 250000 | O60: 250000 | P60: 250000 | Q60: 250000 | R60: 250000 | S60: 250000 | T60: 250000 | U60: 250000 | V60: 250000 | W60: 250000 | X60: 250000 | Y60: 250000 | Z60: 250000 | AA60: 250000 | AB60: 250000 | AC60: 250000 | AD60: 250000 | AE60: 250000 | AF60: 250000 | AG60: 250000 | AH60: 250000 | AI60: 250000 | AJ60: 250000 | AK60: 250000 | AL60: 250000 | AM60: 250000 | AN60: 250000 | AO60: 250000 | AP60: 250000 | AQ60: 250000 | AR60: 250000 | AS60: 250000 | AT60: 250000 | AU60: 250000 | AV60: 250000 | AW60: 250000 | AX60: 250000 | AY60: 250000 | AZ60: 250000 | BA60: 250000 | BB60: 250000 | BC60: 250000 | BD60: 250000 | BE60: 250000 | BF60: 250000 | BG60: 250000 | BH60: 250000 | BI60: 250000 | BJ60: 0 | BK60: 0 | BL60: 0 | BM60: 0 | BN60: 0 | BO60: 0 | BP60: 0 | BQ60: 0 | BR60: 0 | BS60: 0 | BT60: 0 | BU60: 0 | BV60: 0 | BW60: 0 | BX60: =$G$60*BX11 -> 0 | BY60: 0 | BZ60: 0 | CA60: 0 | CB60: 0
D61: Variable Expense | E61: USD/vehicle | F61: =InputC!F35 -> 2 | G61: =F61/2 -> 1 | H61: USD/period | K61: =$G$61*K22 -> 0 | L61: =$G$61*L22 -> 905000 | M61: 920000 | N61: 917133.8397 | O61: 944840 | P61: 941905.8393 | Q61: 970370 | R61: 972710.723 | S61: 996609.596 | T61: 993534.3503 | U61: 1023578.95 | V61: 1020430.532 | W61: 1051298.806 | X61: 1048075.402 | Y61: 1079790.507 | Z61: 1082437.717 | AA61: 1109076.014 | AB61: 1105697.01 | AC61: 1139177.922 | AD61: 1135718.206 | AE61: 1170119.479 | AF61: 1166577.044 | AG61: 1201924.608 | AH61: 1204917.821 | AI61: 1234617.922 | AJ61: 1230903.813 | AK61: 1268224.746 | AL61: 1264421.576 | AM61: 1302771.141 | AN61: 1298876.685 | AO61: 1338283.921 | AP61: 1341667.696 | AQ61: 1374790.678 | AR61: 1370706.741 | AS61: 1412319.801 | AT61: 1408137.551 | AU61: 1450900.507 | AV61: 1446617.478 | AW61: 1490562.856 | AX61: 1494387.439 | AY61: 1531337.782 | AZ61: 1526845.541 | BA61: 1573257.116 | BB61: 1568656.308 | BC61: 1616353.615 | BD61: 1611641.506 | BE61: 1660660.984 | BF61: 1664983.029 | BG61: 1706213.91 | BH61: 1701270.713 | BI61: 1753048.085 | BJ61: 0 | BK61: 0 | BL61: 0 | BM61: 0 | BN61: 0 | BO61: 0 | BP61: 0 | BQ61: 0 | BR61: 0 | BS61: 0 | BT61: 0 | BU61: 0 | BV61: 0 | BW61: 0 | BX61: =$G$61*BX22 -> 0 | BY61: 0 | BZ61: 0 | CA61: 0 | CB61: 0
D62: Total Expense | E62: USD | I62: =SUM(K62:XFD62) -> 99452379.84 | K62: =SUM(K60:K61)*K58 -> 0 | L62: =SUM(L60:L61)*L58 -> 1155000 | M62: 1170000 | N62: 1178747.398 | O62: 1218736.8 | P62: 1227841.209 | Q62: 1269672.948 | R62: 1284766.341 | S62: 1322912.076 | T62: 1332779.756 | U62: 1378562.814 | V62: 1388838.335 | W62: 1436739.03 | X62: 1447440.983 | Y62: 1497560.094 | Z62: 1515472.41 | AA62: 1561151.138 | AB62: 1572765.328 | AC62: 1627643.344 | AD62: 1639745.256 | AE62: 1697174.236 | AF62: 1709786.295 | AG62: 1769887.996 | AH62: 1791184.271 | AI62: 1845935.782 | AJ62: 1859639.776 | AK62: 1925476.077 | AL62: 1939764.18 | AM62: 2008675.044 | AN62: 2023574.328 | AO62: 2095706.904 | AP62: 2121069.469 | AQ62: 2186754.329 | AR62: 2202962.482 | AS62: 2282008.861 | AT62: 2298917.513 | AU62: 2381671.34 | AV62: 2399313.195 | AW62: 2485952.367 | AX62: 2516205.621 | AY62: 2595072.783 | AZ62: 2614285.572 | BA62: 2709264.164 | BB62: 2729318.094 | BC62: 2828769.36 | BD62: 2849703.961 | BE62: 2953843.04 | BF62: 2989983.517 | BG62: 3084752.275 | BH62: 3107574.597 | BI62: 3221777.153 | BJ62: 0 | BK62: 0 | BL62: 0 | BM62: 0 | BN62: 0 | BO62: 0 | BP62: 0 | BQ62: 0 | BR62: 0 | BS62: 0 | BT62: 0 | BU62: 0 | BV62: 0 | BW62: 0 | BX62: =SUM(BX60:BX61)*BX58 -> 0 | BY62: 0 | BZ62: 0 | CA62: 0 | CB62: 0
D64: EBITDA | E64: USD | I64: =SUM(K64:XFD64) -> 431726431.7 | K64: =K55-K62 -> 0 | L64: =L55-L62 -> 4727500 | M64: 4810000 | N64: 4837201.474 | O64: 5035699.2 | P64: 5064267.816 | Q64: 5271948.173 | R64: 5332695.045 | S64: 5519242.443 | T64: 5550750.389 | U64: 5778101 | V64: 5811187.883 | W64: 6049067.417 | X64: 6083810.864 | Y64: 6332711.029 | Z64: 6405952.327 | AA64: 6629628.161 | AB64: 6667933.01 | AC64: 6940443.422 | AD64: 6980661.286 | AE64: 7265811.056 | AF64: 7308035.933 | AG64: 7606416.364 | AH64: 7694716.624 | AI64: 7962977.187 | AJ64: 8009516.733 | AK64: 8336245.469 | AL64: 8385102.576 | AM64: 8727008.886 | AN64: 8778297.385 | AO64: 9136092.567 | AP64: 9242545.591 | AQ64: 9564360.881 | AR64: 9620876.253 | AS64: 10012719.33 | AT64: 10072042.18 | AU64: 10482116.51 | AV64: 10544384.71 | AW64: 10973546.19 | AX64: 11101885.13 | AY64: 11488049.5 | AZ64: 11556649.36 | BA64: 12026717.15 | BB64: 12098717.86 | BC64: 12590691.87 | BD64: 12666260.43 | BE64: 13181170.91 | BF64: 13335901.39 | BG64: 13799408.6 | BH64: 13882646.97 | BI64: 14446719.18 | BJ64: 0 | BK64: 0 | BL64: 0 | BM64: 0 | BN64: 0 | BO64: 0 | BP64: 0 | BQ64: 0 | BR64: 0 | BS64: 0 | BT64: 0 | BU64: 0 | BV64: 0 | BW64: 0 | BX64: =BX55-BX62 -> 0 | BY64: 0 | BZ64: 0 | CA64: 0 | CB64: 0
B66: Working Capital
C67: A/R Outstanding | E67: % Revenues | F67: =InputC!F40 -> 0.08219178082 | H67: USD | K67: =K55*$F$67 -> 0 | L67: =L55*$F$67 -> 483493.1507 | M67: 491506.8493 | N67: 494461.5511 | O67: 514063.2329 | P67: 517159.6459 | Q67: 537667.4894 | R67: 543900.9358 | S67: 562368.8646 | T67: 565769.6009 | U67: 588218.9436 | V67: 591782.9768 | W67: 615271.7628 | X67: 619007.0011 | Y67: 643583.9279 | Z67: 651076.0057 | AA67: 673214.7369 | AB67: 677317.6716 | AC67: 704226.3095 | AD67: 708526.5651 | AE67: 736683.7227 | AF67: 741190.868 | AG67: 770655.1529 | AH67: 779663.0872 | AI67: 806212.0249 | AJ67: 811163.5486 | AK67: 843429.1682 | AL67: 848619.1855 | AM67: 882384.9806 | AN67: 887825.0723 | AO67: 923161.6003 | AP67: 933995.7583 | AQ67: 965845.0858 | AR67: 971822.3617 | AS67: 1010525.605 | AT67: 1016791.208 | AU67: 1057297.631 | AV67: 1063865.581 | AW67: 1106260.156 | AX67: 1119295.13 | AY67: 1157516.9 | AZ67: 1164734.378 | BA67: 1211176.546 | BB67: 1218742.681 | BC67: 1267352.978 | BD67: 1275284.744 | BE67: 1326165.53 | BF67: 1341853.554 | BG67: 1387739.25 | BH67: 1396456.567 | BI67: 1452205.178 | BJ67: 0 | BK67: 0 | BL67: 0 | BM67: 0 | BN67: 0 | BO67: 0 | BP67: 0 | BQ67: 0 | BR67: 0 | BS67: 0 | BT67: 0 | BU67: 0 | BV67: 0 | BW67: 0 | BX67: =BX55*$F$67 -> 0 | BY67: 0 | BZ67: 0 | CA67: 0 | CB67: 0
C68: A/P Outstanding | E68: % Expense | F68: =InputC!F43 -> 0 | H68: USD | K68: =$F$68*K62 -> 0 | L68: =$F$68*L62 -> 0 | M68: 0 | N68: 0 | O68: 0 | P68: 0 | Q68: 0 | R68: 0 | S68: 0 | T68: 0 | U68: 0 | V68: 0 | W68: 0 | X68: 0 | Y68: 0 | Z68: 0 | AA68: 0 | AB68: 0 | AC68: 0 | AD68: 0 | AE68: 0 | AF68: 0 | AG68: 0 | AH68: 0 | AI68: 0 | AJ68: 0 | AK68: 0 | AL68: 0 | AM68: 0 | AN68: 0 | AO68: 0 | AP68: 0 | AQ68: 0 | AR68: 0 | AS68: 0 | AT68: 0 | AU68: 0 | AV68: 0 | AW68: 0 | AX68: 0 | AY68: 0 | AZ68: 0 | BA68: 0 | BB68: 0 | BC68: 0 | BD68: 0 | BE68: 0 | BF68: 0 | BG68: 0 | BH68: 0 | BI68: 0 | BJ68: 0 | BK68: 0 | BL68: 0 | BM68: 0 | BN68: 0 | BO68: 0 | BP68: 0 | BQ68: 0 | BR68: 0 | BS68: 0 | BT68: 0 | BU68: 0 | BV68: 0 | BW68: 0 | BX68: =$F$68*BX62 -> 0 | BY68: 0 | BZ68: 0 | CA68: 0 | CB68: 0
C69: Net Working Capital | E69: USD | H69: USD | K69: =K67-K68 -> 0 | L69: =L67-L68 -> 483493.1507 | M69: 491506.8493 | N69: 494461.5511 | O69: 514063.2329 | P69: 517159.6459 | Q69: 537667.4894 | R69: 543900.9358 | S69: 562368.8646 | T69: 565769.6009 | U69: 588218.9436 | V69: 591782.9768 | W69: 615271.7628 | X69: 619007.0011 | Y69: 643583.9279 | Z69: 651076.0057 | AA69: 673214.7369 | AB69: 677317.6716 | AC69: 704226.3095 | AD69: 708526.5651 | AE69: 736683.7227 | AF69: 741190.868 | AG69: 770655.1529 | AH69: 779663.0872 | AI69: 806212.0249 | AJ69: 811163.5486 | AK69: 843429.1682 | AL69: 848619.1855 | AM69: 882384.9806 | AN69: 887825.0723 | AO69: 923161.6003 | AP69: 933995.7583 | AQ69: 965845.0858 | AR69: 971822.3617 | AS69: 1010525.605 | AT69: 1016791.208 | AU69: 1057297.631 | AV69: 1063865.581 | AW69: 1106260.156 | AX69: 1119295.13 | AY69: 1157516.9 | AZ69: 1164734.378 | BA69: 1211176.546 | BB69: 1218742.681 | BC69: 1267352.978 | BD69: 1275284.744 | BE69: 1326165.53 | BF69: 1341853.554 | BG69: 1387739.25 | BH69: 1396456.567 | BI69: 1452205.178 | BJ69: 0 | BK69: 0 | BL69: 0 | BM69: 0 | BN69: 0 | BO69: 0 | BP69: 0 | BQ69: 0 | BR69: 0 | BS69: 0 | BT69: 0 | BU69: 0 | BV69: 0 | BW69: 0 | BX69: =BX67-BX68 -> 0 | BY69: 0 | BZ69: 0 | CA69: 0 | CB69: 0
C71: Change in Working Capital | E71: USD | H71: USD | L71: =L69-K69 -> 483493.1507 | M71: =M69-L69 -> 8013.69863 | N71: 2954.701785 | O71: 19601.68178 | P71: 3096.412983 | Q71: 20507.84352 | R71: 6233.446461 | S71: 18467.92876 | T71: 3400.736346 | U71: 22449.34263 | V71: 3564.03324 | W71: 23488.786 | X71: 3735.238231 | Y71: 24576.92687 | Z71: 7492.077828 | AA71: 22138.73114 | AB71: 4102.934719 | AC71: 26908.63786 | AD71: 4300.25562 | AE71: 28157.15757 | AF71: 4507.145339 | AG71: 29464.28486 | AH71: 9007.934385 | AI71: 26548.93763 | AJ71: 4951.52377 | AK71: 32265.61951 | AL71: 5190.017314 | AM71: 33765.79513 | AN71: 5440.091667 | AO71: 35336.52807 | AP71: 10834.15797 | AQ71: 31849.32749 | AR71: 5977.275926 | AS71: 38703.24284 | AT71: 6265.603423 | AU71: 40506.42339 | AV71: 6567.949735 | AW71: 42394.57466 | AX71: 13034.97441 | AY71: 38221.7696 | AZ71: 7217.477809 | BA71: 46442.16864 | BB71: 7566.135233 | BC71: 48610.2967 | BD71: 7931.766226 | BE71: 50880.78547 | BF71: 15688.02437 | BG71: 45885.69587 | BH71: 8717.317339 | BI71: 55748.61082 | BJ71: -1452205.178 | BK71: 0 | BL71: 0 | BM71: 0 | BN71: 0 | BO71: 0 | BP71: 0 | BQ71: 0 | BR71: 0 | BS71: 0 | BT71: 0 | BU71: 0 | BV71: 0 | BW71: 0 | BX71: 0 | BY71: =BY69-BX69 -> 0 | BZ71: 0 | CA71: 0 | CB71: 0
C73: Pre-tax Cash Flow
D74: EBITDA | E74: USD | H74: USD | K74: =K64 -> 0 | L74: =L64 -> 4727500 | M74: 4810000 | N74: 4837201.474 | O74: 5035699.2 | P74: 5064267.816 | Q74: 5271948.173 | R74: 5332695.045 | S74: 5519242.443 | T74: 5550750.389 | U74: 5778101 | V74: 5811187.883 | W74: 6049067.417 | X74: 6083810.864 | Y74: 6332711.029 | Z74: 6405952.327 | AA74: 6629628.161 | AB74: 6667933.01 | AC74: 6940443.422 | AD74: 6980661.286 | AE74: 7265811.056 | AF74: 7308035.933 | AG74: 7606416.364 | AH74: 7694716.624 | AI74: 7962977.187 | AJ74: 8009516.733 | AK74: 8336245.469 | AL74: 8385102.576 | AM74: 8727008.886 | AN74: 8778297.385 | AO74: 9136092.567 | AP74: 9242545.591 | AQ74: 9564360.881 | AR74: 9620876.253 | AS74: 10012719.33 | AT74: 10072042.18 | AU74: 10482116.51 | AV74: 10544384.71 | AW74: 10973546.19 | AX74: 11101885.13 | AY74: 11488049.5 | AZ74: 11556649.36 | BA74: 12026717.15 | BB74: 12098717.86 | BC74: 12590691.87 | BD74: 12666260.43 | BE74: 13181170.91 | BF74: 13335901.39 | BG74: 13799408.6 | BH74: 13882646.97 | BI74: 14446719.18 | BJ74: 0 | BK74: 0 | BL74: 0 | BM74: 0 | BN74: 0 | BO74: 0 | BP74: 0 | BQ74: 0 | BR74: 0 | BS74: 0 | BT74: 0 | BU74: 0 | BV74: 0 | BW74: 0 | BX74: =BX64 -> 0 | BY74: 0 | BZ74: 0 | CA74: 0 | CB74: 0
D75: Less: WC Change | E75: USD | H75: USD | K75: =K69 -> 0 | L75: =L69 -> 483493.1507 | M75: 491506.8493 | N75: 494461.5511 | O75: 514063.2329 | P75: 517159.6459 | Q75: 537667.4894 | R75: 543900.9358 | S75: 562368.8646 | T75: 565769.6009 | U75: 588218.9436 | V75: 591782.9768 | W75: 615271.7628 | X75: 619007.0011 | Y75: 643583.9279 | Z75: 651076.0057 | AA75: 673214.7369 | AB75: 677317.6716 | AC75: 704226.3095 | AD75: 708526.5651 | AE75: 736683.7227 | AF75: 741190.868 | AG75: 770655.1529 | AH75: 779663.0872 | AI75: 806212.0249 | AJ75: 811163.5486 | AK75: 843429.1682 | AL75: 848619.1855 | AM75: 882384.9806 | AN75: 887825.0723 | AO75: 923161.6003 | AP75: 933995.7583 | AQ75: 965845.0858 | AR75: 971822.3617 | AS75: 1010525.605 | AT75: 1016791.208 | AU75: 1057297.631 | AV75: 1063865.581 | AW75: 1106260.156 | AX75: 1119295.13 | AY75: 1157516.9 | AZ75: 1164734.378 | BA75: 1211176.546 | BB75: 1218742.681 | BC75: 1267352.978 | BD75: 1275284.744 | BE75: 1326165.53 | BF75: 1341853.554 | BG75: 1387739.25 | BH75: 1396456.567 | BI75: 1452205.178 | BJ75: 0 | BK75: 0 | BL75: 0 | BM75: 0 | BN75: 0 | BO75: 0 | BP75: 0 | BQ75: 0 | BR75: 0 | BS75: 0 | BT75: 0 | BU75: 0 | BV75: 0 | BW75: 0 | BX75: =BX69 -> 0 | BY75: 0 | BZ75: 0 | CA75: 0 | CB75: 0
D76: Less: Cap Exp | E76: USD | H76: USD | K76: =K32 -> 199858603.1 | L76: =L32 -> 0 | M76: =M32 -> 0 | N76: =N32 -> 0 | O76: =O32 -> 0 | P76: =P32 -> 0 | Q76: =Q32 -> 0 | R76: =R32 -> 0 | S76: =S32 -> 0 | T76: =T32 -> 0 | U76: =U32 -> 0 | V76: =V32 -> 0 | W76: =W32 -> 0 | X76: =X32 -> 0 | Y76: =Y32 -> 0 | Z76: =Z32 -> 0 | AA76: =AA32 -> 0 | AB76: =AB32 -> 0 | AC76: =AC32 -> 0 | AD76: =AD32 -> 0 | AE76: =AE32 -> 0 | AF76: =AF32 -> 0 | AG76: =AG32 -> 0 | AH76: =AH32 -> 0 | AI76: =AI32 -> 0 | AJ76: =AJ32 -> 0 | AK76: =AK32 -> 0 | AL76: =AL32 -> 0 | AM76: =AM32 -> 0 | AN76: =AN32 -> 0 | AO76: =AO32 -> 0 | AP76: =AP32 -> 0 | AQ76: =AQ32 -> 0 | AR76: =AR32 -> 0 | AS76: =AS32 -> 0 | AT76: =AT32 -> 0 | AU76: =AU32 -> 0 | AV76: =AV32 -> 0 | AW76: =AW32 -> 0 | AX76: =AX32 -> 0 | AY76: =AY32 -> 0 | AZ76: =AZ32 -> 0 | BA76: =BA32 -> 0 | BB76: =BB32 -> 0 | BC76: =BC32 -> 0 | BD76: =BD32 -> 0 | BE76: =BE32 -> 0 | BF76: =BF32 -> 0 | BG76: =BG32 -> 0 | BH76: =BH32 -> 0 | BI76: =BI32 -> 0 | BJ76: =BJ32 -> 0 | BK76: =BK32 -> 0 | BL76: =BL32 -> 0 | BM76: =BM32 -> 0 | BN76: =BN32 -> 0 | BO76: =BO32 -> 0 | BP76: =BP32 -> 0 | BQ76: =BQ32 -> 0 | BR76: =BR32 -> 0 | BS76: =BS32 -> 0 | BT76: =BT32 -> 0 | BU76: =BU32 -> 0 | BV76: =BV32 -> 0 | BW76: =BW32 -> 0 | BX76: =BX32 -> 0 | BY76: =BY32 -> 0 | BZ76: =BZ32 -> 0 | CA76: =CA32 -> 0 | CB76: =CB32 -> 0
D77: Free Cash Flow Before Tax | E77: USD | H77: USD | K77: =K74-K75-K76 -> -199858603.1 | L77: =L74-L75-L76 -> 4244006.849 | M77: 4318493.151 | N77: 4342739.923 | O77: 4521635.967 | P77: 4547108.17 | Q77: 4734280.683 | R77: 4788794.109 | S77: 4956873.579 | T77: 4984980.788 | U77: 5189882.056 | V77: 5219404.906 | W77: 5433795.654 | X77: 5464803.862 | Y77: 5689127.101 | Z77: 5754876.321 | AA77: 5956413.424 | AB77: 5990615.338 | AC77: 6236217.112 | AD77: 6272134.721 | AE77: 6529127.333 | AF77: 6566845.065 | AG77: 6835761.211 | AH77: 6915053.536 | AI77: 7156765.163 | AJ77: 7198353.184 | AK77: 7492816.301 | AL77: 7536483.391 | AM77: 7844623.906 | AN77: 7890472.312 | AO77: 8212930.966 | AP77: 8308549.833 | AQ77: 8598515.795 | AR77: 8649053.891 | AS77: 9002193.724 | AT77: 9055250.976 | AU77: 9424818.877 | AV77: 9480519.127 | AW77: 9867286.039 | AX77: 9982589.999 | AY77: 10330532.6 | AZ77: 10391914.98 | BA77: 10815540.6 | BB77: 10879975.18 | BC77: 11323338.9 | BD77: 11390975.68 | BE77: 11855005.38 | BF77: 11994047.84 | BG77: 12411669.35 | BH77: 12486190.41 | BI77: 12994514 | BJ77: 0 | BK77: 0 | BL77: 0 | BM77: 0 | BN77: 0 | BO77: 0 | BP77: 0 | BQ77: 0 | BR77: 0 | BS77: 0 | BT77: 0 | BU77: 0 | BV77: 0 | BW77: 0 | BX77: =BX74-BX75-BX76 -> 0 | BY77: 0 | BZ77: 0 | CA77: 0 | CB77: 0
D79: Pre-tax Project IRR | E79: % | F79: =XIRR(K77:CB77,K4:CB4) -> 0.04894231856
B81: Tax and Deprecation
C82: Tax Basis | E82: USD | F82: =InputC!F25 -> 100000000 | H82: USD | K82: =$F$82 -> 100000000 | L82: =K82+L32 -> 100000000 | M82: =L82+M32 -> 100000000 | N82: =M82+N32 -> 100000000 | O82: =N82+O32 -> 100000000 | P82: =O82+P32 -> 100000000 | Q82: =P82+Q32 -> 100000000 | R82: =Q82+R32 -> 100000000 | S82: =R82+S32 -> 100000000 | T82: =S82+T32 -> 100000000 | U82: =T82+U32 -> 100000000 | V82: =U82+V32 -> 100000000 | W82: =V82+W32 -> 100000000 | X82: =W82+X32 -> 100000000 | Y82: =X82+Y32 -> 100000000 | Z82: =Y82+Z32 -> 100000000 | AA82: =Z82+AA32 -> 100000000 | AB82: =AA82+AB32 -> 100000000 | AC82: =AB82+AC32 -> 100000000 | AD82: =AC82+AD32 -> 100000000 | AE82: =AD82+AE32 -> 100000000 | AF82: =AE82+AF32 -> 100000000 | AG82: =AF82+AG32 -> 100000000 | AH82: =AG82+AH32 -> 100000000 | AI82: =AH82+AI32 -> 100000000 | AJ82: =AI82+AJ32 -> 100000000 | AK82: =AJ82+AK32 -> 100000000 | AL82: =AK82+AL32 -> 100000000 | AM82: =AL82+AM32 -> 100000000 | AN82: =AM82+AN32 -> 100000000 | AO82: =AN82+AO32 -> 100000000 | AP82: =AO82+AP32 -> 100000000 | AQ82: =AP82+AQ32 -> 100000000 | AR82: =AQ82+AR32 -> 100000000 | AS82: =AR82+AS32 -> 100000000 | AT82: =AS82+AT32 -> 100000000 | AU82: =AT82+AU32 -> 100000000 | AV82: =AU82+AV32 -> 100000000 | AW82: =AV82+AW32 -> 100000000 | AX82: =AW82+AX32 -> 100000000 | AY82: =AX82+AY32 -> 100000000 | AZ82: =AY82+AZ32 -> 100000000 | BA82: =AZ82+BA32 -> 100000000 | BB82: =BA82+BB32 -> 100000000 | BC82: =BB82+BC32 -> 100000000 | BD82: =BC82+BD32 -> 100000000 | BE82: =BD82+BE32 -> 100000000 | BF82: =BE82+BF32 -> 100000000 | BG82: =BF82+BG32 -> 100000000 | BH82: =BG82+BH32 -> 100000000 | BI82: =BH82+BI32 -> 100000000 | BJ82: =BI82+BJ32 -> 100000000 | BK82: =BJ82+BK32 -> 100000000 | BL82: =BK82+BL32 -> 100000000 | BM82: =BL82+BM32 -> 100000000 | BN82: =BM82+BN32 -> 100000000 | BO82: =BN82+BO32 -> 100000000 | BP82: =BO82+BP32 -> 100000000 | BQ82: =BP82+BQ32 -> 100000000 | BR82: =BQ82+BR32 -> 100000000 | BS82: =BR82+BS32 -> 100000000 | BT82: =BS82+BT32 -> 100000000 | BU82: =BT82+BU32 -> 100000000 | BV82: =BU82+BV32 -> 100000000 | BW82: =BV82+BW32 -> 100000000 | BX82: =BW82+BX32 -> 100000000 | BY82: =BX82+BY32 -> 100000000 | BZ82: =BY82+BZ32 -> 100000000 | CA82: =BZ82+CA32 -> 100000000 | CB82: =CA82+CB32 -> 100000000
C83: Tax Depreciation Period | E83: Date | F83: =F5+1 -> 2025-01-01 | G83: =EDATE(F83,InputC!F47*12) -> 2045-01-01 | H83: Flag | I83: =SUM(K83:XFD83) -> 40 | K83: =(AND(K3>=$F$83,K3<$G$83))*1 -> 0 | L83: =(AND(L3>=$F$83,L3<$G$83))*1 -> 1 | M83: 1 | N83: 1 | O83: 1 | P83: 1 | Q83: 1 | R83: 1 | S83: 1 | T83: 1 | U83: 1 | V83: 1 | W83: 1 | X83: 1 | Y83: 1 | Z83: 1 | AA83: 1 | AB83: 1 | AC83: 1 | AD83: 1 | AE83: 1 | AF83: 1 | AG83: 1 | AH83: 1 | AI83: 1 | AJ83: 1 | AK83: 1 | AL83: 1 | AM83: 1 | AN83: 1 | AO83: 1 | AP83: 1 | AQ83: 1 | AR83: 1 | AS83: 1 | AT83: 1 | AU83: 1 | AV83: 1 | AW83: 1 | AX83: 1 | AY83: 1 | AZ83: 0 | BA83: 0 | BB83: 0 | BC83: 0 | BD83: 0 | BE83: 0 | BF83: 0 | BG83: 0 | BH83: 0 | BI83: 0 | BJ83: 0 | BK83: 0 | BL83: 0 | BM83: 0 | BN83: 0 | BO83: 0 | BP83: 0 | BQ83: 0 | BR83: 0 | BS83: 0 | BT83: 0 | BU83: 0 | BV83: 0 | BW83: 0 | BX83: =(AND(BX3>=$F$83,BX3<$G$83))*1 -> 0 | BY83: 0 | BZ83: 0 | CA83: 0 | CB83: 0
C84: Tax Depreciation | E84: % | F84: =1/I83 -> 0.025 | H84: USD | I84: =SUM(K84:XFD84) -> 100000000 | K84: =K82*K83*$F$84 -> 0 | L84: =L82*L83*$F$84 -> 2500000 | M84: 2500000 | N84: 2500000 | O84: 2500000 | P84: 2500000 | Q84: 2500000 | R84: 2500000 | S84: 2500000 | T84: 2500000 | U84: 2500000 | V84: 2500000 | W84: 2500000 | X84: 2500000 | Y84: 2500000 | Z84: 2500000 | AA84: 2500000 | AB84: 2500000 | AC84: 2500000 | AD84: 2500000 | AE84: 2500000 | AF84: 2500000 | AG84: 2500000 | AH84: 2500000 | AI84: 2500000 | AJ84: 2500000 | AK84: 2500000 | AL84: 2500000 | AM84: 2500000 | AN84: 2500000 | AO84: 2500000 | AP84: 2500000 | AQ84: 2500000 | AR84: 2500000 | AS84: 2500000 | AT84: 2500000 | AU84: 2500000 | AV84: 2500000 | AW84: 2500000 | AX84: 2500000 | AY84: 2500000 | AZ84: 0 | BA84: 0 | BB84: 0 | BC84: 0 | BD84: 0 | BE84: 0 | BF84: 0 | BG84: 0 | BH84: 0 | BI84: 0 | BJ84: 0 | BK84: 0 | BL84: 0 | BM84: 0 | BN84: 0 | BO84: 0 | BP84: 0 | BQ84: 0 | BR84: 0 | BS84: 0 | BT84: 0 | BU84: 0 | BV84: 0 | BW84: 0 | BX84: =BX82*BX83*$F$84 -> 0 | BY84: 0 | BZ84: 0 | CA84: 0 | CB84: 0
C86: EBITDA | E86: USD | H86: USD | K86: =K74 -> 0 | L86: =L74 -> 4727500 | M86: 4810000 | N86: 4837201.474 | O86: 5035699.2 | P86: 5064267.816 | Q86: 5271948.173 | R86: 5332695.045 | S86: 5519242.443 | T86: 5550750.389 | U86: 5778101 | V86: 5811187.883 | W86: 6049067.417 | X86: 6083810.864 | Y86: 6332711.029 | Z86: 6405952.327 | AA86: 6629628.161 | AB86: 6667933.01 | AC86: 6940443.422 | AD86: 6980661.286 | AE86: 7265811.056 | AF86: 7308035.933 | AG86: 7606416.364 | AH86: 7694716.624 | AI86: 7962977.187 | AJ86: 8009516.733 | AK86: 8336245.469 | AL86: 8385102.576 | AM86: 8727008.886 | AN86: 8778297.385 | AO86: 9136092.567 | AP86: 9242545.591 | AQ86: 9564360.881 | AR86: 9620876.253 | AS86: 10012719.33 | AT86: 10072042.18 | AU86: 10482116.51 | AV86: 10544384.71 | AW86: 10973546.19 | AX86: 11101885.13 | AY86: 11488049.5 | AZ86: 11556649.36 | BA86: 12026717.15 | BB86: 12098717.86 | BC86: 12590691.87 | BD86: 12666260.43 | BE86: 13181170.91 | BF86: 13335901.39 | BG86: 13799408.6 | BH86: 13882646.97 | BI86: 14446719.18 | BJ86: 0 | BK86: 0 | BL86: 0 | BM86: 0 | BN86: 0 | BO86: 0 | BP86: 0 | BQ86: 0 | BR86: 0 | BS86: 0 | BT86: 0 | BU86: 0 | BV86: 0 | BW86: 0 | BX86: =BX74 -> 0 | BY86: 0 | BZ86: 0 | CA86: 0 | CB86: 0
C87: Less: Depreciation | E87: USD | H87: USD | K87: =K84 -> 0 | L87: =L84 -> 2500000 | M87: 2500000 | N87: 2500000 | O87: 2500000 | P87: 2500000 | Q87: 2500000 | R87: 2500000 | S87: 2500000 | T87: 2500000 | U87: 2500000 | V87: 2500000 | W87: 2500000 | X87: 2500000 | Y87: 2500000 | Z87: 2500000 | AA87: 2500000 | AB87: 2500000 | AC87: 2500000 | AD87: 2500000 | AE87: 2500000 | AF87: 2500000 | AG87: 2500000 | AH87: 2500000 | AI87: 2500000 | AJ87: 2500000 | AK87: 2500000 | AL87: 2500000 | AM87: 2500000 | AN87: 2500000 | AO87: 2500000 | AP87: 2500000 | AQ87: 2500000 | AR87: 2500000 | AS87: 2500000 | AT87: 2500000 | AU87: 2500000 | AV87: 2500000 | AW87: 2500000 | AX87: 2500000 | AY87: 2500000 | AZ87: 0 | BA87: 0 | BB87: 0 | BC87: 0 | BD87: 0 | BE87: 0 | BF87: 0 | BG87: 0 | BH87: 0 | BI87: 0 | BJ87: 0 | BK87: 0 | BL87: 0 | BM87: 0 | BN87: 0 | BO87: 0 | BP87: 0 | BQ87: 0 | BR87: 0 | BS87: 0 | BT87: 0 | BU87: 0 | BV87: 0 | BW87: 0 | BX87: =BX84 -> 0 | BY87: 0 | BZ87: 0 | CA87: 0 | CB87: 0
C88: EBIT | E88: USD | H88: USD | K88: =K86-K87 -> 0 | L88: =L86-L87 -> 2227500 | M88: 2310000 | N88: 2337201.474 | O88: 2535699.2 | P88: 2564267.816 | Q88: 2771948.173 | R88: 2832695.045 | S88: 3019242.443 | T88: 3050750.389 | U88: 3278101 | V88: 3311187.883 | W88: 3549067.417 | X88: 3583810.864 | Y88: 3832711.029 | Z88: 3905952.327 | AA88: 4129628.161 | AB88: 4167933.01 | AC88: 4440443.422 | AD88: 4480661.286 | AE88: 4765811.056 | AF88: 4808035.933 | AG88: 5106416.364 | AH88: 5194716.624 | AI88: 5462977.187 | AJ88: 5509516.733 | AK88: 5836245.469 | AL88: 5885102.576 | AM88: 6227008.886 | AN88: 6278297.385 | AO88: 6636092.567 | AP88: 6742545.591 | AQ88: 7064360.881 | AR88: 7120876.253 | AS88: 7512719.328 | AT88: 7572042.184 | AU88: 7982116.509 | AV88: 8044384.708 | AW88: 8473546.195 | AX88: 8601885.129 | AY88: 8988049.498 | AZ88: 11556649.36 | BA88: 12026717.15 | BB88: 12098717.86 | BC88: 12590691.87 | BD88: 12666260.43 | BE88: 13181170.91 | BF88: 13335901.39 | BG88: 13799408.6 | BH88: 13882646.97 | BI88: 14446719.18 | BJ88: 0 | BK88: 0 | BL88: 0 | BM88: 0 | BN88: 0 | BO88: 0 | BP88: 0 | BQ88: 0 | BR88: 0 | BS88: 0 | BT88: 0 | BU88: 0 | BV88: 0 | BW88: 0 | BX88: =BX86-BX87 -> 0 | BY88: 0 | BZ88: 0 | CA88: 0 | CB88: 0
C90: NOL Balance
C91: Opening Balance | K91: =J94 -> 0 | L91: =K94 -> 0 | M91: 0 | N91: 0 | O91: 0 | P91: 0 | Q91: 0 | R91: 0 | S91: 0 | T91: 0 | U91: 0 | V91: 0 | W91: 0 | X91: 0 | Y91: 0 | Z91: 0 | AA91: 0 | AB91: 0 | AC91: 0 | AD91: 0 | AE91: 0 | AF91: 0 | AG91: 0 | AH91: 0 | AI91: 0 | AJ91: 0 | AK91: 0 | AL91: 0 | AM91: 0 | AN91: 0 | AO91: 0 | AP91: 0 | AQ91: 0 | AR91: 0 | AS91: 0 | AT91: 0 | AU91: 0 | AV91: 0 | AW91: 0 | AX91: 0 | AY91: 0 | AZ91: 0 | BA91: 0 | BB91: 0 | BC91: 0 | BD91: 0 | BE91: 0 | BF91: 0 | BG91: 0 | BH91: 0 | BI91: 0 | BJ91: 0 | BK91: 0 | BL91: 0 | BM91: 0 | BN91: 0 | BO91: 0 | BP91: 0 | BQ91: 0 | BR91: 0 | BS91: 0 | BT91: 0 | BU91: 0 | BV91: 0 | BW91: 0 | BX91: =BW94 -> 0 | BY91: 0 | BZ91: 0 | CA91: 0 | CB91: 0
C92: Add: Negative Income Carried Forward | K92: =MAX(-K88,0) -> 0 | L92: =MAX(-L88,0) -> 0 | M92: 0 | N92: 0 | O92: 0 | P92: 0 | Q92: 0 | R92: 0 | S92: 0 | T92: 0 | U92: 0 | V92: 0 | W92: 0 | X92: 0 | Y92: 0 | Z92: 0 | AA92: 0 | AB92: 0 | AC92: 0 | AD92: 0 | AE92: 0 | AF92: 0 | AG92: 0 | AH92: 0 | AI92: 0 | AJ92: 0 | AK92: 0 | AL92: 0 | AM92: 0 | AN92: 0 | AO92: 0 | AP92: 0 | AQ92: 0 | AR92: 0 | AS92: 0 | AT92: 0 | AU92: 0 | AV92: 0 | AW92: 0 | AX92: 0 | AY92: 0 | AZ92: 0 | BA92: 0 | BB92: 0 | BC92: 0 | BD92: 0 | BE92: 0 | BF92: 0 | BG92: 0 | BH92: 0 | BI92: 0 | BJ92: 0 | BK92: 0 | BL92: 0 | BM92: 0 | BN92: 0 | BO92: 0 | BP92: 0 | BQ92: 0 | BR92: 0 | BS92: 0 | BT92: 0 | BU92: 0 | BV92: 0 | BW92: 0 | BX92: =MAX(-BX88,0) -> 0 | BY92: 0 | BZ92: 0 | CA92: 0 | CB92: 0
C93: Less: NOL Used | K93: =MIN(K91,MAX(K88,0)) -> 0 | L93: =MIN(L91,MAX(L88,0)) -> 0 | M93: 0 | N93: 0 | O93: 0 | P93: 0 | Q93: 0 | R93: 0 | S93: 0 | T93: 0 | U93: 0 | V93: 0 | W93: 0 | X93: 0 | Y93: 0 | Z93: 0 | AA93: 0 | AB93: 0 | AC93: 0 | AD93: 0 | AE93: 0 | AF93: 0 | AG93: 0 | AH93: 0 | AI93: 0 | AJ93: 0 | AK93: 0 | AL93: 0 | AM93: 0 | AN93: 0 | AO93: 0 | AP93: 0 | AQ93: 0 | AR93: 0 | AS93: 0 | AT93: 0 | AU93: 0 | AV93: 0 | AW93: 0 | AX93: 0 | AY93: 0 | AZ93: 0 | BA93: 0 | BB93: 0 | BC93: 0 | BD93: 0 | BE93: 0 | BF93: 0 | BG93: 0 | BH93: 0 | BI93: 0 | BJ93: 0 | BK93: 0 | BL93: 0 | BM93: 0 | BN93: 0 | BO93: 0 | BP93: 0 | BQ93: 0 | BR93: 0 | BS93: 0 | BT93: 0 | BU93: 0 | BV93: 0 | BW93: 0 | BX93: =MIN(BX91,MAX(BX88,0)) -> 0 | BY93: 0 | BZ93: 0 | CA93: 0 | CB93: 0
C94: Closing Balance | K94: =K91+K92-K93 -> 0 | L94: =L91+L92-L93 -> 0 | M94: 0 | N94: 0 | O94: 0 | P94: 0 | Q94: 0 | R94: 0 | S94: 0 | T94: 0 | U94: 0 | V94: 0 | W94: 0 | X94: 0 | Y94: 0 | Z94: 0 | AA94: 0 | AB94: 0 | AC94: 0 | AD94: 0 | AE94: 0 | AF94: 0 | AG94: 0 | AH94: 0 | AI94: 0 | AJ94: 0 | AK94: 0 | AL94: 0 | AM94: 0 | AN94: 0 | AO94: 0 | AP94: 0 | AQ94: 0 | AR94: 0 | AS94: 0 | AT94: 0 | AU94: 0 | AV94: 0 | AW94: 0 | AX94: 0 | AY94: 0 | AZ94: 0 | BA94: 0 | BB94: 0 | BC94: 0 | BD94: 0 | BE94: 0 | BF94: 0 | BG94: 0 | BH94: 0 | BI94: 0 | BJ94: 0 | BK94: 0 | BL94: 0 | BM94: 0 | BN94: 0 | BO94: 0 | BP94: 0 | BQ94: 0 | BR94: 0 | BS94: 0 | BT94: 0 | BU94: 0 | BV94: 0 | BW94: 0 | BX94: =BX91+BX92-BX93 -> 0 | BY94: 0 | BZ94: 0 | CA94: 0 | CB94: 0
C96: EBIT after NOL | E96: USD | H96: USD | K96: =K88+K92-K93 -> 0 | L96: 2227500 | M96: 2310000 | N96: 2337201.474 | O96: 2535699.2 | P96: 2564267.816 | Q96: 2771948.173 | R96: 2832695.045 | S96: 3019242.443 | T96: 3050750.389 | U96: 3278101 | V96: 3311187.883 | W96: 3549067.417 | X96: 3583810.864 | Y96: 3832711.029 | Z96: 3905952.327 | AA96: 4129628.161 | AB96: 4167933.01 | AC96: 4440443.422 | AD96: 4480661.286 | AE96: 4765811.056 | AF96: 4808035.933 | AG96: 5106416.364 | AH96: 5194716.624 | AI96: 5462977.187 | AJ96: 5509516.733 | AK96: 5836245.469 | AL96: 5885102.576 | AM96: 6227008.886 | AN96: 6278297.385 | AO96: 6636092.567 | AP96: 6742545.591 | AQ96: =AQ88+AQ92-AQ93 -> 7064360.881 | AR96: 7120876.253 | AS96: 7512719.328 | AT96: 7572042.184 | AU96: 7982116.509 | AV96: 8044384.708 | AW96: 8473546.195 | AX96: 8601885.129 | AY96: 8988049.498 | AZ96: 11556649.36 | BA96: 12026717.15 | BB96: 12098717.86 | BC96: 12590691.87 | BD96: 12666260.43 | BE96: 13181170.91 | BF96: 13335901.39 | BG96: 13799408.6 | BH96: 13882646.97 | BI96: 14446719.18 | BJ96: 0 | BK96: 0 | BL96: 0 | BM96: 0 | BN96: 0 | BO96: 0 | BP96: 0 | BQ96: 0 | BR96: 0 | BS96: 0 | BT96: 0 | BU96: 0 | BV96: 0 | BW96: =BW88+BW92-BW93 -> 0 | BX96: 0 | BY96: 0 | BZ96: 0 | CA96: 0 | CB96: 0
C97: Taxes on EBIT | E97: Rate | F97: =InputC!F46 -> 0 | H97: USD | K97: =K96*$F$97 -> 0 | L97: =L96*$F$97 -> 0 | M97: 0 | N97: 0 | O97: 0 | P97: 0 | Q97: 0 | R97: 0 | S97: 0 | T97: 0 | U97: 0 | V97: 0 | W97: 0 | X97: 0 | Y97: 0 | Z97: 0 | AA97: 0 | AB97: 0 | AC97: 0 | AD97: 0 | AE97: 0 | AF97: 0 | AG97: 0 | AH97: 0 | AI97: 0 | AJ97: 0 | AK97: 0 | AL97: 0 | AM97: 0 | AN97: 0 | AO97: 0 | AP97: 0 | AQ97: 0 | AR97: 0 | AS97: 0 | AT97: 0 | AU97: 0 | AV97: 0 | AW97: 0 | AX97: 0 | AY97: 0 | AZ97: 0 | BA97: 0 | BB97: 0 | BC97: 0 | BD97: 0 | BE97: 0 | BF97: 0 | BG97: 0 | BH97: 0 | BI97: 0 | BJ97: 0 | BK97: 0 | BL97: 0 | BM97: 0 | BN97: 0 | BO97: 0 | BP97: 0 | BQ97: 0 | BR97: 0 | BS97: 0 | BT97: 0 | BU97: 0 | BV97: 0 | BW97: 0 | BX97: =BX96*$F$97 -> 0 | BY97: 0 | BZ97: 0 | CA97: 0 | CB97: 0
C99: Pre-tax Cash Flow | E99: USD | H99: USD | K99: =K77 -> -199858603.1 | L99: 4244006.849 | M99: 4318493.151 | N99: 4342739.923 | O99: 4521635.967 | P99: 4547108.17 | Q99: 4734280.683 | R99: 4788794.109 | S99: 4956873.579 | T99: 4984980.788 | U99: 5189882.056 | V99: 5219404.906 | W99: 5433795.654 | X99: 5464803.862 | Y99: 5689127.101 | Z99: 5754876.321 | AA99: 5956413.424 | AB99: 5990615.338 | AC99: 6236217.112 | AD99: 6272134.721 | AE99: 6529127.333 | AF99: 6566845.065 | AG99: 6835761.211 | AH99: 6915053.536 | AI99: 7156765.163 | AJ99: 7198353.184 | AK99: 7492816.301 | AL99: 7536483.391 | AM99: 7844623.906 | AN99: 7890472.312 | AO99: 8212930.966 | AP99: 8308549.833 | AQ99: =AQ77 -> 8598515.795 | AR99: 8649053.891 | AS99: 9002193.724 | AT99: 9055250.976 | AU99: 9424818.877 | AV99: 9480519.127 | AW99: 9867286.039 | AX99: 9982589.999 | AY99: 10330532.6 | AZ99: 10391914.98 | BA99: 10815540.6 | BB99: 10879975.18 | BC99: 11323338.9 | BD99: 11390975.68 | BE99: 11855005.38 | BF99: 11994047.84 | BG99: 12411669.35 | BH99: 12486190.41 | BI99: 12994514 | BJ99: 0 | BK99: 0 | BL99: 0 | BM99: 0 | BN99: 0 | BO99: 0 | BP99: 0 | BQ99: 0 | BR99: 0 | BS99: 0 | BT99: 0 | BU99: 0 | BV99: 0 | BW99: =BW77 -> 0 | BX99: 0 | BY99: 0 | BZ99: 0 | CA99: 0 | CB99: 0
C100: Less: Taxes | E100: USD | H100: USD | K100: =K97 -> 0 | L100: =L97 -> 0 | M100: 0 | N100: 0 | O100: 0 | P100: 0 | Q100: 0 | R100: 0 | S100: 0 | T100: 0 | U100: 0 | V100: 0 | W100: 0 | X100: 0 | Y100: 0 | Z100: 0 | AA100: 0 | AB100: 0 | AC100: 0 | AD100: 0 | AE100: 0 | AF100: 0 | AG100: 0 | AH100: 0 | AI100: 0 | AJ100: 0 | AK100: 0 | AL100: 0 | AM100: 0 | AN100: 0 | AO100: 0 | AP100: 0 | AQ100: 0 | AR100: 0 | AS100: 0 | AT100: 0 | AU100: 0 | AV100: 0 | AW100: 0 | AX100: 0 | AY100: 0 | AZ100: 0 | BA100: 0 | BB100: 0 | BC100: 0 | BD100: 0 | BE100: 0 | BF100: 0 | BG100: 0 | BH100: 0 | BI100: 0 | BJ100: 0 | BK100: 0 | BL100: 0 | BM100: 0 | BN100: 0 | BO100: 0 | BP100: 0 | BQ100: 0 | BR100: 0 | BS100: 0 | BT100: 0 | BU100: 0 | BV100: 0 | BW100: 0 | BX100: =BX97 -> 0 | BY100: 0 | BZ100: 0 | CA100: 0 | CB100: 0
C101: After Tax Free Cash Flow | E101: USD | H101: USD | K101: =K99-K100 -> -199858603.1 | L101: =L99-L100 -> 4244006.849 | M101: 4318493.151 | N101: 4342739.923 | O101: 4521635.967 | P101: 4547108.17 | Q101: 4734280.683 | R101: 4788794.109 | S101: 4956873.579 | T101: 4984980.788 | U101: 5189882.056 | V101: 5219404.906 | W101: 5433795.654 | X101: 5464803.862 | Y101: 5689127.101 | Z101: 5754876.321 | AA101: 5956413.424 | AB101: 5990615.338 | AC101: 6236217.112 | AD101: 6272134.721 | AE101: 6529127.333 | AF101: 6566845.065 | AG101: 6835761.211 | AH101: 6915053.536 | AI101: 7156765.163 | AJ101: 7198353.184 | AK101: 7492816.301 | AL101: 7536483.391 | AM101: 7844623.906 | AN101: 7890472.312 | AO101: 8212930.966 | AP101: 8308549.833 | AQ101: 8598515.795 | AR101: 8649053.891 | AS101: 9002193.724 | AT101: 9055250.976 | AU101: 9424818.877 | AV101: 9480519.127 | AW101: 9867286.039 | AX101: 9982589.999 | AY101: 10330532.6 | AZ101: 10391914.98 | BA101: 10815540.6 | BB101: 10879975.18 | BC101: 11323338.9 | BD101: 11390975.68 | BE101: 11855005.38 | BF101: 11994047.84 | BG101: 12411669.35 | BH101: 12486190.41 | BI101: 12994514 | BJ101: 0 | BK101: 0 | BL101: 0 | BM101: 0 | BN101: 0 | BO101: 0 | BP101: 0 | BQ101: 0 | BR101: 0 | BS101: 0 | BT101: 0 | BU101: 0 | BV101: 0 | BW101: 0 | BX101: =BX99-BX100 -> 0 | BY101: 0 | BZ101: 0 | CA101: 0 | CB101: 0
C103: Project IRR after Tax | E103: % | F103: =XIRR(K101:CB101,K4:CB4,7) -> 0.04894231586
B105: Debt Sizing
C106: Debt Size
D107: Tenure Input | E107: Year | F107: =InputC!F53 -> 15
D108: Repayment Period | E108: Year | F108: =F83 -> 2025-01-01 | G108: =EDATE(F83,F107*12) -> 2040-01-01 | I108: =SUM(K108:XFD108) -> 30 | K108: =(AND(K3>=$F$108,K3<$G$108))*1 -> 0 | L108: 1 | M108: 1 | N108: 1 | O108: 1 | P108: 1 | Q108: 1 | R108: 1 | S108: 1 | T108: 1 | U108: 1 | V108: 1 | W108: 1 | X108: 1 | Y108: 1 | Z108: 1 | AA108: 1 | AB108: 1 | AC108: 1 | AD108: 1 | AE108: 1 | AF108: 1 | AG108: 1 | AH108: 1 | AI108: 1 | AJ108: 1 | AK108: 1 | AL108: 1 | AM108: 1 | AN108: 1 | AO108: 1 | AP108: 0 | AQ108: =(AND(AQ3>=$F$108,AQ3<$G$108))*1 -> 0 | AR108: 0 | AS108: 0 | AT108: 0 | AU108: 0 | AV108: 0 | AW108: 0 | AX108: 0 | AY108: 0 | AZ108: 0 | BA108: 0 | BB108: 0 | BC108: 0 | BD108: 0 | BE108: 0 | BF108: 0 | BG108: 0 | BH108: 0 | BI108: 0 | BJ108: 0 | BK108: 0 | BL108: 0 | BM108: 0 | BN108: 0 | BO108: 0 | BP108: 0 | BQ108: 0 | BR108: 0 | BS108: 0 | BT108: 0 | BU108: 0 | BV108: 0 | BW108: =(AND(BW3>=$F$108,BW3<$G$108))*1 -> 0 | BX108: 0 | BY108: 0 | BZ108: 0 | CA108: 0 | CB108: 0
C110: Taxes with Interest
D111: EBITDA | K111: =K74 -> 0 | L111: =L74 -> 4727500 | M111: 4810000 | N111: 4837201.474 | O111: 5035699.2 | P111: 5064267.816 | Q111: 5271948.173 | R111: 5332695.045 | S111: 5519242.443 | T111: 5550750.389 | U111: 5778101 | V111: 5811187.883 | W111: 6049067.417 | X111: 6083810.864 | Y111: 6332711.029 | Z111: 6405952.327 | AA111: 6629628.161 | AB111: 6667933.01 | AC111: 6940443.422 | AD111: 6980661.286 | AE111: 7265811.056 | AF111: 7308035.933 | AG111: 7606416.364 | AH111: 7694716.624 | AI111: 7962977.187 | AJ111: 8009516.733 | AK111: 8336245.469 | AL111: 8385102.576 | AM111: 8727008.886 | AN111: 8778297.385 | AO111: 9136092.567 | AP111: 9242545.591 | AQ111: 9564360.881 | AR111: 9620876.253 | AS111: 10012719.33 | AT111: 10072042.18 | AU111: 10482116.51 | AV111: 10544384.71 | AW111: 10973546.19 | AX111: 11101885.13 | AY111: 11488049.5 | AZ111: 11556649.36 | BA111: 12026717.15 | BB111: 12098717.86 | BC111: 12590691.87 | BD111: 12666260.43 | BE111: 13181170.91 | BF111: 13335901.39 | BG111: 13799408.6 | BH111: 13882646.97 | BI111: 14446719.18 | BJ111: 0 | BK111: 0 | BL111: 0 | BM111: 0 | BN111: 0 | BO111: 0 | BP111: 0 | BQ111: 0 | BR111: 0 | BS111: 0 | BT111: 0 | BU111: 0 | BV111: 0 | BW111: 0 | BX111: =BX74 -> 0 | BY111: 0 | BZ111: 0 | CA111: 0 | CB111: 0
D112: Less: Depreciation | K112: =K84 -> 0 | L112: =L84 -> 2500000 | M112: 2500000 | N112: 2500000 | O112: 2500000 | P112: 2500000 | Q112: 2500000 | R112: 2500000 | S112: 2500000 | T112: 2500000 | U112: 2500000 | V112: 2500000 | W112: 2500000 | X112: 2500000 | Y112: 2500000 | Z112: 2500000 | AA112: 2500000 | AB112: 2500000 | AC112: 2500000 | AD112: 2500000 | AE112: 2500000 | AF112: 2500000 | AG112: 2500000 | AH112: 2500000 | AI112: 2500000 | AJ112: 2500000 | AK112: 2500000 | AL112: 2500000 | AM112: 2500000 | AN112: 2500000 | AO112: 2500000 | AP112: 2500000 | AQ112: 2500000 | AR112: 2500000 | AS112: 2500000 | AT112: 2500000 | AU112: 2500000 | AV112: 2500000 | AW112: 2500000 | AX112: 2500000 | AY112: 2500000 | AZ112: 0 | BA112: 0 | BB112: 0 | BC112: 0 | BD112: 0 | BE112: 0 | BF112: 0 | BG112: 0 | BH112: 0 | BI112: 0 | BJ112: 0 | BK112: 0 | BL112: 0 | BM112: 0 | BN112: 0 | BO112: 0 | BP112: 0 | BQ112: 0 | BR112: 0 | BS112: 0 | BT112: 0 | BU112: 0 | BV112: 0 | BW112: 0 | BX112: =BX84 -> 0 | BY112: 0 | BZ112: 0 | CA112: 0 | CB112: 0
D113: Less: Amortisation of Fees | F113: =F149 -> 1144647.292 | G113: =F84 -> 0.025 | K113: =$F$113*$G$113*K83 -> 0 | L113: =$F$113*$G$113*L83 -> 28616.18231 | M113: 28616.18231 | N113: 28616.18231 | O113: 28616.18231 | P113: 28616.18231 | Q113: 28616.18231 | R113: 28616.18231 | S113: 28616.18231 | T113: 28616.18231 | U113: 28616.18231 | V113: 28616.18231 | W113: 28616.18231 | X113: 28616.18231 | Y113: 28616.18231 | Z113: 28616.18231 | AA113: 28616.18231 | AB113: 28616.18231 | AC113: 28616.18231 | AD113: 28616.18231 | AE113: 28616.18231 | AF113: 28616.18231 | AG113: 28616.18231 | AH113: 28616.18231 | AI113: 28616.18231 | AJ113: 28616.18231 | AK113: 28616.18231 | AL113: 28616.18231 | AM113: 28616.18231 | AN113: 28616.18231 | AO113: 28616.18231 | AP113: 28616.18231 | AQ113: 28616.18231 | AR113: 28616.18231 | AS113: 28616.18231 | AT113: 28616.18231 | AU113: 28616.18231 | AV113: 28616.18231 | AW113: 28616.18231 | AX113: 28616.18231 | AY113: 28616.18231 | AZ113: 0 | BA113: 0 | BB113: 0 | BC113: 0 | BD113: 0 | BE113: 0 | BF113: 0 | BG113: 0 | BH113: 0 | BI113: 0 | BJ113: 0 | BK113: 0 | BL113: 0 | BM113: 0 | BN113: 0 | BO113: 0 | BP113: 0 | BQ113: 0 | BR113: 0 | BS113: 0 | BT113: 0 | BU113: 0 | BV113: 0 | BW113: 0 | BX113: =$F$113*$G$113*BX83 -> 0 | BY113: 0 | BZ113: 0 | CA113: 0 | CB113: 0
D114: Less: Interest | K114: =K166 -> 0 | L114: =L166 -> 1716970.939 | M114: 1695569.871 | N114: 1667648.016 | O114: 1638948.883 | P114: 1607798.699 | Q114: 1575680.442 | R114: 1540966.312 | S114: 1504897.9 | T114: 1466351.651 | U114: 1426709.708 | V114: 1384158.668 | W114: 1340391.894 | X114: 1293546.899 | Y114: 1245393.707 | Z114: 1193984.233 | AA114: 1140799.994 | AB114: 1084495.445 | AC114: 1026720.32 | AD114: 965304.0718 | AE114: 902268.5103 | AF114: 835384.1613 | AG114: 766764.6039 | AH114: 694077.7165 | AI114: 619092.1191 | AJ114: 540195.9647 | AK114: 459359.2908 | AL114: 373983.2374 | AM114: 286482.8464 | AN114: 194188.4992 | AO114: 99625.13452 | AP114: 5.476176739e-09 | AQ114: 5.55831939e-09 | AR114: 5.641694181e-09 | AS114: 5.726319593e-09 | AT114: 5.812214387e-09 | AU114: 5.899397603e-09 | AV114: 5.987888567e-09 | AW114: 6.077706896e-09 | AX114: 6.168872499e-09 | AY114: 6.261405587e-09 | AZ114: 6.35532667e-09 | BA114: 6.45065657e-09 | BB114: 6.547416419e-09 | BC114: 6.645627665e-09 | BD114: 6.74531208e-09 | BE114: 6.846491761e-09 | BF114: 6.949189138e-09 | BG114: 7.053426975e-09 | BH114: 7.15922838e-09 | BI114: 7.266616805e-09 | BJ114: 7.375616057e-09 | BK114: 7.486250298e-09 | BL114: 7.598544053e-09 | BM114: 7.712522213e-09 | BN114: 7.828210047e-09 | BO114: 7.945633197e-09 | BP114: 8.064817695e-09 | BQ114: 8.185789961e-09 | BR114: 8.30857681e-09 | BS114: 8.433205462e-09 | BT114: 8.559703544e-09 | BU114: 8.688099097e-09 | BV114: 8.818420584e-09 | BW114: 8.950696893e-09 | BX114: =BX166 -> 9.084957346e-09 | BY114: 9.221231706e-09 | BZ114: 9.359550182e-09 | CA114: 9.499943435e-09 | CB114: 9.642442586e-09
D115: EBT | K115: =K111-K112-K113-K114 -> 0 | L115: =L111-L112-L113-L114 -> 481912.8791 | M115: 585813.9467 | N115: 640937.2759 | O115: 868134.1348 | P115: 927852.9342 | Q115: 1167651.549 | R115: 1263112.551 | S115: 1485728.361 | T115: 1555782.555 | U115: 1822775.11 | V115: 1898413.033 | W115: 2180059.341 | X115: 2261647.782 | Y115: 2558701.14 | Z115: 2683351.911 | AA115: 2960211.984 | AB115: 3054821.383 | AC115: 3385106.919 | AD115: 3486741.032 | AE115: 3834926.363 | AF115: 3944035.589 | AG115: 4311035.578 | AH115: 4472022.725 | AI115: 4815268.886 | AJ115: 4940704.586 | AK115: 5348269.996 | AL115: 5482503.156 | AM115: 5911909.858 | AN115: 6055492.703 | AO115: 6507851.25 | AP115: 6713929.409 | AQ115: 7035744.699 | AR115: 7092260.07 | AS115: 7484103.146 | AT115: 7543426.001 | AU115: 7953500.327 | AV115: 8015768.526 | AW115: 8444930.012 | AX115: 8573268.947 | AY115: 8959433.316 | AZ115: 11556649.36 | BA115: 12026717.15 | BB115: 12098717.86 | BC115: 12590691.87 | BD115: 12666260.43 | BE115: 13181170.91 | BF115: 13335901.39 | BG115: 13799408.6 | BH115: 13882646.97 | BI115: 14446719.18 | BJ115: -7.375616057e-09 | BK115: -7.486250298e-09 | BL115: -7.598544053e-09 | BM115: -7.712522213e-09 | BN115: -7.828210047e-09 | BO115: -7.945633197e-09 | BP115: -8.064817695e-09 | BQ115: -8.185789961e-09 | BR115: -8.30857681e-09 | BS115: -8.433205462e-09 | BT115: -8.559703544e-09 | BU115: -8.688099097e-09 | BV115: -8.818420584e-09 | BW115: -8.950696893e-09 | BX115: =BX111-BX112-BX113-BX114 -> -9.084957346e-09 | BY115: -9.221231706e-09 | BZ115: -9.359550182e-09 | CA115: -9.499943435e-09 | CB115: -9.642442586e-09
D117: NOL Balance
D118: Opening Balance | K118: =J121 -> 0 | L118: =K121 -> 0 | M118: 0 | N118: 0 | O118: 0 | P118: 0 | Q118: 0 | R118: 0 | S118: 0 | T118: 0 | U118: 0 | V118: 0 | W118: 0 | X118: 0 | Y118: 0 | Z118: 0 | AA118: 0 | AB118: 0 | AC118: 0 | AD118: 0 | AE118: 0 | AF118: 0 | AG118: 0 | AH118: 0 | AI118: 0 | AJ118: 0 | AK118: 0 | AL118: 0 | AM118: 0 | AN118: 0 | AO118: 0 | AP118: 0 | AQ118: 0 | AR118: 0 | AS118: 0 | AT118: 0 | AU118: 0 | AV118: 0 | AW118: 0 | AX118: 0 | AY118: 0 | AZ118: 0 | BA118: 0 | BB118: 0 | BC118: 0 | BD118: 0 | BE118: 0 | BF118: 0 | BG118: 0 | BH118: 0 | BI118: 0 | BJ118: 0 | BK118: 7.375616057e-09 | BL118: 1.486186636e-08 | BM118: 2.246041041e-08 | BN118: 3.017293262e-08 | BO118: 3.800114267e-08 | BP118: 4.594677587e-08 | BQ118: 5.401159356e-08 | BR118: 6.219738352e-08 | BS118: 7.050596033e-08 | BT118: 7.893916579e-08 | BU118: 8.749886934e-08 | BV118: 9.618696844e-08 | BW118: 1.05005389e-07 | BX118: =BW121 -> 1.139560859e-07 | BY118: 1.230410433e-07 | BZ118: 1.32262275e-07 | CA118: 1.416218251e-07 | CB118: 1.511217686e-07
D119: Add: Negative Income Carried Forward | K119: =MAX(-K115,0) -> 0 | L119: =MAX(-L115,0) -> 0 | M119: 0 | N119: 0 | O119: 0 | P119: 0 | Q119: 0 | R119: 0 | S119: 0 | T119: 0 | U119: 0 | V119: 0 | W119: 0 | X119: 0 | Y119: 0 | Z119: 0 | AA119: 0 | AB119: 0 | AC119: 0 | AD119: 0 | AE119: 0 | AF119: 0 | AG119: 0 | AH119: 0 | AI119: 0 | AJ119: 0 | AK119: 0 | AL119: 0 | AM119: 0 | AN119: 0 | AO119: 0 | AP119: 0 | AQ119: 0 | AR119: 0 | AS119: 0 | AT119: 0 | AU119: 0 | AV119: 0 | AW119: 0 | AX119: 0 | AY119: 0 | AZ119: 0 | BA119: 0 | BB119: 0 | BC119: 0 | BD119: 0 | BE119: 0 | BF119: 0 | BG119: 0 | BH119: 0 | BI119: 0 | BJ119: 7.375616057e-09 | BK119: 7.486250298e-09 | BL119: 7.598544053e-09 | BM119: 7.712522213e-09 | BN119: 7.828210047e-09 | BO119: 7.945633197e-09 | BP119: 8.064817695e-09 | BQ119: 8.185789961e-09 | BR119: 8.30857681e-09 | BS119: 8.433205462e-09 | BT119: 8.559703544e-09 | BU119: 8.688099097e-09 | BV119: 8.818420584e-09 | BW119: 8.950696893e-09 | BX119: =MAX(-BX115,0) -> 9.084957346e-09 | BY119: 9.221231706e-09 | BZ119: 9.359550182e-09 | CA119: 9.499943435e-09 | CB119: 9.642442586e-09
D120: Less: NOL Used | K120: =MIN(K118,MAX(K115,0)) -> 0 | L120: =MIN(L118,MAX(L115,0)) -> 0 | M120: 0 | N120: 0 | O120: 0 | P120: 0 | Q120: 0 | R120: 0 | S120: 0 | T120: 0 | U120: 0 | V120: 0 | W120: 0 | X120: 0 | Y120: 0 | Z120: 0 | AA120: 0 | AB120: 0 | AC120: 0 | AD120: 0 | AE120: 0 | AF120: 0 | AG120: 0 | AH120: 0 | AI120: 0 | AJ120: 0 | AK120: 0 | AL120: 0 | AM120: 0 | AN120: 0 | AO120: 0 | AP120: 0 | AQ120: 0 | AR120: 0 | AS120: 0 | AT120: 0 | AU120: 0 | AV120: 0 | AW120: 0 | AX120: 0 | AY120: 0 | AZ120: 0 | BA120: 0 | BB120: 0 | BC120: 0 | BD120: 0 | BE120: 0 | BF120: 0 | BG120: 0 | BH120: 0 | BI120: 0 | BJ120: 0 | BK120: 0 | BL120: 0 | BM120: 0 | BN120: 0 | BO120: 0 | BP120: 0 | BQ120: 0 | BR120: 0 | BS120: 0 | BT120: 0 | BU120: 0 | BV120: 0 | BW120: 0 | BX120: =MIN(BX118,MAX(BX115,0)) -> 0 | BY120: 0 | BZ120: 0 | CA120: 0 | CB120: 0
D121: Closing Balance | K121: =K118+K119-K120 -> 0 | L121: =L118+L119-L120 -> 0 | M121: 0 | N121: 0 | O121: 0 | P121: 0 | Q121: 0 | R121: 0 | S121: 0 | T121: 0 | U121: 0 | V121: 0 | W121: 0 | X121: 0 | Y121: 0 | Z121: 0 | AA121: 0 | AB121: 0 | AC121: 0 | AD121: 0 | AE121: 0 | AF121: 0 | AG121: 0 | AH121: 0 | AI121: 0 | AJ121: 0 | AK121: 0 | AL121: 0 | AM121: 0 | AN121: 0 | AO121: 0 | AP121: 0 | AQ121: 0 | AR121: 0 | AS121: 0 | AT121: 0 | AU121: 0 | AV121: 0 | AW121: 0 | AX121: 0 | AY121: 0 | AZ121: 0 | BA121: 0 | BB121: 0 | BC121: 0 | BD121: 0 | BE121: 0 | BF121: 0 | BG121: 0 | BH121: 0 | BI121: 0 | BJ121: 7.375616057e-09 | BK121: 1.486186636e-08 | BL121: 2.246041041e-08 | BM121: 3.017293262e-08 | BN121: 3.800114267e-08 | BO121: 4.594677587e-08 | BP121: 5.401159356e-08 | BQ121: 6.219738352e-08 | BR121: 7.050596033e-08 | BS121: 7.893916579e-08 | BT121: 8.749886934e-08 | BU121: 9.618696844e-08 | BV121: 1.05005389e-07 | BW121: 1.139560859e-07 | BX121: =BX118+BX119-BX120 -> 1.230410433e-07 | BY121: 1.32262275e-07 | BZ121: 1.416218251e-07 | CA121: 1.511217686e-07 | CB121: 1.607642112e-07
D123: Adjusted EBT | K123: =K115+K119-K120 -> 0 | L123: =L115+L119-L120 -> 481912.8791 | M123: 585813.9467 | N123: 640937.2759 | O123: 868134.1348 | P123: 927852.9342 | Q123: 1167651.549 | R123: 1263112.551 | S123: 1485728.361 | T123: 1555782.555 | U123: 1822775.11 | V123: 1898413.033 | W123: 2180059.341 | X123: 2261647.782 | Y123: 2558701.14 | Z123: 2683351.911 | AA123: 2960211.984 | AB123: 3054821.383 | AC123: 3385106.919 | AD123: 3486741.032 | AE123: 3834926.363 | AF123: 3944035.589 | AG123: 4311035.578 | AH123: 4472022.725 | AI123: 4815268.886 | AJ123: 4940704.586 | AK123: 5348269.996 | AL123: 5482503.156 | AM123: 5911909.858 | AN123: 6055492.703 | AO123: 6507851.25 | AP123: 6713929.409 | AQ123: 7035744.699 | AR123: 7092260.07 | AS123: 7484103.146 | AT123: 7543426.001 | AU123: 7953500.327 | AV123: 8015768.526 | AW123: 8444930.012 | AX123: 8573268.947 | AY123: 8959433.316 | AZ123: 11556649.36 | BA123: 12026717.15 | BB123: 12098717.86 | BC123: 12590691.87 | BD123: 12666260.43 | BE123: 13181170.91 | BF123: 13335901.39 | BG123: 13799408.6 | BH123: 13882646.97 | BI123: 14446719.18 | BJ123: 0 | BK123: 0 | BL123: 0 | BM123: 0 | BN123: 0 | BO123: 0 | BP123: 0 | BQ123: 0 | BR123: 0 | BS123: 0 | BT123: 0 | BU123: 0 | BV123: 0 | BW123: 0 | BX123: =BX115+BX119-BX120 -> 0 | BY123: 0 | BZ123: 0 | CA123: 0 | CB123: 0
D124: Taxes Paid | F124: =InputC!F46 -> 0 | K124: =$F$124*K123 -> 0 | L124: =$F$124*L123 -> 0 | M124: 0 | N124: 0 | O124: 0 | P124: 0 | Q124: 0 | R124: 0 | S124: 0 | T124: 0 | U124: 0 | V124: 0 | W124: 0 | X124: 0 | Y124: 0 | Z124: 0 | AA124: 0 | AB124: 0 | AC124: 0 | AD124: 0 | AE124: 0 | AF124: 0 | AG124: 0 | AH124: 0 | AI124: 0 | AJ124: 0 | AK124: 0 | AL124: 0 | AM124: 0 | AN124: 0 | AO124: 0 | AP124: 0 | AQ124: 0 | AR124: 0 | AS124: 0 | AT124: 0 | AU124: 0 | AV124: 0 | AW124: 0 | AX124: 0 | AY124: 0 | AZ124: 0 | BA124: 0 | BB124: 0 | BC124: 0 | BD124: 0 | BE124: 0 | BF124: 0 | BG124: 0 | BH124: 0 | BI124: 0 | BJ124: 0 | BK124: 0 | BL124: 0 | BM124: 0 | BN124: 0 | BO124: 0 | BP124: 0 | BQ124: 0 | BR124: 0 | BS124: 0 | BT124: 0 | BU124: 0 | BV124: 0 | BW124: 0 | BX124: =$F$124*BX123 -> 0 | BY124: 0 | BZ124: 0 | CA124: 0 | CB124: 0
C126: CFADS
D127: EBITDA | H127: USD | K127: =K86 -> 0 | L127: 4727500 | M127: 4810000 | N127: 4837201.474 | O127: 5035699.2 | P127: 5064267.816 | Q127: 5271948.173 | R127: 5332695.045 | S127: 5519242.443 | T127: 5550750.389 | U127: 5778101 | V127: 5811187.883 | W127: 6049067.417 | X127: 6083810.864 | Y127: 6332711.029 | Z127: 6405952.327 | AA127: 6629628.161 | AB127: 6667933.01 | AC127: 6940443.422 | AD127: 6980661.286 | AE127: 7265811.056 | AF127: 7308035.933 | AG127: 7606416.364 | AH127: 7694716.624 | AI127: 7962977.187 | AJ127: 8009516.733 | AK127: 8336245.469 | AL127: 8385102.576 | AM127: 8727008.886 | AN127: 8778297.385 | AO127: 9136092.567 | AP127: 9242545.591 | AQ127: =AQ86 -> 9564360.881 | AR127: 9620876.253 | AS127: 10012719.33 | AT127: 10072042.18 | AU127: 10482116.51 | AV127: 10544384.71 | AW127: 10973546.19 | AX127: 11101885.13 | AY127: 11488049.5 | AZ127: 11556649.36 | BA127: 12026717.15 | BB127: 12098717.86 | BC127: 12590691.87 | BD127: 12666260.43 | BE127: 13181170.91 | BF127: 13335901.39 | BG127: 13799408.6 | BH127: 13882646.97 | BI127: 14446719.18 | BJ127: 0 | BK127: 0 | BL127: 0 | BM127: 0 | BN127: 0 | BO127: 0 | BP127: 0 | BQ127: 0 | BR127: 0 | BS127: 0 | BT127: 0 | BU127: 0 | BV127: 0 | BW127: =BW86 -> 0 | BX127: 0 | BY127: 0 | BZ127: 0 | CA127: 0 | CB127: 0
D128: Less: Working Capital Changes | H128: USD | K128: =-K71 -> 0 | L128: =-L71 -> -483493.1507 | M128: -8013.69863 | N128: -2954.701785 | O128: -19601.68178 | P128: -3096.412983 | Q128: -20507.84352 | R128: -6233.446461 | S128: -18467.92876 | T128: -3400.736346 | U128: -22449.34263 | V128: -3564.03324 | W128: -23488.786 | X128: -3735.238231 | Y128: -24576.92687 | Z128: -7492.077828 | AA128: -22138.73114 | AB128: -4102.934719 | AC128: -26908.63786 | AD128: -4300.25562 | AE128: -28157.15757 | AF128: -4507.145339 | AG128: -29464.28486 | AH128: -9007.934385 | AI128: -26548.93763 | AJ128: -4951.52377 | AK128: -32265.61951 | AL128: -5190.017314 | AM128: -33765.79513 | AN128: -5440.091667 | AO128: -35336.52807 | AP128: -10834.15797 | AQ128: -31849.32749 | AR128: -5977.275926 | AS128: -38703.24284 | AT128: -6265.603423 | AU128: -40506.42339 | AV128: -6567.949735 | AW128: -42394.57466 | AX128: -13034.97441 | AY128: -38221.7696 | AZ128: -7217.477809 | BA128: -46442.16864 | BB128: -7566.135233 | BC128: -48610.2967 | BD128: -7931.766226 | BE128: -50880.78547 | BF128: -15688.02437 | BG128: -45885.69587 | BH128: -8717.317339 | BI128: -55748.61082 | BJ128: 1452205.178 | BK128: 0 | BL128: 0 | BM128: 0 | BN128: 0 | BO128: 0 | BP128: 0 | BQ128: 0 | BR128: 0 | BS128: 0 | BT128: 0 | BU128: 0 | BV128: 0 | BW128: 0 | BX128: =-BX71 -> 0 | BY128: 0 | BZ128: 0 | CA128: 0 | CB128: 0
D129: Less: Taxes Paid | H129: USD | K129: =-K124 -> 0 | L129: =-L124 -> 0 | M129: 0 | N129: 0 | O129: 0 | P129: 0 | Q129: 0 | R129: 0 | S129: 0 | T129: 0 | U129: 0 | V129: 0 | W129: 0 | X129: 0 | Y129: 0 | Z129: 0 | AA129: 0 | AB129: 0 | AC129: 0 | AD129: 0 | AE129: 0 | AF129: 0 | AG129: 0 | AH129: 0 | AI129: 0 | AJ129: 0 | AK129: 0 | AL129: 0 | AM129: 0 | AN129: 0 | AO129: 0 | AP129: 0 | AQ129: 0 | AR129: 0 | AS129: 0 | AT129: 0 | AU129: 0 | AV129: 0 | AW129: 0 | AX129: 0 | AY129: 0 | AZ129: 0 | BA129: 0 | BB129: 0 | BC129: 0 | BD129: 0 | BE129: 0 | BF129: 0 | BG129: 0 | BH129: 0 | BI129: 0 | BJ129: 0 | BK129: 0 | BL129: 0 | BM129: 0 | BN129: 0 | BO129: 0 | BP129: 0 | BQ129: 0 | BR129: 0 | BS129: 0 | BT129: 0 | BU129: 0 | BV129: 0 | BW129: 0 | BX129: =-BX124 -> 0 | BY129: 0 | BZ129: 0 | CA129: 0 | CB129: 0
D130: CFADS Fixed | H130: USD | J130: CFADS Fixed | K130: 0 | L130: 4244006.849 | M130: 4801986.301 | N130: 4834246.772 | O130: 5016097.518 | P130: 5061171.403 | Q130: 5251440.329 | R130: 5326461.598 | S130: 5500774.514 | T130: 5547349.652 | U130: 5755651.657 | V130: 5807623.85 | W130: 6025578.631 | X130: 6080075.625 | Y130: 6308134.102 | Z130: 6398460.249 | AA130: 6607489.43 | AB130: 6663830.075 | AC130: 6913534.784 | AD130: 6976361.031 | AE130: 7237653.898 | AF130: 7303528.787 | AG130: 7576952.079 | AH130: 7685708.689 | AI130: 7936428.25 | AJ130: 8004565.209 | AK130: 8303979.849 | AL130: 8379912.559 | AM130: 8693243.091 | AN130: 8772857.293 | AO130: 9100756.039 | AP130: 9231711.433 | AQ130: 9532511.554 | AR130: 9614898.977 | AS130: 9974016.085 | AT130: 10065776.58 | AU130: 10441610.09 | AV130: 10537816.76 | AW130: 10931151.62 | AX130: 11088850.16 | AY130: 11449827.73 | AZ130: 11549431.88 | BA130: 11980274.98 | BB130: 12091151.73 | BC130: 12542081.58 | BD130: 12658328.66 | BE130: 13130290.12 | BF130: 13320213.37 | BG130: 13753522.9 | BH130: 13873929.66 | BI130: 14390970.57 | BJ130: 1452205.178 | BK130: 0 | BL130: 0 | BM130: 0 | BN130: 0 | BO130: 0 | BP130: 0 | BQ130: 0 | BR130: 0 | BS130: 0 | BT130: 0 | BU130: 0 | BV130: 0 | BW130: 0 | BX130: 0 | BY130: 0 | BZ130: 0 | CA130: 0 | CB130: 0
D131: CFADS Computed | H131: USD | J131: CFADS Computed | K131: =SUM(K127:K129) -> 0 | L131: =SUM(L127:L129) -> 4244006.849 | M131: 4801986.301 | N131: 4834246.772 | O131: 5016097.518 | P131: 5061171.403 | Q131: 5251440.329 | R131: 5326461.598 | S131: 5500774.514 | T131: 5547349.652 | U131: 5755651.657 | V131: 5807623.85 | W131: 6025578.631 | X131: 6080075.625 | Y131: 6308134.102 | Z131: 6398460.249 | AA131: 6607489.43 | AB131: 6663830.075 | AC131: 6913534.784 | AD131: 6976361.031 | AE131: 7237653.898 | AF131: 7303528.787 | AG131: 7576952.079 | AH131: 7685708.689 | AI131: 7936428.25 | AJ131: 8004565.209 | AK131: 8303979.849 | AL131: 8379912.559 | AM131: 8693243.091 | AN131: 8772857.293 | AO131: 9100756.039 | AP131: 9231711.433 | AQ131: 9532511.554 | AR131: 9614898.977 | AS131: 9974016.085 | AT131: 10065776.58 | AU131: 10441610.09 | AV131: 10537816.76 | AW131: 10931151.62 | AX131: 11088850.16 | AY131: 11449827.73 | AZ131: 11549431.88 | BA131: 11980274.98 | BB131: 12091151.73 | BC131: 12542081.58 | BD131: 12658328.66 | BE131: 13130290.12 | BF131: 13320213.37 | BG131: 13753522.9 | BH131: 13873929.66 | BI131: 14390970.57 | BJ131: 1452205.178 | BK131: 0 | BL131: 0 | BM131: 0 | BN131: 0 | BO131: 0 | BP131: 0 | BQ131: 0 | BR131: 0 | BS131: 0 | BT131: 0 | BU131: 0 | BV131: 0 | BW131: 0 | BX131: =SUM(BX127:BX129) -> 0 | BY131: 0 | BZ131: 0 | CA131: 0 | CB131: 0
D132: Difference | H132: USD | I132: =SUM(K132:XFD132) -> 0 | K132: =K130-K131 -> 0 | L132: =L130-L131 -> 0 | M132: 0 | N132: 0 | O132: 0 | P132: 0 | Q132: 0 | R132: 0 | S132: 0 | T132: 0 | U132: 0 | V132: 0 | W132: 0 | X132: 0 | Y132: 0 | Z132: 0 | AA132: 0 | AB132: 0 | AC132: 0 | AD132: 0 | AE132: 0 | AF132: 0 | AG132: 0 | AH132: 0 | AI132: 0 | AJ132: 0 | AK132: 0 | AL132: 0 | AM132: 0 | AN132: 0 | AO132: 0 | AP132: 0 | AQ132: 0 | AR132: 0 | AS132: 0 | AT132: 0 | AU132: 0 | AV132: 0 | AW132: 0 | AX132: 0 | AY132: 0 | AZ132: 0 | BA132: 0 | BB132: 0 | BC132: 0 | BD132: 0 | BE132: 0 | BF132: 0 | BG132: 0 | BH132: 0 | BI132: 0 | BJ132: 0 | BK132: 0 | BL132: 0 | BM132: 0 | BN132: 0 | BO132: 0 | BP132: 0 | BQ132: 0 | BR132: 0 | BS132: 0 | BT132: 0 | BU132: 0 | BV132: 0 | BW132: 0 | BX132: =BX130-BX131 -> 0 | BY132: 0 | BZ132: 0 | CA132: 0 | CB132: 0
D134: CFADS over Debt Repayment | H134: USD | K134: =K130*K108 -> 0 | L134: =L130*L108 -> 4244006.849 | M134: 4801986.301 | N134: 4834246.772 | O134: 5016097.518 | P134: 5061171.403 | Q134: 5251440.329 | R134: 5326461.598 | S134: 5500774.514 | T134: 5547349.652 | U134: 5755651.657 | V134: 5807623.85 | W134: 6025578.631 | X134: 6080075.625 | Y134: 6308134.102 | Z134: 6398460.249 | AA134: 6607489.43 | AB134: 6663830.075 | AC134: 6913534.784 | AD134: 6976361.031 | AE134: 7237653.898 | AF134: 7303528.787 | AG134: 7576952.079 | AH134: 7685708.689 | AI134: 7936428.25 | AJ134: 8004565.209 | AK134: 8303979.849 | AL134: 8379912.559 | AM134: 8693243.091 | AN134: 8772857.293 | AO134: 9100756.039 | AP134: 0 | AQ134: 0 | AR134: 0 | AS134: 0 | AT134: 0 | AU134: 0 | AV134: 0 | AW134: 0 | AX134: 0 | AY134: 0 | AZ134: 0 | BA134: 0 | BB134: 0 | BC134: 0 | BD134: 0 | BE134: 0 | BF134: 0 | BG134: 0 | BH134: 0 | BI134: 0 | BJ134: 0 | BK134: 0 | BL134: 0 | BM134: 0 | BN134: 0 | BO134: 0 | BP134: 0 | BQ134: 0 | BR134: 0 | BS134: 0 | BT134: 0 | BU134: 0 | BV134: 0 | BW134: 0 | BX134: =BX130*BX108 -> 0 | BY134: 0 | BZ134: 0 | CA134: 0 | CB134: 0
D136: Periodic Discount Factor | E136: % p.a/p.p | F136: =InputC!F54 -> 0.03 | G136: =F136/2 -> 0.015 | H136: USD | J136: 1 | K136: =J136*(1+$G$136*K108) -> 1 | L136: =K136*(1+$G$136*L108) -> 1.015 | M136: 1.030225 | N136: 1.045678375 | O136: 1.061363551 | P136: 1.077284004 | Q136: 1.093443264 | R136: 1.109844913 | S136: 1.126492587 | T136: 1.143389975 | U136: 1.160540825 | V136: 1.177948937 | W136: 1.195618171 | X136: 1.213552444 | Y136: 1.231755731 | Z136: 1.250232067 | AA136: 1.268985548 | AB136: 1.288020331 | AC136: 1.307340636 | AD136: 1.326950745 | AE136: 1.346855007 | AF136: 1.367057832 | AG136: 1.387563699 | AH136: 1.408377155 | AI136: 1.429502812 | AJ136: 1.450945354 | AK136: 1.472709534 | AL136: 1.494800177 | AM136: 1.51722218 | AN136: 1.539980513 | AO136: 1.56308022 | AP136: 1.56308022 | AQ136: 1.56308022 | AR136: 1.56308022 | AS136: 1.56308022 | AT136: 1.56308022 | AU136: 1.56308022 | AV136: 1.56308022 | AW136: 1.56308022 | AX136: 1.56308022 | AY136: 1.56308022 | AZ136: 1.56308022 | BA136: 1.56308022 | BB136: 1.56308022 | BC136: 1.56308022 | BD136: 1.56308022 | BE136: 1.56308022 | BF136: 1.56308022 | BG136: 1.56308022 | BH136: 1.56308022 | BI136: 1.56308022 | BJ136: 1.56308022 | BK136: 1.56308022 | BL136: 1.56308022 | BM136: 1.56308022 | BN136: 1.56308022 | BO136: 1.56308022 | BP136: 1.56308022 | BQ136: 1.56308022 | BR136: 1.56308022 | BS136: 1.56308022 | BT136: 1.56308022 | BU136: 1.56308022 | BV136: 1.56308022 | BW136: 1.56308022 | BX136: =BW136*(1+$G$136*BX108) -> 1.56308022 | BY136: 1.56308022 | BZ136: 1.56308022 | CA136: 1.56308022 | CB136: 1.56308022
D138: Debt Service over Repayment | E138: x | F138: =InputC!F50 -> 1.35 | H138: USD | K138: =K134/$F$138 -> 0 | L138: =L134/$F$138 -> 3143708.777 | M138: 3557026.89 | N138: 3580923.535 | O138: 3715627.791 | P138: 3749015.854 | Q138: 3889955.799 | R138: 3945527.11 | S138: 4074647.788 | T138: 4109147.891 | U138: 4263445.672 | V138: 4301943.593 | W138: 4463391.579 | X138: 4503759.722 | Y138: 4672691.927 | Z138: 4739600.184 | AA138: 4894436.615 | AB138: 4936170.426 | AC138: 5121136.877 | AD138: 5167674.837 | AE138: 5361225.11 | AF138: 5410021.324 | AG138: 5612557.096 | AH138: 5693117.548 | AI138: 5878835.741 | AJ138: 5929307.562 | AK138: 6151096.185 | AL138: 6207342.636 | AM138: 6439439.327 | AN138: 6498412.81 | AO138: 6741300.769 | AP138: 0 | AQ138: 0 | AR138: 0 | AS138: 0 | AT138: 0 | AU138: 0 | AV138: 0 | AW138: 0 | AX138: 0 | AY138: 0 | AZ138: 0 | BA138: 0 | BB138: 0 | BC138: 0 | BD138: 0 | BE138: 0 | BF138: 0 | BG138: 0 | BH138: 0 | BI138: 0 | BJ138: 0 | BK138: 0 | BL138: 0 | BM138: 0 | BN138: 0 | BO138: 0 | BP138: 0 | BQ138: 0 | BR138: 0 | BS138: 0 | BT138: 0 | BU138: 0 | BV138: 0 | BW138: 0 | BX138: =BX134/$F$138 -> 0 | BY138: 0 | BZ138: 0 | CA138: 0 | CB138: 0
D139: PV of Debt Service with Sumproduct | E139: USD | F139: =SUMPRODUCT(K138:CB138/K136:CB136) -> 114464729.2
D141: Max Debt to Capital | E141: % | F141: =InputC!F51 -> 0.8
D142: Max Debt with Debt to capital | E142: USD | F142: =F141*F150 -> 160802600.3
D144: Debt Applied | E144: USD | F144: =MIN(F142,F139) -> 114464729.2
B146: Uses and Sources of Funds
C147: Uses of Funds
D148: Capital Expenditures | F148: =K148 -> 199858603.1 | G148: fees fixed | H148: fees computed | K148: =K32 -> 199858603.1 | L148: =L32 -> 0 | M148: =M32 -> 0 | N148: =N32 -> 0 | O148: =O32 -> 0 | P148: =P32 -> 0 | Q148: =Q32 -> 0 | R148: =R32 -> 0 | S148: =S32 -> 0 | T148: =T32 -> 0 | U148: =U32 -> 0 | V148: =V32 -> 0 | W148: =W32 -> 0 | X148: =X32 -> 0 | Y148: =Y32 -> 0 | Z148: =Z32 -> 0 | AA148: =AA32 -> 0 | AB148: =AB32 -> 0 | AC148: =AC32 -> 0 | AD148: =AD32 -> 0 | AE148: =AE32 -> 0 | AF148: =AF32 -> 0 | AG148: =AG32 -> 0 | AH148: =AH32 -> 0 | AI148: =AI32 -> 0 | AJ148: =AJ32 -> 0 | AK148: =AK32 -> 0 | AL148: =AL32 -> 0 | AM148: =AM32 -> 0 | AN148: =AN32 -> 0 | AO148: =AO32 -> 0 | AP148: =AP32 -> 0 | AQ148: =AQ32 -> 0 | AR148: =AR32 -> 0 | AS148: =AS32 -> 0 | AT148: =AT32 -> 0 | AU148: =AU32 -> 0 | AV148: =AV32 -> 0 | AW148: =AW32 -> 0 | AX148: =AX32 -> 0 | AY148: =AY32 -> 0 | AZ148: =AZ32 -> 0 | BA148: =BA32 -> 0 | BB148: =BB32 -> 0 | BC148: =BC32 -> 0 | BD148: =BD32 -> 0 | BE148: =BE32 -> 0 | BF148: =BF32 -> 0 | BG148: =BG32 -> 0 | BH148: =BH32 -> 0 | BI148: =BI32 -> 0 | BJ148: =BJ32 -> 0 | BK148: =BK32 -> 0 | BL148: =BL32 -> 0 | BM148: =BM32 -> 0 | BN148: =BN32 -> 0 | BO148: =BO32 -> 0 | BP148: =BP32 -> 0 | BQ148: =BQ32 -> 0 | BR148: =BR32 -> 0 | BS148: =BS32 -> 0 | BT148: =BT32 -> 0 | BU148: =BU32 -> 0 | BV148: =BV32 -> 0 | BW148: =BW32 -> 0 | BX148: =BX32 -> 0 | BY148: =BY32 -> 0 | BZ148: =BZ32 -> 0 | CA148: =CA32 -> 0 | CB148: =CB32 -> 0
D149: Debt Fees | F149: =G149 -> 1144647.292 | G149: 1144647.292 | H149: =K149 -> 1144647.292 | I149: =fees_fixed-fees_computed -> 0 | K149: =K167 -> 1144647.292 | L149: =L167 -> 0 | M149: 0 | N149: 0 | O149: 0 | P149: 0 | Q149: 0 | R149: 0 | S149: 0 | T149: 0 | U149: 0 | V149: 0 | W149: 0 | X149: 0 | Y149: 0 | Z149: 0 | AA149: 0 | AB149: 0 | AC149: 0 | AD149: 0 | AE149: 0 | AF149: 0 | AG149: 0 | AH149: 0 | AI149: 0 | AJ149: 0 | AK149: 0 | AL149: 0 | AM149: 0 | AN149: 0 | AO149: 0 | AP149: 0 | AQ149: 0 | AR149: 0 | AS149: 0 | AT149: 0 | AU149: 0 | AV149: 0 | AW149: 0 | AX149: 0 | AY149: 0 | AZ149: 0 | BA149: 0 | BB149: 0 | BC149: 0 | BD149: 0 | BE149: 0 | BF149: 0 | BG149: 0 | BH149: 0 | BI149: 0 | BJ149: 0 | BK149: 0 | BL149: 0 | BM149: 0 | BN149: 0 | BO149: 0 | BP149: 0 | BQ149: 0 | BR149: 0 | BS149: 0 | BT149: 0 | BU149: 0 | BV149: 0 | BW149: 0 | BX149: =BX167 -> 0 | BY149: 0 | BZ149: 0 | CA149: 0 | CB149: 0
D150: Total | F150: =SUM(F148:F149) -> 201003250.3 | K150: =SUM(K148:K149) -> 201003250.3 | L150: =SUM(L148:L149) -> 0 | M150: 0 | N150: 0 | O150: 0 | P150: 0 | Q150: 0 | R150: 0 | S150: 0 | T150: 0 | U150: 0 | V150: 0 | W150: 0 | X150: 0 | Y150: 0 | Z150: 0 | AA150: 0 | AB150: 0 | AC150: 0 | AD150: 0 | AE150: 0 | AF150: 0 | AG150: 0 | AH150: 0 | AI150: 0 | AJ150: 0 | AK150: 0 | AL150: 0 | AM150: 0 | AN150: 0 | AO150: 0 | AP150: 0 | AQ150: 0 | AR150: 0 | AS150: 0 | AT150: 0 | AU150: 0 | AV150: 0 | AW150: 0 | AX150: 0 | AY150: 0 | AZ150: 0 | BA150: 0 | BB150: 0 | BC150: 0 | BD150: 0 | BE150: 0 | BF150: 0 | BG150: 0 | BH150: 0 | BI150: 0 | BJ150: 0 | BK150: 0 | BL150: 0 | BM150: 0 | BN150: 0 | BO150: 0 | BP150: 0 | BQ150: 0 | BR150: 0 | BS150: 0 | BT150: 0 | BU150: 0 | BV150: 0 | BW150: 0 | BX150: =SUM(BX148:BX149) -> 0 | BY150: 0 | BZ150: 0 | CA150: 0 | CB150: 0
C152: Sources of Funds
D153: Debt | F153: =F144 -> 114464729.2 | G153: =F153/$F$150 -> 0.5694670561
D154: Equity | F154: =F150-F153 -> 86538521.11 | G154: =F154/$F$150 -> 0.4305329439
D155: Total | F155: =SUM(F153:F154) -> 201003250.3 | G155: =F155/$F$150 -> 1
D157: Total Difference for CP | H157: Difference | I157: =I149+I132 -> 0
B159: Debt Account
C161: Debt Balance
D162: Opening Balance | K162: =J165 -> 0 | L162: =K165 -> 114464729.2 | M162: 113037991.4 | N162: 111176534.4 | O162: 109263258.9 | P162: 107186580 | Q162: 105045362.8 | R162: 102731087.4 | S162: 100326526.6 | T162: 97756776.75 | U162: 95113980.51 | V162: 92277244.55 | W162: 89359459.63 | X162: 86236459.94 | Y162: 83026247.12 | Z162: 79598948.9 | AA162: 76053332.95 | AB162: 72299696.33 | AC162: 68448021.35 | AD162: 64353604.79 | AE162: 60151234.02 | AF162: 55692277.42 | AG162: 51117640.26 | AH162: 46271847.77 | AI162: 41272807.94 | AJ162: 36013064.32 | AK162: 30623952.72 | AL162: 24932215.82 | AM162: 19098856.43 | AN162: 12945899.95 | AO162: 6641675.635 | AP162: 3.650784492e-07 | AQ162: 3.70554626e-07 | AR162: 3.761129454e-07 | AS162: 3.817546396e-07 | AT162: 3.874809592e-07 | AU162: 3.932931735e-07 | AV162: 3.991925711e-07 | AW162: 4.051804597e-07 | AX162: 4.112581666e-07 | AY162: 4.174270391e-07 | AZ162: 4.236884447e-07 | BA162: 4.300437714e-07 | BB162: 4.364944279e-07 | BC162: 4.430418444e-07 | BD162: 4.49687472e-07 | BE162: 4.564327841e-07 | BF162: 4.632792759e-07 | BG162: 4.70228465e-07 | BH162: 4.77281892e-07 | BI162: 4.844411203e-07 | BJ162: 4.917077372e-07 | BK162: 4.990833532e-07 | BL162: 5.065696035e-07 | BM162: 5.141681476e-07 | BN162: 5.218806698e-07 | BO162: 5.297088798e-07 | BP162: 5.37654513e-07 | BQ162: 5.457193307e-07 | BR162: 5.539051207e-07 | BS162: 5.622136975e-07 | BT162: 5.706469029e-07 | BU162: 5.792066065e-07 | BV162: 5.878947056e-07 | BW162: 5.967131262e-07 | BX162: =BW165 -> 6.056638231e-07 | BY162: 6.147487804e-07 | BZ162: 6.239700121e-07 | CA162: 6.333295623e-07 | CB162: 6.428295057e-07
D163: Add: Draw | F163: =F153 -> 114464729.2 | K163: =$F$163*K5 -> 114464729.2 | L163: 0 | M163: 0 | N163: 0 | O163: 0 | P163: 0 | Q163: 0 | R163: 0 | S163: 0 | T163: 0 | U163: 0 | V163: 0 | W163: 0 | X163: 0 | Y163: 0 | Z163: 0 | AA163: 0 | AB163: 0 | AC163: 0 | AD163: 0 | AE163: 0 | AF163: 0 | AG163: 0 | AH163: 0 | AI163: 0 | AJ163: 0 | AK163: 0 | AL163: 0 | AM163: 0 | AN163: 0 | AO163: 0 | AP163: 0 | AQ163: =$F$163*AQ5 -> 0 | AR163: 0 | AS163: 0 | AT163: 0 | AU163: 0 | AV163: 0 | AW163: 0 | AX163: 0 | AY163: 0 | AZ163: 0 | BA163: 0 | BB163: 0 | BC163: 0 | BD163: 0 | BE163: 0 | BF163: 0 | BG163: 0 | BH163: 0 | BI163: 0 | BJ163: 0 | BK163: 0 | BL163: 0 | BM163: 0 | BN163: 0 | BO163: 0 | BP163: 0 | BQ163: 0 | BR163: 0 | BS163: 0 | BT163: 0 | BU163: 0 | BV163: 0 | BW163: =$F$163*BW5 -> 0 | BX163: 0 | BY163: 0 | BZ163: 0 | CA163: 0 | CB163: 0
D164: Less: Repayment (DS - Interest) | K164: =MIN(K138-K166,K162) -> 0 | L164: =MIN(L138-L166,L162) -> 1426737.839 | M164: 1861457.019 | N164: 1913275.519 | O164: 2076678.908 | P164: 2141217.155 | Q164: 2314275.357 | R164: 2404560.798 | S164: 2569749.889 | T164: 2642796.239 | U164: 2836735.964 | V164: 2917784.924 | W164: 3122999.684 | X164: 3210212.823 | Y164: 3427298.221 | Z164: 3545615.951 | AA164: 3753636.62 | AB164: 3851674.981 | AC164: 4094416.557 | AD164: 4202370.766 | AE164: 4458956.6 | AF164: 4574637.163 | AG164: 4845792.492 | AH164: 4999039.831 | AI164: 5259743.622 | AJ164: 5389111.598 | AK164: 5691736.894 | AL164: 5833359.399 | AM164: 6152956.481 | AN164: 6304224.31 | AO164: 6641675.635 | AP164: -5.476176739e-09 | AQ164: -5.55831939e-09 | AR164: -5.641694181e-09 | AS164: -5.726319593e-09 | AT164: -5.812214387e-09 | AU164: -5.899397603e-09 | AV164: -5.987888567e-09 | AW164: -6.077706896e-09 | AX164: -6.168872499e-09 | AY164: -6.261405587e-09 | AZ164: -6.35532667e-09 | BA164: -6.45065657e-09 | BB164: -6.547416419e-09 | BC164: -6.645627665e-09 | BD164: -6.74531208e-09 | BE164: -6.846491761e-09 | BF164: -6.949189138e-09 | BG164: -7.053426975e-09 | BH164: -7.15922838e-09 | BI164: -7.266616805e-09 | BJ164: -7.375616057e-09 | BK164: -7.486250298e-09 | BL164: -7.598544053e-09 | BM164: -7.712522213e-09 | BN164: -7.828210047e-09 | BO164: -7.945633197e-09 | BP164: -8.064817695e-09 | BQ164: -8.185789961e-09 | BR164: -8.30857681e-09 | BS164: -8.433205462e-09 | BT164: -8.559703544e-09 | BU164: -8.688099097e-09 | BV164: -8.818420584e-09 | BW164: -8.950696893e-09 | BX164: =MIN(BX138-BX166,BX162) -> -9.084957346e-09 | BY164: -9.221231706e-09 | BZ164: -9.359550182e-09 | CA164: -9.499943435e-09 | CB164: -9.642442586e-09
D165: Closing Balance | K165: =K162+K163-K164 -> 114464729.2 | L165: =L162+L163-L164 -> 113037991.4 | M165: 111176534.4 | N165: 109263258.9 | O165: 107186580 | P165: 105045362.8 | Q165: 102731087.4 | R165: 100326526.6 | S165: 97756776.75 | T165: 95113980.51 | U165: 92277244.55 | V165: 89359459.63 | W165: 86236459.94 | X165: 83026247.12 | Y165: 79598948.9 | Z165: 76053332.95 | AA165: 72299696.33 | AB165: 68448021.35 | AC165: 64353604.79 | AD165: 60151234.02 | AE165: 55692277.42 | AF165: 51117640.26 | AG165: 46271847.77 | AH165: 41272807.94 | AI165: 36013064.32 | AJ165: 30623952.72 | AK165: 24932215.82 | AL165: 19098856.43 | AM165: 12945899.95 | AN165: 6641675.635 | AO165: 3.650784492e-07 | AP165: 3.70554626e-07 | AQ165: 3.761129454e-07 | AR165: 3.817546396e-07 | AS165: 3.874809592e-07 | AT165: 3.932931735e-07 | AU165: 3.991925711e-07 | AV165: 4.051804597e-07 | AW165: 4.112581666e-07 | AX165: 4.174270391e-07 | AY165: 4.236884447e-07 | AZ165: 4.300437714e-07 | BA165: 4.364944279e-07 | BB165: 4.430418444e-07 | BC165: 4.49687472e-07 | BD165: 4.564327841e-07 | BE165: 4.632792759e-07 | BF165: 4.70228465e-07 | BG165: 4.77281892e-07 | BH165: 4.844411203e-07 | BI165: 4.917077372e-07 | BJ165: 4.990833532e-07 | BK165: 5.065696035e-07 | BL165: 5.141681476e-07 | BM165: 5.218806698e-07 | BN165: 5.297088798e-07 | BO165: 5.37654513e-07 | BP165: 5.457193307e-07 | BQ165: 5.539051207e-07 | BR165: 5.622136975e-07 | BS165: 5.706469029e-07 | BT165: 5.792066065e-07 | BU165: 5.878947056e-07 | BV165: 5.967131262e-07 | BW165: 6.056638231e-07 | BX165: =BX162+BX163-BX164 -> 6.147487804e-07 | BY165: 6.239700121e-07 | BZ165: 6.333295623e-07 | CA165: 6.428295057e-07 | CB165: 6.524719483e-07
D166: Interest Cost | F166: =G136 -> 0.015 | K166: =K162*$F$166 -> 0 | L166: =L162*$F$166 -> 1716970.939 | M166: 1695569.871 | N166: 1667648.016 | O166: 1638948.883 | P166: 1607798.699 | Q166: 1575680.442 | R166: 1540966.312 | S166: 1504897.9 | T166: 1466351.651 | U166: 1426709.708 | V166: 1384158.668 | W166: 1340391.894 | X166: 1293546.899 | Y166: 1245393.707 | Z166: 1193984.233 | AA166: 1140799.994 | AB166: 1084495.445 | AC166: 1026720.32 | AD166: 965304.0718 | AE166: 902268.5103 | AF166: 835384.1613 | AG166: 766764.6039 | AH166: 694077.7165 | AI166: 619092.1191 | AJ166: 540195.9647 | AK166: 459359.2908 | AL166: 373983.2374 | AM166: 286482.8464 | AN166: 194188.4992 | AO166: 99625.13452 | AP166: 5.476176739e-09 | AQ166: 5.55831939e-09 | AR166: 5.641694181e-09 | AS166: 5.726319593e-09 | AT166: 5.812214387e-09 | AU166: 5.899397603e-09 | AV166: 5.987888567e-09 | AW166: 6.077706896e-09 | AX166: 6.168872499e-09 | AY166: 6.261405587e-09 | AZ166: 6.35532667e-09 | BA166: 6.45065657e-09 | BB166: 6.547416419e-09 | BC166: 6.645627665e-09 | BD166: 6.74531208e-09 | BE166: 6.846491761e-09 | BF166: 6.949189138e-09 | BG166: 7.053426975e-09 | BH166: 7.15922838e-09 | BI166: 7.266616805e-09 | BJ166: 7.375616057e-09 | BK166: 7.486250298e-09 | BL166: 7.598544053e-09 | BM166: 7.712522213e-09 | BN166: 7.828210047e-09 | BO166: 7.945633197e-09 | BP166: 8.064817695e-09 | BQ166: 8.185789961e-09 | BR166: 8.30857681e-09 | BS166: 8.433205462e-09 | BT166: 8.559703544e-09 | BU166: 8.688099097e-09 | BV166: 8.818420584e-09 | BW166: 8.950696893e-09 | BX166: =BX162*$F$166 -> 9.084957346e-09 | BY166: 9.221231706e-09 | BZ166: 9.359550182e-09 | CA166: 9.499943435e-09 | CB166: 9.642442586e-09
D167: Debt Fees | F167: =InputC!F55 -> 0.01 | K167: =K163*$F$167*K5 -> 1144647.292 | L167: 0 | M167: 0 | N167: 0 | O167: 0 | P167: 0 | Q167: 0 | R167: 0 | S167: 0 | T167: 0 | U167: 0 | V167: 0 | W167: 0 | X167: 0 | Y167: 0 | Z167: 0 | AA167: 0 | AB167: 0 | AC167: 0 | AD167: 0 | AE167: 0 | AF167: 0 | AG167: 0 | AH167: 0 | AI167: 0 | AJ167: 0 | AK167: 0 | AL167: 0 | AM167: 0 | AN167: 0 | AO167: 0 | AP167: 0 | AQ167: =AQ163*$F$167*AQ5 -> 0 | AR167: 0 | AS167: 0 | AT167: 0 | AU167: 0 | AV167: 0 | AW167: 0 | AX167: 0 | AY167: 0 | AZ167: 0 | BA167: 0 | BB167: 0 | BC167: 0 | BD167: 0 | BE167: 0 | BF167: 0 | BG167: 0 | BH167: 0 | BI167: 0 | BJ167: 0 | BK167: 0 | BL167: 0 | BM167: 0 | BN167: 0 | BO167: 0 | BP167: 0 | BQ167: 0 | BR167: 0 | BS167: 0 | BT167: 0 | BU167: 0 | BV167: 0 | BW167: =BW163*$F$167*BW5 -> 0 | BX167: 0 | BY167: 0 | BZ167: 0 | CA167: 0 | CB167: 0
D169: Check of Closing Balance | F169: =F107*2+1 -> 31 | G169: =LOOKUP(F169,2:2,165:165) -> 3.650784492e-07 | H169: =ROUND(G169,0)=0 -> TRUE
B171: Cash Flow Waterfall
C172: Equity Cash Flow
D173: CFADS | K173: =K130 -> 0 | L173: 4244006.849 | M173: 4801986.301 | N173: 4834246.772 | O173: 5016097.518 | P173: 5061171.403 | Q173: 5251440.329 | R173: 5326461.598 | S173: 5500774.514 | T173: 5547349.652 | U173: 5755651.657 | V173: 5807623.85 | W173: 6025578.631 | X173: 6080075.625 | Y173: 6308134.102 | Z173: 6398460.249 | AA173: 6607489.43 | AB173: 6663830.075 | AC173: 6913534.784 | AD173: 6976361.031 | AE173: 7237653.898 | AF173: 7303528.787 | AG173: 7576952.079 | AH173: 7685708.689 | AI173: 7936428.25 | AJ173: 8004565.209 | AK173: 8303979.849 | AL173: 8379912.559 | AM173: 8693243.091 | AN173: 8772857.293 | AO173: 9100756.039 | AP173: 9231711.433 | AQ173: =AQ130 -> 9532511.554 | AR173: 9614898.977 | AS173: 9974016.085 | AT173: 10065776.58 | AU173: 10441610.09 | AV173: 10537816.76 | AW173: 10931151.62 | AX173: 11088850.16 | AY173: 11449827.73 | AZ173: 11549431.88 | BA173: 11980274.98 | BB173: 12091151.73 | BC173: 12542081.58 | BD173: 12658328.66 | BE173: 13130290.12 | BF173: 13320213.37 | BG173: 13753522.9 | BH173: 13873929.66 | BI173: 14390970.57 | BJ173: 1452205.178 | BK173: 0 | BL173: 0 | BM173: 0 | BN173: 0 | BO173: 0 | BP173: 0 | BQ173: 0 | BR173: 0 | BS173: 0 | BT173: 0 | BU173: 0 | BV173: 0 | BW173: =BW130 -> 0 | BX173: 0 | BY173: 0 | BZ173: 0 | CA173: 0 | CB173: 0
D174: Less: Debt Service | K174: =K166+K164 -> 0 | L174: =L166+L164 -> 3143708.777 | M174: 3557026.89 | N174: 3580923.535 | O174: 3715627.791 | P174: 3749015.854 | Q174: 3889955.799 | R174: 3945527.11 | S174: 4074647.788 | T174: 4109147.891 | U174: 4263445.672 | V174: 4301943.593 | W174: 4463391.579 | X174: 4503759.722 | Y174: 4672691.927 | Z174: 4739600.184 | AA174: 4894436.615 | AB174: 4936170.426 | AC174: 5121136.877 | AD174: 5167674.837 | AE174: 5361225.11 | AF174: 5410021.324 | AG174: 5612557.096 | AH174: 5693117.548 | AI174: 5878835.741 | AJ174: 5929307.562 | AK174: 6151096.185 | AL174: 6207342.636 | AM174: 6439439.327 | AN174: 6498412.81 | AO174: 6741300.769 | AP174: 0 | AQ174: 0 | AR174: 0 | AS174: 0 | AT174: 0 | AU174: 0 | AV174: 0 | AW174: 0 | AX174: 0 | AY174: 0 | AZ174: 0 | BA174: 0 | BB174: 0 | BC174: 0 | BD174: 0 | BE174: 0 | BF174: 0 | BG174: 0 | BH174: 0 | BI174: 0 | BJ174: 0 | BK174: 0 | BL174: 0 | BM174: 0 | BN174: 0 | BO174: 0 | BP174: 0 | BQ174: 0 | BR174: 0 | BS174: 0 | BT174: 0 | BU174: 0 | BV174: 0 | BW174: 0 | BX174: =BX166+BX164 -> 0 | BY174: 0 | BZ174: 0 | CA174: 0 | CB174: 0
D175: Cash to Equity | K175: =K173-K174 -> 0 | L175: =L173-L174 -> 1100298.072 | M175: 1244959.411 | N175: 1253323.237 | O175: 1300469.727 | P175: 1312155.549 | Q175: 1361484.53 | R175: 1380934.488 | S175: 1426126.726 | T175: 1438201.762 | U175: 1492205.985 | V175: 1505680.257 | W175: 1562187.053 | X175: 1576315.903 | Y175: 1635442.175 | Z175: 1658860.064 | AA175: 1713052.815 | AB175: 1727659.649 | AC175: 1792397.907 | AD175: 1808686.193 | AE175: 1876428.788 | AF175: 1893507.463 | AG175: 1964394.984 | AH175: 1992591.142 | AI175: 2057592.509 | AJ175: 2075257.647 | AK175: 2152883.665 | AL175: 2172569.923 | AM175: 2253803.764 | AN175: 2274444.483 | AO175: 2359455.269 | AP175: 9231711.433 | AQ175: 9532511.554 | AR175: 9614898.977 | AS175: 9974016.085 | AT175: 10065776.58 | AU175: 10441610.09 | AV175: 10537816.76 | AW175: 10931151.62 | AX175: 11088850.16 | AY175: 11449827.73 | AZ175: 11549431.88 | BA175: 11980274.98 | BB175: 12091151.73 | BC175: 12542081.58 | BD175: 12658328.66 | BE175: 13130290.12 | BF175: 13320213.37 | BG175: 13753522.9 | BH175: 13873929.66 | BI175: 14390970.57 | BJ175: 1452205.178 | BK175: 0 | BL175: 0 | BM175: 0 | BN175: 0 | BO175: 0 | BP175: 0 | BQ175: 0 | BR175: 0 | BS175: 0 | BT175: 0 | BU175: 0 | BV175: 0 | BW175: 0 | BX175: =BX173-BX174 -> 0 | BY175: 0 | BZ175: 0 | CA175: 0 | CB175: 0
D177: Total Expenditure | K177: =K32 -> 199858603.1
D178: Less: Debt | F178: =F163 -> 114464729.2 | K178: =$F$178*K5 -> 114464729.2 | L178: 0 | M178: 0 | N178: 0 | O178: 0 | P178: 0 | Q178: 0 | R178: 0 | S178: 0 | T178: 0 | U178: 0 | V178: 0 | W178: 0 | X178: 0 | Y178: 0 | Z178: 0 | AA178: 0 | AB178: 0 | AC178: 0 | AD178: 0 | AE178: 0 | AF178: 0 | AG178: 0 | AH178: 0 | AI178: 0 | AJ178: 0 | AK178: 0 | AL178: 0 | AM178: 0 | AN178: 0 | AO178: 0 | AP178: 0 | AQ178: =$F$178*AQ5 -> 0 | AR178: 0 | AS178: 0 | AT178: 0 | AU178: 0 | AV178: 0 | AW178: 0 | AX178: 0 | AY178: 0 | AZ178: 0 | BA178: 0 | BB178: 0 | BC178: 0 | BD178: 0 | BE178: 0 | BF178: 0 | BG178: 0 | BH178: 0 | BI178: 0 | BJ178: 0 | BK178: 0 | BL178: 0 | BM178: 0 | BN178: 0 | BO178: 0 | BP178: 0 | BQ178: 0 | BR178: 0 | BS178: 0 | BT178: 0 | BU178: 0 | BV178: 0 | BW178: =$F$178*BW5 -> 0 | BX178: 0 | BY178: 0 | BZ178: 0 | CA178: 0 | CB178: 0
D179: Less: Fees on Debt | F179: =InputC!F55 -> 0.01 | G179: =F179*F163 -> 1144647.292 | K179: =$G$179*K5 -> 1144647.292 | L179: 0 | M179: 0 | N179: 0 | O179: 0 | P179: 0 | Q179: 0 | R179: 0 | S179: 0 | T179: 0 | U179: 0 | V179: 0 | W179: 0 | X179: 0 | Y179: 0 | Z179: 0 | AA179: 0 | AB179: 0 | AC179: 0 | AD179: 0 | AE179: 0 | AF179: 0 | AG179: 0 | AH179: 0 | AI179: 0 | AJ179: 0 | AK179: 0 | AL179: 0 | AM179: 0 | AN179: 0 | AO179: 0 | AP179: 0 | AQ179: =$G$179*AQ5 -> 0 | AR179: 0 | AS179: 0 | AT179: 0 | AU179: 0 | AV179: 0 | AW179: 0 | AX179: 0 | AY179: 0 | AZ179: 0 | BA179: 0 | BB179: 0 | BC179: 0 | BD179: 0 | BE179: 0 | BF179: 0 | BG179: 0 | BH179: 0 | BI179: 0 | BJ179: 0 | BK179: 0 | BL179: 0 | BM179: 0 | BN179: 0 | BO179: 0 | BP179: 0 | BQ179: 0 | BR179: 0 | BS179: 0 | BT179: 0 | BU179: 0 | BV179: 0 | BW179: =$G$179*BW5 -> 0 | BX179: 0 | BY179: 0 | BZ179: 0 | CA179: 0 | CB179: 0
D180: Net Equity Invested | K180: =K177-K178-K179 -> 84249226.52 | L180: =L177-L178-L179 -> 0 | M180: 0 | N180: 0 | O180: 0 | P180: 0 | Q180: 0 | R180: 0 | S180: 0 | T180: 0 | U180: 0 | V180: 0 | W180: 0 | X180: 0 | Y180: 0 | Z180: 0 | AA180: 0 | AB180: 0 | AC180: 0 | AD180: 0 | AE180: 0 | AF180: 0 | AG180: 0 | AH180: 0 | AI180: 0 | AJ180: 0 | AK180: 0 | AL180: 0 | AM180: 0 | AN180: 0 | AO180: 0 | AP180: 0 | AQ180: 0 | AR180: 0 | AS180: 0 | AT180: 0 | AU180: 0 | AV180: 0 | AW180: 0 | AX180: 0 | AY180: 0 | AZ180: 0 | BA180: 0 | BB180: 0 | BC180: 0 | BD180: 0 | BE180: 0 | BF180: 0 | BG180: 0 | BH180: 0 | BI180: 0 | BJ180: 0 | BK180: 0 | BL180: 0 | BM180: 0 | BN180: 0 | BO180: 0 | BP180: 0 | BQ180: 0 | BR180: 0 | BS180: 0 | BT180: 0 | BU180: 0 | BV180: 0 | BW180: 0 | BX180: =BX177-BX178-BX179 -> 0 | BY180: 0 | BZ180: 0 | CA180: 0 | CB180: 0
D182: Equity Cash Flow | K182: =K175-K180 -> -84249226.52 | L182: =L175-L180 -> 1100298.072 | M182: 1244959.411 | N182: 1253323.237 | O182: 1300469.727 | P182: 1312155.549 | Q182: 1361484.53 | R182: 1380934.488 | S182: 1426126.726 | T182: 1438201.762 | U182: 1492205.985 | V182: 1505680.257 | W182: 1562187.053 | X182: 1576315.903 | Y182: 1635442.175 | Z182: 1658860.064 | AA182: 1713052.815 | AB182: 1727659.649 | AC182: 1792397.907 | AD182: 1808686.193 | AE182: 1876428.788 | AF182: 1893507.463 | AG182: 1964394.984 | AH182: 1992591.142 | AI182: 2057592.509 | AJ182: 2075257.647 | AK182: 2152883.665 | AL182: 2172569.923 | AM182: 2253803.764 | AN182: 2274444.483 | AO182: 2359455.269 | AP182: 9231711.433 | AQ182: 9532511.554 | AR182: 9614898.977 | AS182: 9974016.085 | AT182: 10065776.58 | AU182: 10441610.09 | AV182: 10537816.76 | AW182: 10931151.62 | AX182: 11088850.16 | AY182: 11449827.73 | AZ182: 11549431.88 | BA182: 11980274.98 | BB182: 12091151.73 | BC182: 12542081.58 | BD182: 12658328.66 | BE182: 13130290.12 | BF182: 13320213.37 | BG182: 13753522.9 | BH182: 13873929.66 | BI182: 14390970.57 | BJ182: 1452205.178 | BK182: 0 | BL182: 0 | BM182: 0 | BN182: 0 | BO182: 0 | BP182: 0 | BQ182: 0 | BR182: 0 | BS182: 0 | BT182: 0 | BU182: 0 | BV182: 0 | BW182: 0 | BX182: =BX175-BX180 -> 0 | BY182: 0 | BZ182: 0 | CA182: 0 | CB182: 0
D183: Equity IRR | F183: =XIRR(K182:CB182,K4:CB4) -> 0.0735119909
D185: Target IRR | F185: =InputC!F57 -> 0.08
D186: NPV at Target IRR | F186: =XNPV(F185,K182:CB182,K4:CB4) -> -7513471.719 | G186: NPV
D187: Headline Price from IRR | F187: 171025037.5 | G187: Headline Price No Sale
B189: IRR with Project Sale
D190: Equity Cash Flow | K190: =K182 -> -84249226.52 | L190: =L182 -> 1100298.072 | M190: 1244959.411 | N190: 1253323.237 | O190: 1300469.727 | P190: 1312155.549 | Q190: 1361484.53 | R190: 1380934.488 | S190: 1426126.726 | T190: 1438201.762 | U190: 1492205.985 | V190: 1505680.257 | W190: 1562187.053 | X190: 1576315.903 | Y190: 1635442.175 | Z190: 1658860.064 | AA190: 1713052.815 | AB190: 1727659.649 | AC190: 1792397.907 | AD190: 1808686.193 | AE190: 1876428.788 | AF190: 1893507.463 | AG190: 1964394.984 | AH190: 1992591.142 | AI190: 2057592.509 | AJ190: 2075257.647 | AK190: 2152883.665 | AL190: 2172569.923 | AM190: 2253803.764 | AN190: 2274444.483 | AO190: 2359455.269 | AP190: 9231711.433 | AQ190: 9532511.554 | AR190: 9614898.977 | AS190: 9974016.085 | AT190: 10065776.58 | AU190: 10441610.09 | AV190: 10537816.76 | AW190: 10931151.62 | AX190: 11088850.16 | AY190: 11449827.73 | AZ190: 11549431.88 | BA190: 11980274.98 | BB190: 12091151.73 | BC190: 12542081.58 | BD190: 12658328.66 | BE190: 13130290.12 | BF190: 13320213.37 | BG190: 13753522.9 | BH190: 13873929.66 | BI190: 14390970.57 | BJ190: 1452205.178 | BK190: 0 | BL190: 0 | BM190: 0 | BN190: 0 | BO190: 0 | BP190: 0 | BQ190: 0 | BR190: 0 | BS190: 0 | BT190: 0 | BU190: 0 | BV190: 0 | BW190: 0 | BX190: =BX182 -> 0 | BY190: 0 | BZ190: 0 | CA190: 0 | CB190: 0
D191: NPV of Cash Flow t+1 at Buyer IRR | F191: =InputC!F58 -> 0.07 | G191: =(1+F191)^0.5-1 -> 0.03440804328 | K191: =NPV($G$191,L190:CB190) -> 88753866.4 | L191: =NPV($G$191,M190:CC190) -> 90707415.21 | M191: 92583520.46 | N191: 94515815 | O191: 96467449.53 | P191: 98474550.16 | Q191: 100501382.2 | R191: 102578503.6 | S191: 104681902.5 | T191: 106845600.2 | U191: 109029742.2 | V191: 111275562.1 | W191: 113542149.4 | X191: 115872596.6 | Y191: 118224103.8 | Z191: 120633103.8 | AA191: 123070800 | AB191: 125577765.8 | AC191: 128106253.1 | AD191: 130705452.4 | AE191: 133326342.5 | AF191: 136020333.6 | AG191: 138736132.1 | AH191: 141517179.8 | AI191: 144328916.6 | AJ191: 147219734.5 | AK191: 150132393.9 | AL191: 153125585.8 | AM191: 156140533.9 | AN191: 159238579.6 | AO191: 162358212.3 | AP191: 158712929.3 | AQ191: 154641419 | AR191: 150347428.7 | AS191: 145546573.4 | AT191: 140488769.7 | AU191: 134881103.2 | AV191: 128984281.3 | AW191: 122491226.4 | AX191: 115617059.7 | AY191: 108145388.8 | AZ191: 100317028.1 | BA191: 91788465.78 | BB191: 82855575.55 | BC191: 73164392.2 | BD191: 63023507.11 | BE191: 52061732.55 | BF191: 40532861.53 | BG191: 28173995.08 | BH191: 15269477.47 | BI191: 1403899.735 | BJ191: 0 | BK191: 0 | BL191: 0 | BM191: 0 | BN191: 0 | BO191: 0 | BP191: 0 | BQ191: 0 | BR191: 0 | BS191: 0 | BT191: 0 | BU191: 0 | BV191: 0 | BW191: 0 | BX191: =NPV($G$191,BY190:EO190) -> 0 | BY191: 0 | BZ191: 0 | CA191: 0 | CB191: 0
D193: Sale Date | K193: =K7 -> 0 | L193: =L7 -> 0 | M193: =M7 -> 0 | N193: =N7 -> 0 | O193: =O7 -> 0 | P193: =P7 -> 0 | Q193: =Q7 -> 0 | R193: =R7 -> 0 | S193: =S7 -> 0 | T193: =T7 -> 0 | U193: =U7 -> 0 | V193: =V7 -> 0 | W193: =W7 -> 1 | X193: =X7 -> 0 | Y193: =Y7 -> 0 | Z193: =Z7 -> 0 | AA193: =AA7 -> 0 | AB193: =AB7 -> 0 | AC193: =AC7 -> 0 | AD193: =AD7 -> 0 | AE193: =AE7 -> 0 | AF193: =AF7 -> 0 | AG193: =AG7 -> 0 | AH193: =AH7 -> 0 | AI193: =AI7 -> 0 | AJ193: =AJ7 -> 0 | AK193: =AK7 -> 0 | AL193: =AL7 -> 0 | AM193: =AM7 -> 0 | AN193: =AN7 -> 0 | AO193: =AO7 -> 0 | AP193: =AP7 -> 0 | AQ193: =AQ7 -> 0 | AR193: =AR7 -> 0 | AS193: =AS7 -> 0 | AT193: =AT7 -> 0 | AU193: =AU7 -> 0 | AV193: =AV7 -> 0 | AW193: =AW7 -> 0 | AX193: =AX7 -> 0 | AY193: =AY7 -> 0 | AZ193: =AZ7 -> 0 | BA193: =BA7 -> 0 | BB193: =BB7 -> 0 | BC193: =BC7 -> 0 | BD193: =BD7 -> 0 | BE193: =BE7 -> 0 | BF193: =BF7 -> 0 | BG193: =BG7 -> 0 | BH193: =BH7 -> 0 | BI193: =BI7 -> 0 | BJ193: =BJ7 -> 0 | BK193: =BK7 -> 0 | BL193: =BL7 -> 0 | BM193: =BM7 -> 0 | BN193: =BN7 -> 0 | BO193: =BO7 -> 0 | BP193: =BP7 -> 0 | BQ193: =BQ7 -> 0 | BR193: =BR7 -> 0 | BS193: =BS7 -> 0 | BT193: =BT7 -> 0 | BU193: =BU7 -> 0 | BV193: =BV7 -> 0 | BW193: =BW7 -> 0 | BX193: =BX7 -> 0 | BY193: =BY7 -> 0 | BZ193: =BZ7 -> 0 | CA193: =CA7 -> 0 | CB193: =CB7 -> 0
D194: Holdng Period | F194: =F7 -> 2030-12-31 | K194: =(K4<=$F$194)*1 -> 1 | L194: =(L4<=$F$194)*1 -> 1 | M194: =(M4<=$F$194)*1 -> 1 | N194: =(N4<=$F$194)*1 -> 1 | O194: =(O4<=$F$194)*1 -> 1 | P194: =(P4<=$F$194)*1 -> 1 | Q194: =(Q4<=$F$194)*1 -> 1 | R194: =(R4<=$F$194)*1 -> 1 | S194: =(S4<=$F$194)*1 -> 1 | T194: =(T4<=$F$194)*1 -> 1 | U194: =(U4<=$F$194)*1 -> 1 | V194: =(V4<=$F$194)*1 -> 1 | W194: =(W4<=$F$194)*1 -> 1 | X194: =(X4<=$F$194)*1 -> 0 | Y194: =(Y4<=$F$194)*1 -> 0 | Z194: =(Z4<=$F$194)*1 -> 0 | AA194: =(AA4<=$F$194)*1 -> 0 | AB194: =(AB4<=$F$194)*1 -> 0 | AC194: =(AC4<=$F$194)*1 -> 0 | AD194: =(AD4<=$F$194)*1 -> 0 | AE194: =(AE4<=$F$194)*1 -> 0 | AF194: =(AF4<=$F$194)*1 -> 0 | AG194: =(AG4<=$F$194)*1 -> 0 | AH194: =(AH4<=$F$194)*1 -> 0 | AI194: =(AI4<=$F$194)*1 -> 0 | AJ194: =(AJ4<=$F$194)*1 -> 0 | AK194: =(AK4<=$F$194)*1 -> 0 | AL194: =(AL4<=$F$194)*1 -> 0 | AM194: =(AM4<=$F$194)*1 -> 0 | AN194: =(AN4<=$F$194)*1 -> 0 | AO194: =(AO4<=$F$194)*1 -> 0 | AP194: =(AP4<=$F$194)*1 -> 0 | AQ194: =(AQ4<=$F$194)*1 -> 0 | AR194: =(AR4<=$F$194)*1 -> 0 | AS194: =(AS4<=$F$194)*1 -> 0 | AT194: =(AT4<=$F$194)*1 -> 0 | AU194: =(AU4<=$F$194)*1 -> 0 | AV194: =(AV4<=$F$194)*1 -> 0 | AW194: =(AW4<=$F$194)*1 -> 0 | AX194: =(AX4<=$F$194)*1 -> 0 | AY194: =(AY4<=$F$194)*1 -> 0 | AZ194: =(AZ4<=$F$194)*1 -> 0 | BA194: =(BA4<=$F$194)*1 -> 0 | BB194: =(BB4<=$F$194)*1 -> 0 | BC194: =(BC4<=$F$194)*1 -> 0 | BD194: =(BD4<=$F$194)*1 -> 0 | BE194: =(BE4<=$F$194)*1 -> 0 | BF194: =(BF4<=$F$194)*1 -> 0 | BG194: =(BG4<=$F$194)*1 -> 0 | BH194: =(BH4<=$F$194)*1 -> 0 | BI194: =(BI4<=$F$194)*1 -> 0 | BJ194: =(BJ4<=$F$194)*1 -> 0 | BK194: =(BK4<=$F$194)*1 -> 0 | BL194: =(BL4<=$F$194)*1 -> 0 | BM194: =(BM4<=$F$194)*1 -> 0 | BN194: =(BN4<=$F$194)*1 -> 0 | BO194: =(BO4<=$F$194)*1 -> 0 | BP194: =(BP4<=$F$194)*1 -> 0 | BQ194: =(BQ4<=$F$194)*1 -> 0 | BR194: =(BR4<=$F$194)*1 -> 0 | BS194: =(BS4<=$F$194)*1 -> 0 | BT194: =(BT4<=$F$194)*1 -> 0 | BU194: =(BU4<=$F$194)*1 -> 0 | BV194: =(BV4<=$F$194)*1 -> 0 | BW194: =(BW4<=$F$194)*1 -> 0 | BX194: =(BX4<=$F$194)*1 -> 0 | BY194: =(BY4<=$F$194)*1 -> 0 | BZ194: =(BZ4<=$F$194)*1 -> 0 | CA194: =(CA4<=$F$194)*1 -> 0 | CB194: =(CB4<=$F$194)*1 -> 0
D196: Cash Flow over Holding Period | K196: =K193*K191+K194*K190 -> -84249226.52 | L196: =L193*L191+L194*L190 -> 1100298.072 | M196: =M193*M191+M194*M190 -> 1244959.411 | N196: =N193*N191+N194*N190 -> 1253323.237 | O196: =O193*O191+O194*O190 -> 1300469.727 | P196: =P193*P191+P194*P190 -> 1312155.549 | Q196: =Q193*Q191+Q194*Q190 -> 1361484.53 | R196: =R193*R191+R194*R190 -> 1380934.488 | S196: =S193*S191+S194*S190 -> 1426126.726 | T196: =T193*T191+T194*T190 -> 1438201.762 | U196: =U193*U191+U194*U190 -> 1492205.985 | V196: =V193*V191+V194*V190 -> 1505680.257 | W196: =W193*W191+W194*W190 -> 115104336.4 | X196: =X193*X191+X194*X190 -> 0 | Y196: =Y193*Y191+Y194*Y190 -> 0 | Z196: =Z193*Z191+Z194*Z190 -> 0 | AA196: =AA193*AA191+AA194*AA190 -> 0 | AB196: =AB193*AB191+AB194*AB190 -> 0 | AC196: =AC193*AC191+AC194*AC190 -> 0 | AD196: =AD193*AD191+AD194*AD190 -> 0 | AE196: =AE193*AE191+AE194*AE190 -> 0 | AF196: =AF193*AF191+AF194*AF190 -> 0 | AG196: =AG193*AG191+AG194*AG190 -> 0 | AH196: =AH193*AH191+AH194*AH190 -> 0 | AI196: =AI193*AI191+AI194*AI190 -> 0 | AJ196: =AJ193*AJ191+AJ194*AJ190 -> 0 | AK196: =AK193*AK191+AK194*AK190 -> 0 | AL196: =AL193*AL191+AL194*AL190 -> 0 | AM196: =AM193*AM191+AM194*AM190 -> 0 | AN196: =AN193*AN191+AN194*AN190 -> 0 | AO196: =AO193*AO191+AO194*AO190 -> 0 | AP196: =AP193*AP191+AP194*AP190 -> 0 | AQ196: =AQ193*AQ191+AQ194*AQ190 -> 0 | AR196: =AR193*AR191+AR194*AR190 -> 0 | AS196: =AS193*AS191+AS194*AS190 -> 0 | AT196: =AT193*AT191+AT194*AT190 -> 0 | AU196: =AU193*AU191+AU194*AU190 -> 0 | AV196: =AV193*AV191+AV194*AV190 -> 0 | AW196: =AW193*AW191+AW194*AW190 -> 0 | AX196: =AX193*AX191+AX194*AX190 -> 0 | AY196: =AY193*AY191+AY194*AY190 -> 0 | AZ196: =AZ193*AZ191+AZ194*AZ190 -> 0 | BA196: =BA193*BA191+BA194*BA190 -> 0 | BB196: =BB193*BB191+BB194*BB190 -> 0 | BC196: =BC193*BC191+BC194*BC190 -> 0 | BD196: =BD193*BD191+BD194*BD190 -> 0 | BE196: =BE193*BE191+BE194*BE190 -> 0 | BF196: =BF193*BF191+BF194*BF190 -> 0 | BG196: =BG193*BG191+BG194*BG190 -> 0 | BH196: =BH193*BH191+BH194*BH190 -> 0 | BI196: =BI193*BI191+BI194*BI190 -> 0 | BJ196: =BJ193*BJ191+BJ194*BJ190 -> 0 | BK196: =BK193*BK191+BK194*BK190 -> 0 | BL196: =BL193*BL191+BL194*BL190 -> 0 | BM196: =BM193*BM191+BM194*BM190 -> 0 | BN196: =BN193*BN191+BN194*BN190 -> 0 | BO196: =BO193*BO191+BO194*BO190 -> 0 | BP196: =BP193*BP191+BP194*BP190 -> 0 | BQ196: =BQ193*BQ191+BQ194*BQ190 -> 0 | BR196: =BR193*BR191+BR194*BR190 -> 0 | BS196: =BS193*BS191+BS194*BS190 -> 0 | BT196: =BT193*BT191+BT194*BT190 -> 0 | BU196: =BU193*BU191+BU194*BU190 -> 0 | BV196: =BV193*BV191+BV194*BV190 -> 0 | BW196: =BW193*BW191+BW194*BW190 -> 0 | BX196: =BX193*BX191+BX194*BX190 -> 0 | BY196: =BY193*BY191+BY194*BY190 -> 0 | BZ196: =BZ193*BZ191+BZ194*BZ190 -> 0 | CA196: =CA193*CA191+CA194*CA190 -> 0 | CB196: =CB193*CB191+CB194*CB190 -> 0
D197: IRR over Holding Period | F197: =XIRR(K196:CB196,K4:CB4) -> 0.07999999821
D199: Target IRR | F199: =InputC!F57 -> 0.08
D200: NPV | F200: =XNPV(F199,K196:CB196,K4:CB4) -> 0 | G200: NPV Sale
D201: Headline Price with Sale at Lower IRR | F201: 199858603.1 | G201: Headline Price Sale
B204: Graph and Output
K205: =IF(K6,K4,NA()) ->  | L205: =IF(L6,L4,NA()) -> 2025-06-30 | M205: 2025-12-31 | N205: 2026-06-30 | O205: 2026-12-31 | P205: 2027-06-30 | Q205: 2027-12-31 | R205: 2028-06-30 | S205: 2028-12-31 | T205: 2029-06-30 | U205: 2029-12-31 | V205: 2030-06-30 | W205: 2030-12-31 | X205: 2031-06-30 | Y205: 2031-12-31 | Z205: 2032-06-30 | AA205: 2032-12-31 | AB205: 2033-06-30 | AC205: 2033-12-31 | AD205: 2034-06-30 | AE205: 2034-12-31 | AF205: 2035-06-30 | AG205: 2035-12-31 | AH205: 2036-06-30 | AI205: 2036-12-31 | AJ205: 2037-06-30 | AK205: 2037-12-31 | AL205: 2038-06-30 | AM205: 2038-12-31 | AN205: 2039-06-30 | AO205: 2039-12-31 | AP205: 2040-06-30 | AQ205: 2040-12-31 | AR205: 2041-06-30 | AS205: 2041-12-31 | AT205: 2042-06-30 | AU205: 2042-12-31 | AV205: 2043-06-30 | AW205: 2043-12-31 | AX205: 2044-06-30 | AY205: 2044-12-31 | AZ205: 2045-06-30 | BA205: 2045-12-31 | BB205: 2046-06-30 | BC205: 2046-12-31 | BD205: 2047-06-30 | BE205: 2047-12-31 | BF205: 2048-06-30 | BG205: 2048-12-31 | BH205: 2049-06-30 | BI205: 2049-12-31 | BX205: =IF(BX6,BX4,NA()) -> 
C206: CFADS | E206: USD | K206: =K131 -> 0 | L206: =L131 -> 4244006.849 | M206: 4801986.301 | N206: 4834246.772 | O206: 5016097.518 | P206: 5061171.403 | Q206: 5251440.329 | R206: 5326461.598 | S206: 5500774.514 | T206: 5547349.652 | U206: 5755651.657 | V206: 5807623.85 | W206: 6025578.631 | X206: 6080075.625 | Y206: 6308134.102 | Z206: 6398460.249 | AA206: 6607489.43 | AB206: 6663830.075 | AC206: 6913534.784 | AD206: 6976361.031 | AE206: 7237653.898 | AF206: 7303528.787 | AG206: 7576952.079 | AH206: 7685708.689 | AI206: 7936428.25 | AJ206: 8004565.209 | AK206: 8303979.849 | AL206: 8379912.559 | AM206: 8693243.091 | AN206: 8772857.293 | AO206: 9100756.039 | AP206: 9231711.433 | AQ206: 9532511.554 | AR206: 9614898.977 | AS206: 9974016.085 | AT206: 10065776.58 | AU206: 10441610.09 | AV206: 10537816.76 | AW206: 10931151.62 | AX206: 11088850.16 | AY206: 11449827.73 | AZ206: 11549431.88 | BA206: 11980274.98 | BB206: 12091151.73 | BC206: 12542081.58 | BD206: 12658328.66 | BE206: 13130290.12 | BF206: 13320213.37 | BG206: 13753522.9 | BH206: 13873929.66 | BI206: 14390970.57 | BJ206: 1452205.178 | BK206: 0 | BL206: 0 | BM206: 0 | BN206: 0 | BO206: 0 | BP206: 0 | BQ206: 0 | BR206: 0 | BS206: 0 | BT206: 0 | BU206: 0 | BV206: 0 | BW206: 0 | BX206: =BX131 -> 0 | BY206: 0 | BZ206: 0 | CA206: 0 | CB206: 0
C207: Debt Service | E207: USD | K207: =K138 -> 0 | L207: =L138 -> 3143708.777 | M207: 3557026.89 | N207: 3580923.535 | O207: 3715627.791 | P207: 3749015.854 | Q207: 3889955.799 | R207: 3945527.11 | S207: 4074647.788 | T207: 4109147.891 | U207: 4263445.672 | V207: 4301943.593 | W207: 4463391.579 | X207: 4503759.722 | Y207: 4672691.927 | Z207: 4739600.184 | AA207: 4894436.615 | AB207: 4936170.426 | AC207: 5121136.877 | AD207: 5167674.837 | AE207: 5361225.11 | AF207: 5410021.324 | AG207: 5612557.096 | AH207: 5693117.548 | AI207: 5878835.741 | AJ207: 5929307.562 | AK207: 6151096.185 | AL207: 6207342.636 | AM207: 6439439.327 | AN207: 6498412.81 | AO207: 6741300.769 | AP207: 0 | AQ207: 0 | AR207: 0 | AS207: 0 | AT207: 0 | AU207: 0 | AV207: 0 | AW207: 0 | AX207: 0 | AY207: 0 | AZ207: 0 | BA207: 0 | BB207: 0 | BC207: 0 | BD207: 0 | BE207: 0 | BF207: 0 | BG207: 0 | BH207: 0 | BI207: 0 | BJ207: 0 | BK207: 0 | BL207: 0 | BM207: 0 | BN207: 0 | BO207: 0 | BP207: 0 | BQ207: 0 | BR207: 0 | BS207: 0 | BT207: 0 | BU207: 0 | BV207: 0 | BW207: 0 | BX207: =BX138 -> 0 | BY207: 0 | BZ207: 0 | CA207: 0 | CB207: 0
C209: DSCR | E209: x | G209: =MIN(K209:CB209) -> 1.35 | K209: =IF(K207>0.01,K206/K207) -> FALSE | L209: =IF(L207>0.01,L206/L207) -> 1.35 | M209: 1.35 | N209: 1.35 | O209: 1.35 | P209: 1.35 | Q209: 1.35 | R209: 1.35 | S209: 1.35 | T209: 1.35 | U209: 1.35 | V209: 1.35 | W209: 1.35 | X209: 1.35 | Y209: 1.35 | Z209: 1.35 | AA209: 1.35 | AB209: 1.35 | AC209: 1.35 | AD209: 1.35 | AE209: 1.35 | AF209: 1.35 | AG209: 1.35 | AH209: 1.35 | AI209: 1.35 | AJ209: 1.35 | AK209: 1.35 | AL209: 1.35 | AM209: 1.35 | AN209: 1.35 | AO209: 1.35 | AP209: FALSE | AQ209: FALSE | AR209: FALSE | AS209: FALSE | AT209: FALSE | AU209: FALSE | AV209: FALSE | AW209: FALSE | AX209: FALSE | AY209: FALSE | AZ209: FALSE | BA209: FALSE | BB209: FALSE | BC209: FALSE | BD209: FALSE | BE209: FALSE | BF209: FALSE | BG209: FALSE | BH209: FALSE | BI209: FALSE | BJ209: FALSE | BK209: FALSE | BL209: FALSE | BM209: FALSE | BN209: FALSE | BO209: FALSE | BP209: FALSE | BQ209: FALSE | BR209: FALSE | BS209: FALSE | BT209: FALSE | BU209: FALSE | BV209: FALSE | BW209: FALSE | BX209: =IF(BX207>0.01,BX206/BX207) -> FALSE | BY209: FALSE | BZ209: FALSE | CA209: FALSE | CB209: FALSE
C211: PV of CFADS over Life | E211: USD | F211: =G136 -> 0.015 | G211: =NPV(F211,K211:CB211) -> 280586616.7 | K211: =IF(K6,K206) -> FALSE | L211: =IF(L6,L206) -> 4244006.849 | M211: 4801986.301 | N211: 4834246.772 | O211: 5016097.518 | P211: 5061171.403 | Q211: 5251440.329 | R211: 5326461.598 | S211: 5500774.514 | T211: 5547349.652 | U211: 5755651.657 | V211: 5807623.85 | W211: 6025578.631 | X211: 6080075.625 | Y211: 6308134.102 | Z211: 6398460.249 | AA211: 6607489.43 | AB211: 6663830.075 | AC211: 6913534.784 | AD211: 6976361.031 | AE211: 7237653.898 | AF211: 7303528.787 | AG211: 7576952.079 | AH211: 7685708.689 | AI211: 7936428.25 | AJ211: 8004565.209 | AK211: 8303979.849 | AL211: 8379912.559 | AM211: 8693243.091 | AN211: 8772857.293 | AO211: 9100756.039 | AP211: 9231711.433 | AQ211: 9532511.554 | AR211: 9614898.977 | AS211: 9974016.085 | AT211: 10065776.58 | AU211: 10441610.09 | AV211: 10537816.76 | AW211: 10931151.62 | AX211: 11088850.16 | AY211: 11449827.73 | AZ211: 11549431.88 | BA211: 11980274.98 | BB211: 12091151.73 | BC211: 12542081.58 | BD211: 12658328.66 | BE211: 13130290.12 | BF211: 13320213.37 | BG211: 13753522.9 | BH211: 13873929.66 | BI211: 14390970.57 | BJ211: FALSE | BK211: FALSE | BL211: FALSE | BM211: FALSE | BN211: FALSE | BO211: FALSE | BP211: FALSE | BQ211: FALSE | BR211: FALSE | BS211: FALSE | BT211: FALSE | BU211: FALSE | BV211: FALSE | BW211: FALSE | BX211: =IF(BX6,BX206) -> FALSE | BY211: FALSE | BZ211: FALSE | CA211: FALSE | CB211: FALSE
C212: Debt | E212: USD | G212: =F153 -> 114464729.2
C213: PLCR | E213: x | G213: =G211/G212 -> 2.451293237
C215: CFADS over Life | E215: USD | F215: =F211 -> 0.015 | G215: =NPV(F215,K215:CB215) -> 154527384.5 | K215: =IF(K108,K206) -> FALSE | L215: =IF(L108,L206) -> 4244006.849 | M215: 4801986.301 | N215: 4834246.772 | O215: 5016097.518 | P215: 5061171.403 | Q215: 5251440.329 | R215: 5326461.598 | S215: 5500774.514 | T215: 5547349.652 | U215: 5755651.657 | V215: 5807623.85 | W215: 6025578.631 | X215: 6080075.625 | Y215: 6308134.102 | Z215: 6398460.249 | AA215: 6607489.43 | AB215: 6663830.075 | AC215: 6913534.784 | AD215: 6976361.031 | AE215: 7237653.898 | AF215: 7303528.787 | AG215: 7576952.079 | AH215: 7685708.689 | AI215: 7936428.25 | AJ215: 8004565.209 | AK215: 8303979.849 | AL215: 8379912.559 | AM215: 8693243.091 | AN215: 8772857.293 | AO215: 9100756.039 | AP215: FALSE | AQ215: FALSE | AR215: FALSE | AS215: FALSE | AT215: FALSE | AU215: FALSE | AV215: FALSE | AW215: FALSE | AX215: FALSE | AY215: FALSE | AZ215: FALSE | BA215: FALSE | BB215: FALSE | BC215: FALSE | BD215: FALSE | BE215: FALSE | BF215: FALSE | BG215: FALSE | BH215: FALSE | BI215: FALSE | BJ215: FALSE | BK215: FALSE | BL215: FALSE | BM215: FALSE | BN215: FALSE | BO215: FALSE | BP215: FALSE | BQ215: FALSE | BR215: FALSE | BS215: FALSE | BT215: FALSE | BU215: FALSE | BV215: FALSE | BW215: FALSE | BX215: =IF(BX108,BX206) -> FALSE | BY215: FALSE | BZ215: FALSE | CA215: FALSE | CB215: FALSE
C216: Debt | E216: USD | G216: =G212 -> 114464729.2
C217: LLCR | E217: x | G217: =G215/G216 -> 1.35
